Workbook

Sheet Cobb-Douglas CMC (hidden)
A1: CURVA INGRESO-CONSUMO
A3: COBB-DOUGLAS
C4: RECTA PRESUPUESTAL
C5: m | D5: p1 | E5: x1 | F5: p2 | G5: x2
B6: A | C6: 150.0 | D6: 1.0 | E6: =F13 -> 75.0 | F6: 3.0 | G6: =C13 -> 25.0
B7: B | C7: =C6 -> 150.0 | D7: =D6 -> 1.0 | E7: =F14 -> 75.0 | F7: =$F$6 -> 3.0 | G7: =C14 -> 25.0
B8: C | C8: =C6 -> 150.0 | D8: =D7 -> 1.0 | E8: =F15 -> 75.0 | F8: =$F$6 -> 3.0 | G8: =C15 -> 25.0
C9: Inserte los datos correspondientes
C11: PARÁMETROS DE LA RECTA PRESUPUESTAL
C12: x2 | D12: b0 | E12: b1 | F12: x1
B13: A | C13: =D13+(E13*F13) -> 25.0 | D13: =C6/F6 -> 50.0 | E13: =D6/F6*-1 -> -0.3 | F13: ='Oculto CMC'!E27 -> 75.0
B14: B | C14: =D14+(E14*F14) -> 25.0 | D14: =C7/F7 -> 50.0 | E14: =D7/F7*-1 -> -0.3 | F14: ='Oculto CMC'!E56 -> 75.0
B15: C | C15: =D15+(E15*F15) -> 25.0 | D15: =C8/F8 -> 50.0 | E15: =D8/F8*-1 -> -0.3 | F15: ='Oculto CMC'!E85 -> 75.0
E17: A | F17: B | G17: C
C18: Máxima cantidad de x1 | E18: =C6/D6 -> 150.0 | F18: =C7/D7 -> 150.0 | G18: =C8/D8 -> 150.0
C19: Máxima cantidad de x2 | E19: =C6/F6 -> 50.0 | F19: =C7/F7 -> 50.0 | G19: =C8/F8 -> 50.0
C20: Precio relativo (<0) | E20: =(D6/F6)*(-1) -> -0.3 | F20: =(D7/F7)*(-1) -> -0.3 | G20: =(D8/F8)*(-1) -> -0.3
C22: PARÁMETROS DE FUNCIÓN COBB-DOUGLAS
C23: k | D23: a | E23: x1* | F23: 1-a | G23: x2*
B24: A | C24: ='Oculto CMC'!F28 -> 43.3 | D24: 0.5 | E24: ='Oculto CMC'!$E$27 -> 75.0 | F24: =1-D24 -> 0.5 | G24: ='Oculto CMC'!F27 -> 25.0
B25: B | C25: ='Oculto CMC'!F57 -> 43.3 | D25: =D24 -> 0.5 | E25: ='Oculto CMC'!$E$56 -> 75.0 | F25: =1-D25 -> 0.5 | G25: ='Oculto CMC'!$F$56 -> 25.0
B26: C | C26: ='Oculto CMC'!F86 -> 43.3 | D26: =D25 -> 0.5 | E26: ='Oculto CMC'!$E$85 -> 75.0 | F26: =1-D26 -> 0.5 | G26: ='Oculto CMC'!$F$85 -> 25.0
C29: Títulos
C30: Resultados
C31: Insertar datos
C32: Cantidad de equilibrio

Sheet Inicio CPC
A23: Descargue la versión Kindle
J32: Miguel Cervantes Jiménez

Sheet Cobb-Douglas CPC (hidden)
A1: CURVA PRECIO-CONSUMO
A3: COBB-DOUGLAS
C4: RECTA PRESUPUESTAL
C5: m | D5: p1 | E5: x1 | F5: p2 | G5: x2
B6: A | C6: 100.0 | D6: 10.0 | E6: =F13 -> 4.0 | F6: 6.0 | G6: =C13 -> 10.0
B7: B | C7: =$C$6 -> 100.0 | D7: =D6 -> 10.0 | E7: =F14 -> 4.0 | F7: =$F$6 -> 6.0 | G7: =C14 -> 10.0
B8: C | C8: =$C$6 -> 100.0 | D8: =D6 -> 10.0 | E8: =F15 -> 4.0 | F8: =$F$6 -> 6.0 | G8: =C15 -> 10.0
C9: Inserte los datos correspondientes
C11: PARÁMETROS DE LA RECTA PRESUPUESTAL
C12: x2 | D12: b0 | E12: b1 | F12: x1
B13: A | C13: =D13+(E13*F13) -> 10.0 | D13: =C6/F6 -> 16.7 | E13: =D6/F6*-1 -> (1.7) | F13: ='Oculto CPC'!E27 -> 4.0
B14: B | C14: =D14+(E14*F14) -> 10.0 | D14: =C7/F7 -> 16.7 | E14: =D7/F7*-1 -> (1.7) | F14: ='Oculto CPC'!E56 -> 4.0
B15: C | C15: =D15+(E15*F15) -> 10.0 | D15: =C8/F8 -> 16.7 | E15: =D8/F8*-1 -> (1.7) | F15: ='Oculto CPC'!E85 -> 4.0
E17: A | F17: B | G17: C
C18: Máxima cantidad de x1 | E18: =C6/D6 -> 10.0 | F18: =C7/D7 -> 10.0 | G18: =C8/D8 -> 10.0
C19: Máxima cantidad de x2 | E19: =C6/F6 -> 16.7 | F19: =C7/F7 -> 16.7 | G19: =C8/F8 -> 16.7
C20: Precio relativo (<0) | E20: =(D6/F6)*(-1) -> (1.7) | F20: =(D7/F7)*(-1) -> (1.7) | G20: =(D8/F8)*(-1) -> (1.7)
C22: PARÁMETROS DE FUNCIÓN COBB-DOUGLAS
C23: k | D23: a | E23: x1* | F23: 1-a | G23: x2*
B24: A | C24: ='Oculto CPC'!F28 -> 6.9 | D24: 0.4 | E24: ='Oculto CPC'!$E$27 -> 4.0 | F24: =1-D24 -> 0.6 | G24: ='Oculto CPC'!F27 -> 10.0
B25: B | C25: ='Oculto CPC'!F57 -> 6.9 | D25: =D24 -> 0.4 | E25: ='Oculto CPC'!$E$56 -> 4.0 | F25: =1-D25 -> 0.6 | G25: ='Oculto CPC'!$F$56 -> 10.0
B26: C | C26: ='Oculto CPC'!F86 -> 6.9 | D26: =D25 -> 0.4 | E26: ='Oculto CPC'!$E$85 -> 4.0 | F26: =1-D26 -> 0.6 | G26: ='Oculto CPC'!$F$85 -> 10.0
C29: Títulos
C30: Resultados
C31: Insertar datos
C32: Cantidad de equilibrio

Sheet Regulares CMC (hidden)
A1: CURVA INGRESO-CONSUMO
A3: CUASILINEALES
C4: RECTA PRESUPUESTAL
C6: m | D6: p1 | E6: x1 | F6: p2 | G6: x2
B7: A | C7: 100.0 | D7: 9.0 | E7: =D25 -> 5.6 | F7: 50.0 | G7: =E25 -> 1.0
B8: B | C8: =C7 -> 100.0 | D8: =D7 -> 9.0 | E8: =D26 -> 5.6 | F8: =F7 -> 50.0 | G8: =E26 -> 1.0
B9: C | C9: =C7 -> 100.0 | D9: =D8 -> 9.0 | E9: =D27 -> 5.6 | F9: =F8 -> 50.0 | G9: =E27 -> 1.0
C10: Inserte los datos correspondientes
C12: PARÁMETROS DE LA RECTA PRESUPUESTAL
C13: x2 | D13: b0 | E13: b1 | F13: x1
B14: A | C14: =D14+(E14*F14) -> 1.0 | D14: =C7/F7 -> 2.0 | E14: =D7/F7*-1 -> -0.2 | F14: =E7 -> 5.6
B15: B | C15: =D15+(E15*F15) -> 1.0 | D15: =C8/F8 -> 2.0 | E15: =D8/F8*-1 -> -0.2 | F15: =E8 -> 5.6
B16: C | C16: =D16+(E16*F16) -> 1.0 | D16: =C9/F9 -> 2.0 | E16: =D9/F9*-1 -> -0.2 | F16: =E9 -> 5.6
D18: A | E18: B | F18: C
B19: Máxima cantidad de x1 | D19: =C7/D7 -> 11.1 | E19: =C8/D8 -> 11.1 | F19: =C9/D9 -> 11.1
B20: Máxima cantidad de x2 | D20: =C7/F7 -> 2.0 | E20: =C8/F8 -> 2.0 | F20: =C9/F9 -> 2.0
B21: Precio relativo (<0) | D21: =D7/F7*(-1) -> -0.2 | E21: =(D8/F8)*(-1) -> -0.2 | F21: =(D9/F9)*(-1) -> -0.2
C23: PARÁMETROS DE FUNCIÓN REGULAR
C24: k | D24: x1* | E24: x2*
B25: A | C25: ='Oculto CMC'!Q26 -> 2.7 | D25: ='Oculto CMC'!P28 -> 5.6 | E25: ='Oculto CMC'!P29 -> 1.0
B26: B | C26: ='Oculto CMC'!Q58 -> 2.7 | D26: ='Oculto CMC'!P60 -> 5.6 | E26: ='Oculto CMC'!P61 -> 1.0
B27: C | C27: ='Oculto CMC'!Q90 -> 2.7 | D27: ='Oculto CMC'!P92 -> 5.6 | E27: ='Oculto CMC'!P93 -> 1.0
B30: Títulos
B31: Resultados
B32: Insertar datos
B33: Cantidad de equilibrio

Sheet CompPerf CMC (hidden)
A1: CURVA INGRESO-CONSUMO
A3: COMPLEMENTOS PERFECTOS
C4: RECTA PRESUPUESTAL
C5: m | D5: p1 | E5: x1 | F5: p2 | G5: x2
B6: A | C6: 100.0 | D6: 5.0 | E6: =D25 -> 10.0 | F6: 5.0 | G6: =E25 -> 10.0
B7: B | C7: =C6 -> 100.0 | D7: =D6 -> 5.0 | E7: =D26 -> 10.0 | F7: =F6 -> 5.0 | G7: =E26 -> 10.0
B8: C | C8: =C6 -> 100.0 | D8: =D7 -> 5.0 | E8: =D27 -> 10.0 | F8: =F7 -> 5.0 | G8: =E27 -> 10.0
C9: =C7 -> 100.0
C11: PARÁMETROS DE LA RECTA PRESUPUESTAL
C12: x2 | D12: b0 | E12: b1 | F12: x1
B13: A | C13: =D13+(E13*F13) -> 10.0 | D13: =C6/F6 -> 20.0 | E13: =D6/F6*-1 -> (1.0) | F13: =E6 -> 10.0
B14: B | C14: =E26 -> 10.0 | D14: =C7/F7 -> 20.0 | E14: =D7/F7*-1 -> (1.0) | F14: =D26 -> 10.0
B15: C | C15: =E27 -> 10.0 | D15: =C8/F8 -> 20.0 | E15: =D8/F8*-1 -> (1.0) | F15: =D27 -> 10.0
E18: A | F18: B | G18: C
C19: Máxima cantidad de x1 | E19: =C6/D6 -> 20.0 | F19: =C7/D7 -> 20.0 | G19: =C8/D8 -> 20.0
C20: Máxima cantidad de x2 | E20: =C6/F6 -> 20.0 | F20: =C7/F7 -> 20.0 | G20: =C8/F8 -> 20.0
C21: Precio relativo (<0) | E21: =E13 -> (1.0) | F21: =E14 -> (1.0) | G21: =E15 -> (1.0)
C23: PARÁMETROS DE LA CURVA DE INDIFERENCIA
C24: k | D24: x1* | E24: x2*
B25: A | C25: =MAX('Oculto CMC'!AB23,'Oculto CMC'!AC3) -> 20.0 | D25: ='Oculto CMC'!AB28 -> 10.0 | E25: ='Oculto CMC'!AB29 -> 10.0
B26: B | C26: =MAX('Oculto CMC'!AB55,'Oculto CMC'!AC55) -> 20.0 | D26: ='Oculto CMC'!AB60 -> 10.0 | E26: ='Oculto CMC'!AB61 -> 10.0
B27: C | C27: =MAX('Oculto CMC'!AB87,'Oculto CMC'!AC87) -> 20.0 | D27: ='Oculto CMC'!AB92 -> 10.0 | E27: ='Oculto CMC'!AB93 -> 10.0
C30: Títulos
C31: Resultados
C32: Insertar datos
C33: Cantidad de equilibrio

Sheet CompPerf CPC (hidden)
A1: CURVA PRECIO-CONSUMO
A3: COMPLEMENTOS PERFECTOS
C4: RECTA PRESUPUESTAL
C5: m | D5: p1 | E5: x1 | F5: p2 | G5: x2
B6: A | C6: 200.0 | D6: 10.0 | E6: =D25 -> 13.3 | F6: 5.0 | G6: =E25 -> 13.3
B7: B | C7: =C6 -> 200.0 | D7: =D6 -> 10.0 | E7: =D26 -> 13.3 | F7: =F6 -> 5.0 | G7: =E26 -> 13.3
B8: C | C8: =C7 -> 200.0 | D8: =D6 -> 10.0 | E8: =D27 -> 13.3 | F8: =F7 -> 5.0 | G8: =E27 -> 13.3
C9: Inserte los datos correspondientes
C11: PARÁMETROS DE LA RECTA PRESUPUESTAL
C12: x2 | D12: b0 | E12: b1 | F12: x1
B13: A | C13: =D13+(E13*F13) -> 13.3 | D13: =C6/F6 -> 40.0 | E13: =D6/F6*-1 -> (2.0) | F13: =E6 -> 13.3
B14: B | C14: =E26 -> 13.3 | D14: =C7/F7 -> 40.0 | E14: =D7/F7*-1 -> (2.0) | F14: =D26 -> 13.3
B15: C | C15: =E27 -> 13.3 | D15: =C8/F8 -> 40.0 | E15: =D8/F8*-1 -> (2.0) | F15: =D27 -> 13.3
E18: A | F18: B | G18: C
C19: Máxima cantidad de x1 | E19: =C6/D6 -> 20.0 | F19: =C7/D7 -> 20.0 | G19: =C8/D8 -> 20.0
C20: Máxima cantidad de x2 | E20: =C6/F6 -> 40.0 | F20: =C7/F7 -> 40.0 | G20: =C8/F8 -> 40.0
C21: Precio relativo (<0) | E21: =E13 -> (2.0) | F21: =E14 -> (2.0) | G21: =E15 -> (2.0)
C23: PARÁMETROS DE LA CURVA DE INDIFERENCIA
C24: k | D24: x1* | E24: x2*
B25: A | C25: =D25 -> 13.3 | D25: ='Oculto CPC'!AB28 -> 13.3 | E25: ='Oculto CPC'!AB29 -> 13.3
B26: B | C26: =D26 -> 13.3 | D26: ='Oculto CPC'!AB60 -> 13.3 | E26: ='Oculto CPC'!AB61 -> 13.3
B27: C | C27: =D27 -> 13.3 | D27: ='Oculto CPC'!AB92 -> 13.3 | E27: ='Oculto CPC'!AB93 -> 13.3
C30: Títulos
C31: Resultados
C32: Insertar datos
C33: Cantidad de equilibrio

Sheet Regulares CPC (hidden)
A1: CURVA PRECIO-CONSUMO
A3: CUASILINEALES
B4: RECTA PRESUPUESTAL
C5: m | D5: p1 | E5: x1 | F5: p2 | G5: x2
B6: A | C6: 300.0 | D6: 1.0 | E6: =D24 -> 200.0 | F6: 200.0 | G6: =E24 -> 0.5
B7: B | C7: =C6 -> 300.0 | D7: =D6 -> 1.0 | E7: =D25 -> 200.0 | F7: =F6 -> 200.0 | G7: =E25 -> 0.5
B8: C | C8: =C7 -> 300.0 | D8: =D6 -> 1.0 | E8: =D26 -> 200.0 | F8: =F7 -> 200.0 | G8: =E26 -> 0.5
C9: Inserte los datos correspondientes
C11: PARÁMETROS DE LA RECTA PRESUPUESTAL
C12: x2 | D12: b0 | E12: b1 | F12: x1
B13: A | C13: =D13+(E13*F13) -> 0.5 | D13: =C6/F6 -> 1.5 | E13: =D6/F6*-1 -> (0.0) | F13: =E6 -> 200.0
B14: B | C14: =D14+(E14*F14) -> 0.5 | D14: =C7/F7 -> 1.5 | E14: =D7/F7*-1 -> (0.0) | F14: =E7 -> 200.0
B15: C | C15: =D15+(E15*F15) -> 0.5 | D15: =C8/F8 -> 1.5 | E15: =D8/F8*-1 -> (0.0) | F15: =E8 -> 200.0
D17: A | E17: B | F17: C
B18: Máxima cantidad de x1 | D18: =C6/D6 -> 300.0 | E18: =C7/D7 -> 300.0 | F18: =C8/D8 -> 300.0
B19: Máxima cantidad de x2 | D19: =C6/F6 -> 1.5 | E19: =C7/F7 -> 1.5 | F19: =C8/F8 -> 1.5
B20: Precio relativo (<0) | D20: =D6/F6*(-1) -> (0.0) | E20: =(D7/F7)*(-1) -> (0.0) | F20: =(D8/F8)*(-1) -> (0.0)
C22: PARÁMETROS DE FUNCIÓN REGULAR
C23: v | D23: x1* | E23: x2*
B24: A | C24: ='Oculto CPC'!Q26 -> 5.8 | D24: ='Oculto CPC'!P28 -> 200.0 | E24: ='Oculto CPC'!P29 -> 0.5
B25: B | C25: ='Oculto CPC'!Q58 -> 5.8 | D25: ='Oculto CPC'!P60 -> 200.0 | E25: ='Oculto CPC'!P61 -> 0.5
B26: C | C26: ='Oculto CPC'!Q90 -> 5.8 | D26: ='Oculto CPC'!P92 -> 200.0 | E26: ='Oculto CPC'!P93 -> 0.5
B29: Títulos
B30: Resultados
B31: Insertar datos
B32: Cantidad de equilibrio

Sheet Oculto CMC (hidden)
A1: COBB-DOUGLAS 1 | C1: Recta Presupuestaria | J1: Curva de Indiferencia | M1: REGULARES 1 | O1: Recta Presupuestaria | V1: Curva de Indiferencia | Y1: COMP. PERFECTOS 1 | AB1: Recta Presupuestaria | AD1: Curva de Indiferencia
A2: Unidades | B2: ponderador | C2: x1 | D2: x2 | E2: x1lin | G2: x2lin | I2: Cota | J2: x1 | K2: x2 | M2: Unidades | N2: ponderador | O2: x1 | P2: x2 | Q2: x1lin | S2: x2lin | U2: Cota | V2: x1 | W2: x2 | Y2: Unidades | Z2: ponderador | AB2: x1 | AC2: x2 | AD2: vertice | AE2: x1line | AF2: x2line
A3: 1 | B3: 0 | C3: =('Cobb-Douglas CMC'!$E$18)*B3 -> 0 | D3: ='Cobb-Douglas CMC'!$D$13+('Cobb-Douglas CMC'!$E$13*'Oculto CMC'!C3) -> 50.00 | E3: =$E$27 -> 75 | F3: =$F$27*B3 -> 0 | G3: =$E$27*'Oculto CMC'!B3 -> 0 | H3: =$F$27 -> 25 | M3: 1 | N3: 0 | O3: =$P$25/$P$26*N3 -> 0 | P3: =($P$25/$P$27)-(($P$26/$P$27)*O3) -> 2.00 | Q3: =$P$28 -> 5.56 | R3: =$P$29*N3 -> 0 | S3: =Q3*N3 -> 0 | T3: =$P$29 -> 1.00 | Y3: 1 | Z3: 0 | AA3: 1.00 | AB3: =$AB$25/$AB$26*Z3 -> 0 | AC3: =$AB$25/$AB$27*AA3 -> 20.00 | AD3: =AB28 -> 10.00 | AE3: =AD3+(($AB$23-AD3)*Z3) -> 10.00 | AF3: =AD3+(($AC$3-AD3)*Z3) -> 10.00
A4: 2 | B4: 0.05 | C4: =('Cobb-Douglas CMC'!$E$18)*B4 -> 7.50 | D4: ='Cobb-Douglas CMC'!$D$13+('Cobb-Douglas CMC'!$E$13*'Oculto CMC'!C4) -> 47.50 | E4: 75 | F4: 1.25 | G4: =$E$27*'Oculto CMC'!B4 -> 3.75 | H4: 25 | I4: 0.28 | J4: =$E$27*I4 -> 21.00 | K4: =($F$28/(J4^($E$26)))^(1/$F$26) -> 89.29 | M4: 2 | N4: 0.05 | O4: 0.56 | P4: 1.90 | Q4: =$P$28 -> 5.56 | R4: =$P$29*N4 -> 0.05 | S4: =Q4*N4 -> 0.28 | T4: =$P$29 -> 1.00 | U4: =$U$25 -> 0.1 | V4: =O4 -> 0.56 | W4: =$Q$26-LN(V4) -> 3.30 | Y4: 2 | Z4: 0.05 | AA4: 0.95 | AB4: 1.00 | AC4: 19.00 | AD4: =AD3 -> 10.00 | AE4: 10.50 | AF4: 10.50
A5: 3 | B5: 0.10 | C5: =('Cobb-Douglas CMC'!$E$18)*B5 -> 15.00 | D5: ='Cobb-Douglas CMC'!$D$13+('Cobb-Douglas CMC'!$E$13*'Oculto CMC'!C5) -> 45.00 | E5: 75 | F5: 2.50 | G5: =$E$27*'Oculto CMC'!B5 -> 7.50 | H5: 25 | I5: 0.36 | J5: 27.00 | K5: 69.44 | M5: 3 | N5: 0.10 | O5: 1.11 | P5: 1.80 | Q5: 5.56 | R5: 0.10 | S5: 0.56 | T5: 1.00 | U5: =U4+$U$25 -> 0.2 | V5: =O5 -> 1.11 | W5: =$Q$26-LN(V5) -> 2.61 | Y5: 3 | Z5: 0.10 | AA5: 0.90 | AB5: 2.00 | AC5: 18.00 | AD5: 10.00 | AE5: 11.00 | AF5: 11.00
A6: 4 | B6: 0.15 | C6: =('Cobb-Douglas CMC'!$E$18)*B6 -> 22.50 | D6: ='Cobb-Douglas CMC'!$D$13+('Cobb-Douglas CMC'!$E$13*'Oculto CMC'!C6) -> 42.50 | E6: 75 | F6: 3.75 | G6: =$E$27*'Oculto CMC'!B6 -> 11.25 | H6: 25 | I6: 0.44 | J6: 33.00 | K6: 56.82 | M6: 4 | N6: 0.15 | O6: 1.67 | P6: 1.70 | Q6: 5.56 | R6: 0.15 | S6: 0.83 | T6: 1.00 | U6: 0.3 | V6: 1.67 | W6: 2.20 | Y6: 4 | Z6: 0.15 | AA6: 0.85 | AB6: 3.00 | AC6: 17.00 | AD6: 10.00 | AE6: 11.50 | AF6: 11.50
A7: 5 | B7: 0.20 | C7: =('Cobb-Douglas CMC'!$E$18)*B7 -> 30.00 | D7: ='Cobb-Douglas CMC'!$D$13+('Cobb-Douglas CMC'!$E$13*'Oculto CMC'!C7) -> 40.00 | E7: 75 | F7: 5.00 | G7: =$E$27*'Oculto CMC'!B7 -> 15.00 | H7: 25 | I7: 0.52 | J7: 39.00 | K7: 48.08 | M7: 5 | N7: 0.20 | O7: 2.22 | P7: 1.60 | Q7: 5.56 | R7: 0.20 | S7: 1.11 | T7: 1.00 | U7: 0.4 | V7: 2.22 | W7: 1.92 | Y7: 5 | Z7: 0.20 | AA7: 0.80 | AB7: 4.00 | AC7: 16.00 | AD7: 10.00 | AE7: 12.00 | AF7: 12.00
A8: 6 | B8: 0.25 | C8: =('Cobb-Douglas CMC'!$E$18)*B8 -> 37.50 | D8: ='Cobb-Douglas CMC'!$D$13+('Cobb-Douglas CMC'!$E$13*'Oculto CMC'!C8) -> 37.50 | E8: 75 | F8: 6.25 | G8: =$E$27*'Oculto CMC'!B8 -> 18.75 | H8: 25 | I8: 0.6 | J8: 45.00 | K8: 41.67 | M8: 6 | N8: 0.25 | O8: 2.78 | P8: 1.50 | Q8: 5.56 | R8: 0.25 | S8: 1.39 | T8: 1.00 | U8: 0.5 | V8: =O8 -> 2.78 | W8: 1.69 | Y8: 6 | Z8: 0.25 | AA8: 0.75 | AB8: 5.00 | AC8: 15.00 | AD8: 10.00 | AE8: 12.50 | AF8: 12.50
A9: 7 | B9: 0.30 | C9: =('Cobb-Douglas CMC'!$E$18)*B9 -> 45.00 | D9: ='Cobb-Douglas CMC'!$D$13+('Cobb-Douglas CMC'!$E$13*'Oculto CMC'!C9) -> 35.00 | E9: 75 | F9: 7.50 | G9: =$E$27*'Oculto CMC'!B9 -> 22.50 | H9: 25 | I9: 0.68 | J9: 51.00 | K9: 36.76 | M9: 7 | N9: 0.30 | O9: 3.33 | P9: 1.40 | Q9: 5.56 | R9: 0.30 | S9: 1.67 | T9: 1.00 | U9: 0.6 | V9: 3.33 | W9: 1.51 | Y9: 7 | Z9: 0.30 | AA9: 0.70 | AB9: 6.00 | AC9: 14.00 | AD9: 10.00 | AE9: 13.00 | AF9: 13.00
A10: 8 | B10: 0.35 | C10: =('Cobb-Douglas CMC'!$E$18)*B10 -> 52.50 | D10: ='Cobb-Douglas CMC'!$D$13+('Cobb-Douglas CMC'!$E$13*'Oculto CMC'!C10) -> 32.50 | E10: 75 | F10: 8.75 | G10: =$E$27*'Oculto CMC'!B10 -> 26.25 | H10: 25 | I10: 0.76 | J10: 57.00 | K10: 32.89 | M10: 8 | N10: 0.35 | O10: 3.89 | P10: 1.30 | Q10: 5.56 | R10: 0.35 | S10: 1.94 | T10: 1.00 | U10: 0.7 | V10: 3.89 | W10: 1.36 | Y10: 8 | Z10: 0.35 | AA10: 0.65 | AB10: 7.00 | AC10: 13.00 | AD10: 10.00 | AE10: 13.50 | AF10: 13.50
A11: 9 | B11: 0.40 | C11: =('Cobb-Douglas CMC'!$E$18)*B11 -> 60.00 | D11: ='Cobb-Douglas CMC'!$D$13+('Cobb-Douglas CMC'!$E$13*'Oculto CMC'!C11) -> 30.00 | E11: 75 | F11: 10.00 | G11: =$E$27*'Oculto CMC'!B11 -> 30.00 | H11: 25 | I11: 0.84 | J11: 63.00 | K11: 29.76 | M11: 9 | N11: 0.40 | O11: 4.44 | P11: 1.20 | Q11: 5.56 | R11: 0.40 | S11: 2.22 | T11: 1.00 | U11: 0.8 | V11: 4.44 | W11: 1.22 | Y11: 9 | Z11: 0.40 | AA11: 0.60 | AB11: 8.00 | AC11: 12.00 | AD11: 10.00 | AE11: 14.00 | AF11: 14.00
A12: 10 | B12: 0.45 | C12: =('Cobb-Douglas CMC'!$E$18)*B12 -> 67.50 | D12: ='Cobb-Douglas CMC'!$D$13+('Cobb-Douglas CMC'!$E$13*'Oculto CMC'!C12) -> 27.50 | E12: 75 | F12: 11.25 | G12: =$E$27*'Oculto CMC'!B12 -> 33.75 | H12: 25 | I12: 0.92 | J12: 69.00 | K12: 27.17 | M12: 10 | N12: 0.45 | O12: 5.00 | P12: 1.10 | Q12: 5.56 | R12: 0.45 | S12: 2.50 | T12: 1.00 | U12: 0.9 | V12: 5.00 | W12: 1.11 | Y12: 10 | Z12: 0.45 | AA12: 0.55 | AB12: 9.00 | AC12: 11.00 | AD12: 10.00 | AE12: 14.50 | AF12: 14.50
A13: 11 | B13: 0.50 | C13: =('Cobb-Douglas CMC'!$E$18)*B13 -> 75.00 | D13: ='Cobb-Douglas CMC'!$D$13+('Cobb-Douglas CMC'!$E$13*'Oculto CMC'!C13) -> 25.00 | E13: 75 | F13: 12.50 | G13: =$E$27*'Oculto CMC'!B13 -> 37.50 | H13: 25 | I13: 1 | J13: 75.00 | K13: 25.00 | M13: 11 | N13: 0.50 | O13: 5.56 | P13: 1.00 | Q13: 5.56 | R13: 0.50 | S13: 2.78 | T13: 1.00 | U13: 1 | V13: 5.56 | W13: 1.00 | Y13: 11 | Z13: 0.50 | AA13: 0.50 | AB13: 10.00 | AC13: 10.00 | AD13: 10.00 | AE13: 15.00 | AF13: 15.00
A14: 12 | B14: 0.55 | C14: =('Cobb-Douglas CMC'!$E$18)*B14 -> 82.50 | D14: ='Cobb-Douglas CMC'!$D$13+('Cobb-Douglas CMC'!$E$13*'Oculto CMC'!C14) -> 22.50 | E14: 75 | F14: 13.75 | G14: =$E$27*'Oculto CMC'!B14 -> 41.25 | H14: 25 | I14: 1.08 | J14: 81.00 | K14: 23.15 | M14: 12 | N14: 0.55 | O14: 6.11 | P14: 0.90 | Q14: 5.56 | R14: 0.55 | S14: 3.06 | T14: 1.00 | U14: =U13+$U$25 -> 1.1 | V14: 6.11 | W14: 0.90 | Y14: 12 | Z14: 0.55 | AA14: 0.45 | AB14: 11.00 | AC14: 9.00 | AD14: 10.00 | AE14: 15.50 | AF14: 15.50
A15: 13 | B15: 0.60 | C15: =('Cobb-Douglas CMC'!$E$18)*B15 -> 90.00 | D15: ='Cobb-Douglas CMC'!$D$13+('Cobb-Douglas CMC'!$E$13*'Oculto CMC'!C15) -> 20.00 | E15: 75 | F15: 15.00 | G15: =$E$27*'Oculto CMC'!B15 -> 45.00 | H15: 25 | I15: 1.16 | J15: 87.00 | K15: 21.55 | M15: 13 | N15: 0.60 | O15: 6.67 | P15: 0.80 | Q15: 5.56 | R15: 0.60 | S15: 3.33 | T15: 1.00 | U15: 1.2 | V15: 6.67 | W15: 0.82 | Y15: 13 | Z15: 0.60 | AA15: 0.40 | AB15: 12.00 | AC15: 8.00 | AD15: 10.00 | AE15: 16.00 | AF15: 16.00
A16: 14 | B16: 0.65 | C16: =('Cobb-Douglas CMC'!$E$18)*B16 -> 97.50 | D16: ='Cobb-Douglas CMC'!$D$13+('Cobb-Douglas CMC'!$E$13*'Oculto CMC'!C16) -> 17.50 | E16: 75 | F16: 16.25 | G16: =$E$27*'Oculto CMC'!B16 -> 48.75 | H16: 25 | I16: 1.24 | J16: 93.00 | K16: 20.16 | M16: 14 | N16: 0.65 | O16: 7.22 | P16: 0.70 | Q16: 5.56 | R16: 0.65 | S16: 3.61 | T16: 1.00 | U16: 1.3 | V16: 7.22 | W16: 0.74 | Y16: 14 | Z16: 0.65 | AA16: 0.35 | AB16: 13.00 | AC16: 7.00 | AD16: 10.00 | AE16: 16.50 | AF16: 16.50
A17: 15 | B17: 0.70 | C17: =('Cobb-Douglas CMC'!$E$18)*B17 -> 105.00 | D17: ='Cobb-Douglas CMC'!$D$13+('Cobb-Douglas CMC'!$E$13*'Oculto CMC'!C17) -> 15.00 | E17: 75 | F17: 17.50 | G17: =$E$27*'Oculto CMC'!B17 -> 52.50 | H17: 25 | I17: 1.32 | J17: 99.00 | K17: 18.94 | M17: 15 | N17: 0.70 | O17: 7.78 | P17: 0.60 | Q17: 5.56 | R17: 0.70 | S17: 3.89 | T17: 1.00 | U17: 1.4 | V17: 7.78 | W17: 0.66 | Y17: 15 | Z17: 0.70 | AA17: 0.30 | AB17: 14.00 | AC17: 6.00 | AD17: 10.00 | AE17: 17.00 | AF17: 17.00
A18: 16 | B18: 0.75 | C18: =('Cobb-Douglas CMC'!$E$18)*B18 -> 112.50 | D18: ='Cobb-Douglas CMC'!$D$13+('Cobb-Douglas CMC'!$E$13*'Oculto CMC'!C18) -> 12.50 | E18: 75 | F18: 18.75 | G18: =$E$27*'Oculto CMC'!B18 -> 56.25 | H18: 25 | I18: 1.4 | J18: 105.00 | K18: 17.86 | M18: 16 | N18: 0.75 | O18: 8.33 | P18: 0.50 | Q18: 5.56 | R18: 0.75 | S18: 4.17 | T18: 1.00 | U18: 1.5 | V18: 8.33 | W18: 0.59 | Y18: 16 | Z18: 0.75 | AA18: 0.25 | AB18: 15.00 | AC18: 5.00 | AD18: 10.00 | AE18: 17.50 | AF18: 17.50
A19: 17 | B19: 0.80 | C19: =('Cobb-Douglas CMC'!$E$18)*B19 -> 120.00 | D19: ='Cobb-Douglas CMC'!$D$13+('Cobb-Douglas CMC'!$E$13*'Oculto CMC'!C19) -> 10.00 | E19: 75 | F19: 20.00 | G19: =$E$27*'Oculto CMC'!B19 -> 60.00 | H19: 25 | I19: 1.48 | J19: 111.00 | K19: 16.89 | M19: 17 | N19: 0.80 | O19: 8.89 | P19: 0.40 | Q19: 5.56 | R19: 0.80 | S19: 4.44 | T19: 1.00 | U19: 1.6 | V19: 8.89 | W19: 0.53 | Y19: 17 | Z19: 0.80 | AA19: 0.20 | AB19: 16.00 | AC19: 4.00 | AD19: 10.00 | AE19: 18.00 | AF19: 18.00
A20: 18 | B20: 0.85 | C20: =('Cobb-Douglas CMC'!$E$18)*B20 -> 127.50 | D20: ='Cobb-Douglas CMC'!$D$13+('Cobb-Douglas CMC'!$E$13*'Oculto CMC'!C20) -> 7.50 | E20: 75 | F20: 21.25 | G20: =$E$27*'Oculto CMC'!B20 -> 63.75 | H20: 25 | I20: 1.56 | J20: 117.00 | K20: 16.03 | M20: 18 | N20: 0.85 | O20: 9.44 | P20: 0.30 | Q20: 5.56 | R20: 0.85 | S20: 4.72 | T20: 1.00 | U20: 1.7 | V20: 9.44 | W20: 0.47 | Y20: 18 | Z20: 0.85 | AA20: 0.15 | AB20: 17.00 | AC20: 3.00 | AD20: 10.00 | AE20: 18.50 | AF20: 18.50
A21: 19 | B21: 0.90 | C21: =('Cobb-Douglas CMC'!$E$18)*B21 -> 135.00 | D21: ='Cobb-Douglas CMC'!$D$13+('Cobb-Douglas CMC'!$E$13*'Oculto CMC'!C21) -> 5.00 | E21: 75 | F21: 22.50 | G21: =$E$27*'Oculto CMC'!B21 -> 67.50 | H21: 25 | I21: 1.64 | J21: 123.00 | K21: 15.24 | M21: 19 | N21: 0.90 | O21: 10.00 | P21: 0.20 | Q21: 5.56 | R21: 0.90 | S21: 5.00 | T21: 1.00 | U21: 1.8 | V21: 10.00 | W21: 0.41 | Y21: 19 | Z21: 0.90 | AA21: 0.10 | AB21: 18.00 | AC21: 2.00 | AD21: 10.00 | AE21: 19.00 | AF21: 19.00
A22: 20 | B22: 0.95 | C22: =('Cobb-Douglas CMC'!$E$18)*B22 -> 142.50 | D22: ='Cobb-Douglas CMC'!$D$13+('Cobb-Douglas CMC'!$E$13*'Oculto CMC'!C22) -> 2.50 | E22: 75 | F22: 23.75 | G22: =$E$27*'Oculto CMC'!B22 -> 71.25 | H22: 25 | I22: 1.72 | J22: 129.00 | K22: 14.53 | M22: 20 | N22: 0.95 | O22: 10.56 | P22: 0.10 | Q22: 5.56 | R22: 0.95 | S22: 5.28 | T22: 1.00 | U22: 1.9 | V22: 10.56 | W22: 0.36 | Y22: 20 | Z22: 0.95 | AA22: 0.05 | AB22: 19.00 | AC22: 1.00 | AD22: 10.00 | AE22: 19.50 | AF22: 19.50
A23: 21 | B23: 1.00 | C23: =('Cobb-Douglas CMC'!$E$18)*B23 -> 150.00 | D23: ='Cobb-Douglas CMC'!$D$13+('Cobb-Douglas CMC'!$E$13*'Oculto CMC'!C23) -> 0 | E23: 75 | F23: 25.00 | G23: =$E$27*'Oculto CMC'!B23 -> 75.00 | H23: 25 | I23: 1.8 | J23: 135.00 | K23: 13.89 | M23: 21 | N23: 1.00 | O23: 11.11 | P23: 0 | Q23: 5.56 | R23: 1.00 | S23: 5.56 | T23: 1.00 | U23: 2 | V23: 11.11 | W23: 0.31 | Y23: 21 | Z23: 1.00 | AA23: 0 | AB23: 20.00 | AC23: 0 | AD23: 10.00 | AE23: 20.00 | AF23: 20.00
E25: x1 | F25: x2 | O25: m | P25: ='Regulares CMC'!$C$7 -> 100.00 | Q25: k | U25: =1/10 -> 0.1 | AA25: m | AB25: ='CompPerf CMC'!C6 -> 100
E26: ='Cobb-Douglas CMC'!$D$24 -> 0.5 | F26: ='Cobb-Douglas CMC'!$F$24 -> 0.5 | O26: p1 | P26: ='Regulares CMC'!D7 -> 9 | Q26: =LN(P28)+P29 -> 2.71 | AA26: p1 | AB26: ='CompPerf CMC'!D6 -> 5
E27: ='Cobb-Douglas CMC'!$D$24*('Cobb-Douglas CMC'!$C$6/'Cobb-Douglas CMC'!$D$6) -> 75 | F27: ='Cobb-Douglas CMC'!$F$24*('Cobb-Douglas CMC'!$C$6/'Cobb-Douglas CMC'!$F$6) -> 25 | O27: p2 | P27: ='Regulares CMC'!F7 -> 50 | AA27: p2 | AB27: ='CompPerf CMC'!F6 -> 5
F28: =(E27^(E26))*(F27^(F26)) -> 43.30127019 | O28: x1* | P28: =P27/P26 -> 5.56 | AA28: x1 | AB28: =AB25/(AB27+AB26) -> 10
O29: x2* | P29: =P25/P27-1 -> 1.00 | AA29: x2 | AB29: =AB28 -> 10
A30: COBB-DOUGLAS 2 | C30: Recta Presupuestaria | J30: Curva de Indiferencia
A31: Unidades | B31: ponderador | C31: x1 | D31: x2 | E31: x3lin | G31: x4lin | I31: Cota | J31: x1 | K31: x2
A32: 1 | B32: 0 | C32: ='Cobb-Douglas CMC'!$F$18*B32 -> 0 | D32: ='Cobb-Douglas CMC'!$D$14+('Cobb-Douglas CMC'!$E$14*'Oculto CMC'!C32) -> 50.00 | E32: =$E$56 -> 75 | F32: =$F$56*B32 -> 0 | G32: =$E$56*'Oculto CMC'!B32 -> 0 | H32: =$F$56 -> 25
A33: 2 | B33: 0.05 | C33: ='Cobb-Douglas CMC'!$F$18*B33 -> 7.50 | D33: ='Cobb-Douglas CMC'!$D$14+('Cobb-Douglas CMC'!$E$14*'Oculto CMC'!C33) -> 47.50 | E33: 75 | F33: 1.25 | G33: =$E$56*'Oculto CMC'!B33 -> 3.75 | H33: 25 | I33: 0.28 | J33: =$E$56*I33 -> 21.00 | K33: =($F$57/(J33^($E$55)))^(1/$F$55) -> 89.29 | M33: REGULARES 2 | O33: Recta Presupuestaria | V33: Curva de Indiferencia | Y33: COMP. PERFECTOS 2 | AB33: Recta Presupuestaria | AD33: Curva de Indiferencia
A34: 3 | B34: 0.10 | C34: ='Cobb-Douglas CMC'!$F$18*B34 -> 15.00 | D34: ='Cobb-Douglas CMC'!$D$14+('Cobb-Douglas CMC'!$E$14*'Oculto CMC'!C34) -> 45.00 | E34: 75 | F34: 2.50 | G34: =$E$56*'Oculto CMC'!B34 -> 7.50 | H34: 25 | I34: 0.36 | J34: 27.00 | K34: 69.44 | M34: Unidades | N34: ponderador | O34: x1 | P34: x2 | Q34: x1lin | S34: x2lin | U34: Cota | V34: x1 | W34: x2 | Y34: Unidades | Z34: ponderador | AB34: x1 | AC34: x2 | AD34: vertice | AE34: x1line | AF34: x2line
A35: 4 | B35: 0.15 | C35: ='Cobb-Douglas CMC'!$F$18*B35 -> 22.50 | D35: ='Cobb-Douglas CMC'!$D$14+('Cobb-Douglas CMC'!$E$14*'Oculto CMC'!C35) -> 42.50 | E35: 75 | F35: 3.75 | G35: =$E$56*'Oculto CMC'!B35 -> 11.25 | H35: 25 | I35: 0.44 | J35: 33.00 | K35: 56.82 | M35: 1 | N35: 0 | O35: =$P$57/$P$58*N35 -> 0 | P35: =($P$57/$P$59)-(($P$58/$P$59)*O35) -> 2.00 | Q35: =$P$60 -> 5.56 | R35: =$P$61*N35 -> 0 | S35: =$P$60*N35 -> 0 | T35: =$P$61 -> 1.00 | Y35: 1 | Z35: 0 | AA35: 1.00 | AB35: =$AB$57/$AB$58*Z35 -> 0 | AC35: =$AB$57/$AB$59*AA35 -> 20.00 | AD35: =AB60 -> 10.00 | AE35: =AD35+(($AB$55-AD35)*Z35) -> 10.00 | AF35: =AD35+(($AC$35-AD35)*Z35) -> 10.00
A36: 5 | B36: 0.20 | C36: ='Cobb-Douglas CMC'!$F$18*B36 -> 30.00 | D36: ='Cobb-Douglas CMC'!$D$14+('Cobb-Douglas CMC'!$E$14*'Oculto CMC'!C36) -> 40.00 | E36: 75 | F36: 5.00 | G36: =$E$56*'Oculto CMC'!B36 -> 15.00 | H36: 25 | I36: 0.52 | J36: 39.00 | K36: 48.08 | M36: 2 | N36: 0.05 | O36: 0.56 | P36: 1.90 | Q36: =$P$60 -> 5.56 | R36: =$P$61*N36 -> 0.05 | S36: =$P$60*N36 -> 0.28 | T36: =$P$61 -> 1.00 | U36: =$U$25 -> 0.1 | V36: =O36 -> 0.56 | W36: =$Q$58-LN(V36) -> 3.30 | Y36: 2 | Z36: 0.05 | AA36: 0.95 | AB36: 1.00 | AC36: 19.00 | AD36: =AD35 -> 10.00 | AE36: 10.50 | AF36: 10.50
A37: 6 | B37: 0.25 | C37: ='Cobb-Douglas CMC'!$F$18*B37 -> 37.50 | D37: ='Cobb-Douglas CMC'!$D$14+('Cobb-Douglas CMC'!$E$14*'Oculto CMC'!C37) -> 37.50 | E37: 75 | F37: 6.25 | G37: =$E$56*'Oculto CMC'!B37 -> 18.75 | H37: 25 | I37: 0.6 | J37: 45.00 | K37: 41.67 | M37: 3 | N37: 0.10 | O37: 1.11 | P37: 1.80 | Q37: 5.56 | R37: 0.10 | S37: 0.56 | T37: 1.00 | U37: =U36+$U$25 -> 0.2 | V37: =O37 -> 1.11 | W37: =$Q$58-LN(V37) -> 2.61 | Y37: 3 | Z37: 0.10 | AA37: 0.90 | AB37: 2.00 | AC37: 18.00 | AD37: 10.00 | AE37: 11.00 | AF37: 11.00
A38: 7 | B38: 0.30 | C38: ='Cobb-Douglas CMC'!$F$18*B38 -> 45.00 | D38: ='Cobb-Douglas CMC'!$D$14+('Cobb-Douglas CMC'!$E$14*'Oculto CMC'!C38) -> 35.00 | E38: 75 | F38: 7.50 | G38: =$E$56*'Oculto CMC'!B38 -> 22.50 | H38: 25 | I38: 0.68 | J38: 51.00 | K38: 36.76 | M38: 4 | N38: 0.15 | O38: 1.67 | P38: 1.70 | Q38: 5.56 | R38: 0.15 | S38: 0.83 | T38: 1.00 | U38: 0.3 | V38: 1.67 | W38: 2.20 | Y38: 4 | Z38: 0.15 | AA38: 0.85 | AB38: 3.00 | AC38: 17.00 | AD38: 10.00 | AE38: 11.50 | AF38: 11.50
A39: 8 | B39: 0.35 | C39: ='Cobb-Douglas CMC'!$F$18*B39 -> 52.50 | D39: ='Cobb-Douglas CMC'!$D$14+('Cobb-Douglas CMC'!$E$14*'Oculto CMC'!C39) -> 32.50 | E39: 75 | F39: 8.75 | G39: =$E$56*'Oculto CMC'!B39 -> 26.25 | H39: 25 | I39: 0.76 | J39: 57.00 | K39: 32.89 | M39: 5 | N39: 0.20 | O39: 2.22 | P39: 1.60 | Q39: 5.56 | R39: 0.20 | S39: 1.11 | T39: 1.00 | U39: 0.4 | V39: 2.22 | W39: 1.92 | Y39: 5 | Z39: 0.20 | AA39: 0.80 | AB39: 4.00 | AC39: 16.00 | AD39: 10.00 | AE39: 12.00 | AF39: 12.00
A40: 9 | B40: 0.40 | C40: ='Cobb-Douglas CMC'!$F$18*B40 -> 60.00 | D40: ='Cobb-Douglas CMC'!$D$14+('Cobb-Douglas CMC'!$E$14*'Oculto CMC'!C40) -> 30.00 | E40: 75 | F40: 10.00 | G40: =$E$56*'Oculto CMC'!B40 -> 30.00 | H40: 25 | I40: 0.84 | J40: 63.00 | K40: 29.76 | M40: 6 | N40: 0.25 | O40: 2.78 | P40: 1.50 | Q40: 5.56 | R40: 0.25 | S40: 1.39 | T40: 1.00 | U40: 0.5 | V40: 2.78 | W40: 1.69 | Y40: 6 | Z40: 0.25 | AA40: 0.75 | AB40: 5.00 | AC40: 15.00 | AD40: 10.00 | AE40: 12.50 | AF40: 12.50
A41: 10 | B41: 0.45 | C41: ='Cobb-Douglas CMC'!$F$18*B41 -> 67.50 | D41: ='Cobb-Douglas CMC'!$D$14+('Cobb-Douglas CMC'!$E$14*'Oculto CMC'!C41) -> 27.50 | E41: 75 | F41: 11.25 | G41: =$E$56*'Oculto CMC'!B41 -> 33.75 | H41: 25 | I41: 0.92 | J41: 69.00 | K41: 27.17 | M41: 7 | N41: 0.30 | O41: 3.33 | P41: 1.40 | Q41: 5.56 | R41: 0.30 | S41: 1.67 | T41: 1.00 | U41: 0.6 | V41: 3.33 | W41: 1.51 | Y41: 7 | Z41: 0.30 | AA41: 0.70 | AB41: 6.00 | AC41: 14.00 | AD41: 10.00 | AE41: 13.00 | AF41: 13.00
A42: 11 | B42: 0.50 | C42: ='Cobb-Douglas CMC'!$F$18*B42 -> 75.00 | D42: ='Cobb-Douglas CMC'!$D$14+('Cobb-Douglas CMC'!$E$14*'Oculto CMC'!C42) -> 25.00 | E42: 75 | F42: 12.50 | G42: =$E$56*'Oculto CMC'!B42 -> 37.50 | H42: 25 | I42: 1 | J42: 75.00 | K42: 25.00 | M42: 8 | N42: 0.35 | O42: 3.89 | P42: 1.30 | Q42: 5.56 | R42: 0.35 | S42: 1.94 | T42: 1.00 | U42: 0.7 | V42: 3.89 | W42: 1.36 | Y42: 8 | Z42: 0.35 | AA42: 0.65 | AB42: 7.00 | AC42: 13.00 | AD42: 10.00 | AE42: 13.50 | AF42: 13.50
A43: 12 | B43: 0.55 | C43: ='Cobb-Douglas CMC'!$F$18*B43 -> 82.50 | D43: ='Cobb-Douglas CMC'!$D$14+('Cobb-Douglas CMC'!$E$14*'Oculto CMC'!C43) -> 22.50 | E43: 75 | F43: 13.75 | G43: =$E$56*'Oculto CMC'!B43 -> 41.25 | H43: 25 | I43: 1.08 | J43: 81.00 | K43: 23.15 | M43: 9 | N43: 0.40 | O43: 4.44 | P43: 1.20 | Q43: 5.56 | R43: 0.40 | S43: 2.22 | T43: 1.00 | U43: 0.8 | V43: 4.44 | W43: 1.22 | Y43: 9 | Z43: 0.40 | AA43: 0.60 | AB43: 8.00 | AC43: 12.00 | AD43: 10.00 | AE43: 14.00 | AF43: 14.00
A44: 13 | B44: 0.60 | C44: ='Cobb-Douglas CMC'!$F$18*B44 -> 90.00 | D44: ='Cobb-Douglas CMC'!$D$14+('Cobb-Douglas CMC'!$E$14*'Oculto CMC'!C44) -> 20.00 | E44: 75 | F44: 15.00 | G44: =$E$56*'Oculto CMC'!B44 -> 45.00 | H44: 25 | I44: 1.16 | J44: 87.00 | K44: 21.55 | M44: 10 | N44: 0.45 | O44: 5.00 | P44: 1.10 | Q44: 5.56 | R44: 0.45 | S44: 2.50 | T44: 1.00 | U44: 0.9 | V44: 5.00 | W44: 1.11 | Y44: 10 | Z44: 0.45 | AA44: 0.55 | AB44: 9.00 | AC44: 11.00 | AD44: 10.00 | AE44: 14.50 | AF44: 14.50
A45: 14 | B45: 0.65 | C45: ='Cobb-Douglas CMC'!$F$18*B45 -> 97.50 | D45: ='Cobb-Douglas CMC'!$D$14+('Cobb-Douglas CMC'!$E$14*'Oculto CMC'!C45) -> 17.50 | E45: 75 | F45: 16.25 | G45: =$E$56*'Oculto CMC'!B45 -> 48.75 | H45: 25 | I45: 1.24 | J45: 93.00 | K45: 20.16 | M45: 11 | N45: 0.50 | O45: 5.56 | P45: 1.00 | Q45: 5.56 | R45: 0.50 | S45: 2.78 | T45: 1.00 | U45: 1 | V45: 5.56 | W45: 1.00 | Y45: 11 | Z45: 0.50 | AA45: 0.50 | AB45: 10.00 | AC45: 10.00 | AD45: 10.00 | AE45: 15.00 | AF45: 15.00
A46: 15 | B46: 0.70 | C46: ='Cobb-Douglas CMC'!$F$18*B46 -> 105.00 | D46: ='Cobb-Douglas CMC'!$D$14+('Cobb-Douglas CMC'!$E$14*'Oculto CMC'!C46) -> 15.00 | E46: 75 | F46: 17.50 | G46: =$E$56*'Oculto CMC'!B46 -> 52.50 | H46: 25 | I46: 1.32 | J46: 99.00 | K46: 18.94 | M46: 12 | N46: 0.55 | O46: 6.11 | P46: 0.90 | Q46: 5.56 | R46: 0.55 | S46: 3.06 | T46: 1.00 | U46: =U45+$U$25 -> 1.1 | V46: 6.11 | W46: 0.90 | Y46: 12 | Z46: 0.55 | AA46: 0.45 | AB46: 11.00 | AC46: 9.00 | AD46: 10.00 | AE46: 15.50 | AF46: 15.50
A47: 16 | B47: 0.75 | C47: ='Cobb-Douglas CMC'!$F$18*B47 -> 112.50 | D47: ='Cobb-Douglas CMC'!$D$14+('Cobb-Douglas CMC'!$E$14*'Oculto CMC'!C47) -> 12.50 | E47: 75 | F47: 18.75 | G47: =$E$56*'Oculto CMC'!B47 -> 56.25 | H47: 25 | I47: 1.4 | J47: 105.00 | K47: 17.86 | M47: 13 | N47: 0.60 | O47: 6.67 | P47: 0.80 | Q47: 5.56 | R47: 0.60 | S47: 3.33 | T47: 1.00 | U47: 1.2 | V47: 6.67 | W47: 0.82 | Y47: 13 | Z47: 0.60 | AA47: 0.40 | AB47: 12.00 | AC47: 8.00 | AD47: 10.00 | AE47: 16.00 | AF47: 16.00
A48: 17 | B48: 0.80 | C48: ='Cobb-Douglas CMC'!$F$18*B48 -> 120.00 | D48: ='Cobb-Douglas CMC'!$D$14+('Cobb-Douglas CMC'!$E$14*'Oculto CMC'!C48) -> 10.00 | E48: 75 | F48: 20.00 | G48: =$E$56*'Oculto CMC'!B48 -> 60.00 | H48: 25 | I48: 1.48 | J48: 111.00 | K48: 16.89 | M48: 14 | N48: 0.65 | O48: 7.22 | P48: 0.70 | Q48: 5.56 | R48: 0.65 | S48: 3.61 | T48: 1.00 | U48: 1.3 | V48: 7.22 | W48: 0.74 | Y48: 14 | Z48: 0.65 | AA48: 0.35 | AB48: 13.00 | AC48: 7.00 | AD48: 10.00 | AE48: 16.50 | AF48: 16.50
A49: 18 | B49: 0.85 | C49: ='Cobb-Douglas CMC'!$F$18*B49 -> 127.50 | D49: ='Cobb-Douglas CMC'!$D$14+('Cobb-Douglas CMC'!$E$14*'Oculto CMC'!C49) -> 7.50 | E49: 75 | F49: 21.25 | G49: =$E$56*'Oculto CMC'!B49 -> 63.75 | H49: 25 | I49: 1.56 | J49: 117.00 | K49: 16.03 | M49: 15 | N49: 0.70 | O49: 7.78 | P49: 0.60 | Q49: 5.56 | R49: 0.70 | S49: 3.89 | T49: 1.00 | U49: 1.4 | V49: 7.78 | W49: 0.66 | Y49: 15 | Z49: 0.70 | AA49: 0.30 | AB49: 14.00 | AC49: 6.00 | AD49: 10.00 | AE49: 17.00 | AF49: 17.00
A50: 19 | B50: 0.90 | C50: ='Cobb-Douglas CMC'!$F$18*B50 -> 135.00 | D50: ='Cobb-Douglas CMC'!$D$14+('Cobb-Douglas CMC'!$E$14*'Oculto CMC'!C50) -> 5.00 | E50: 75 | F50: 22.50 | G50: =$E$56*'Oculto CMC'!B50 -> 67.50 | H50: 25 | I50: 1.64 | J50: 123.00 | K50: 15.24 | M50: 16 | N50: 0.75 | O50: 8.33 | P50: 0.50 | Q50: 5.56 | R50: 0.75 | S50: 4.17 | T50: 1.00 | U50: 1.5 | V50: 8.33 | W50: 0.59 | Y50: 16 | Z50: 0.75 | AA50: 0.25 | AB50: 15.00 | AC50: 5.00 | AD50: 10.00 | AE50: 17.50 | AF50: 17.50
A51: 20 | B51: 0.95 | C51: ='Cobb-Douglas CMC'!$F$18*B51 -> 142.50 | D51: ='Cobb-Douglas CMC'!$D$14+('Cobb-Douglas CMC'!$E$14*'Oculto CMC'!C51) -> 2.50 | E51: 75 | F51: 23.75 | G51: =$E$56*'Oculto CMC'!B51 -> 71.25 | H51: 25 | I51: 1.72 | J51: 129.00 | K51: 14.53 | M51: 17 | N51: 0.80 | O51: 8.89 | P51: 0.40 | Q51: 5.56 | R51: 0.80 | S51: 4.44 | T51: 1.00 | U51: 1.6 | V51: 8.89 | W51: 0.53 | Y51: 17 | Z51: 0.80 | AA51: 0.20 | AB51: 16.00 | AC51: 4.00 | AD51: 10.00 | AE51: 18.00 | AF51: 18.00
A52: 21 | B52: 1.00 | C52: ='Cobb-Douglas CMC'!$F$18*B52 -> 150.00 | D52: ='Cobb-Douglas CMC'!$D$14+('Cobb-Douglas CMC'!$E$14*'Oculto CMC'!C52) -> 0 | E52: 75 | F52: 25.00 | G52: =$E$56*'Oculto CMC'!B52 -> 75.00 | H52: 25 | I52: 1.8 | J52: 135.00 | K52: 13.89 | M52: 18 | N52: 0.85 | O52: 9.44 | P52: 0.30 | Q52: 5.56 | R52: 0.85 | S52: 4.72 | T52: 1.00 | U52: 1.7 | V52: 9.44 | W52: 0.47 | Y52: 18 | Z52: 0.85 | AA52: 0.15 | AB52: 17.00 | AC52: 3.00 | AD52: 10.00 | AE52: 18.50 | AF52: 18.50
M53: 19 | N53: 0.90 | O53: 10.00 | P53: 0.20 | Q53: 5.56 | R53: 0.90 | S53: 5.00 | T53: 1.00 | U53: 1.8 | V53: 10.00 | W53: 0.41 | Y53: 19 | Z53: 0.90 | AA53: 0.10 | AB53: 18.00 | AC53: 2.00 | AD53: 10.00 | AE53: 19.00 | AF53: 19.00
E54: x1 | F54: x2 | M54: 20 | N54: 0.95 | O54: 10.56 | P54: 0.10 | Q54: 5.56 | R54: 0.95 | S54: 5.28 | T54: 1.00 | U54: 1.9 | V54: 10.56 | W54: 0.36 | Y54: 20 | Z54: 0.95 | AA54: 0.05 | AB54: 19.00 | AC54: 1.00 | AD54: 10.00 | AE54: 19.50 | AF54: 19.50
E55: ='Cobb-Douglas CMC'!$D$25 -> 0.5 | F55: ='Cobb-Douglas CMC'!$F$25 -> 0.5 | M55: 21 | N55: 1.00 | O55: 11.11 | P55: 0 | Q55: 5.56 | R55: 1.00 | S55: 5.56 | T55: 1.00 | U55: 2 | V55: 11.11 | W55: 0.31 | Y55: 21 | Z55: 1.00 | AA55: 0 | AB55: 20.00 | AC55: 0 | AD55: 10.00 | AE55: 20.00 | AF55: 20.00
E56: ='Cobb-Douglas CMC'!$D$24*('Cobb-Douglas CMC'!$C$7/'Cobb-Douglas CMC'!$D$7) -> 75 | F56: ='Cobb-Douglas CMC'!$F$24*('Cobb-Douglas CMC'!$C$7/'Cobb-Douglas CMC'!$F$7) -> 25
F57: =(E56^(E55))*(F56^(F55)) -> 43.30127019 | O57: m | P57: ='Regulares CMC'!C8 -> 100.00 | Q57: k | U57: =1/10 -> 0.1 | AA57: m | AB57: ='CompPerf CMC'!$C$7 -> 100
O58: p1 | P58: ='Regulares CMC'!D8 -> 9 | Q58: =LN(P60)+P61 -> 2.71 | AA58: p1 | AB58: ='CompPerf CMC'!D7 -> 5
A59: COBB-DOUGLAS 3 | C59: Recta Presupuestaria | J59: Curva de Indiferencia | O59: p2 | P59: ='Regulares CMC'!F8 -> 50 | AA59: p2 | AB59: =AB27 -> 5
A60: Unidades | B60: ponderador | C60: x1 | D60: x2 | E60: x5lin | G60: x6lin | I60: Cota | J60: x1 | K60: x2 | O60: x1* | P60: =P59/P58 -> 5.56 | AA60: x1 | AB60: =AB57/(AB59+AB58) -> 10
A61: 1 | B61: 0 | C61: ='Cobb-Douglas CMC'!$G$18*B61 -> 0 | D61: ='Cobb-Douglas CMC'!$D$15+('Cobb-Douglas CMC'!$E$15*'Oculto CMC'!C61) -> 50.00 | E61: =$E$85 -> 75 | F61: =$F$85*B61 -> 0 | G61: =$E$85*B61 -> 0 | H61: =$F$85 -> 25 | O61: x2* | P61: =P57/P59-1 -> 1.00 | AA61: x2 | AB61: =AB60 -> 10
A62: 2 | B62: 0.05 | C62: ='Cobb-Douglas CMC'!$G$18*B62 -> 7.50 | D62: ='Cobb-Douglas CMC'!$D$15+('Cobb-Douglas CMC'!$E$15*'Oculto CMC'!C62) -> 47.50 | E62: 75 | F62: 1.25 | G62: 3.75 | H62: 25 | I62: 0.28 | J62: =I62*$E$85 -> 21.00 | K62: =($F$86/(J62^($E$84)))^(1/$F$84) -> 89.29
A63: 3 | B63: 0.10 | C63: ='Cobb-Douglas CMC'!$G$18*B63 -> 15.00 | D63: ='Cobb-Douglas CMC'!$D$15+('Cobb-Douglas CMC'!$E$15*'Oculto CMC'!C63) -> 45.00 | E63: 75 | F63: 2.50 | G63: 7.50 | H63: 25 | I63: 0.36 | J63: 27.00 | K63: 69.44
A64: 4 | B64: 0.15 | C64: ='Cobb-Douglas CMC'!$G$18*B64 -> 22.50 | D64: ='Cobb-Douglas CMC'!$D$15+('Cobb-Douglas CMC'!$E$15*'Oculto CMC'!C64) -> 42.50 | E64: 75 | F64: 3.75 | G64: 11.25 | H64: 25 | I64: 0.44 | J64: 33.00 | K64: 56.82
A65: 5 | B65: 0.20 | C65: ='Cobb-Douglas CMC'!$G$18*B65 -> 30.00 | D65: ='Cobb-Douglas CMC'!$D$15+('Cobb-Douglas CMC'!$E$15*'Oculto CMC'!C65) -> 40.00 | E65: 75 | F65: 5.00 | G65: 15.00 | H65: 25 | I65: 0.52 | J65: 39.00 | K65: 48.08 | M65: REGULARES 3 | O65: Recta Presupuestaria | V65: Curva de Indiferencia | Y65: COMP. PERFECTOS 3 | AB65: Recta Presupuestaria | AD65: Curva de Indiferencia
A66: 6 | B66: 0.25 | C66: ='Cobb-Douglas CMC'!$G$18*B66 -> 37.50 | D66: ='Cobb-Douglas CMC'!$D$15+('Cobb-Douglas CMC'!$E$15*'Oculto CMC'!C66) -> 37.50 | E66: 75 | F66: 6.25 | G66: 18.75 | H66: 25 | I66: 0.6 | J66: 45.00 | K66: 41.67 | M66: Unidades | N66: ponderador | O66: x1 | P66: x2 | Q66: x1lin | S66: x2lin | U66: Cota | V66: x1 | W66: x2 | Y66: Unidades | Z66: ponderador | AB66: x1 | AC66: x2 | AD66: vertice | AE66: x1line | AF66: x2line
A67: 7 | B67: 0.30 | C67: ='Cobb-Douglas CMC'!$G$18*B67 -> 45.00 | D67: ='Cobb-Douglas CMC'!$D$15+('Cobb-Douglas CMC'!$E$15*'Oculto CMC'!C67) -> 35.00 | E67: 75 | F67: 7.50 | G67: 22.50 | H67: 25 | I67: 0.68 | J67: 51.00 | K67: 36.76 | M67: 1 | N67: 0 | O67: =$P$89/$P$90*N67 -> 0 | P67: =($P$89/$P$27)-(($P$90/$P$27)*O67) -> 2.00 | Q67: =$P$92 -> 5.56 | R67: =$P$93*N67 -> 0 | S67: =$P$92*N67 -> 0 | T67: =$P$93 -> 1.00 | Y67: 1 | Z67: 0 | AA67: 1.00 | AB67: =$AB$89/$AB$90*Z67 -> 0 | AC67: =$AB$89/$AB$91*AA67 -> 20.00 | AD67: =AB92 -> 10.00 | AE67: =AD67+(($AB$87-AD67)*Z67) -> 10.00 | AF67: =AD67+(($AC$67-AD67)*Z67) -> 10.00
A68: 8 | B68: 0.35 | C68: ='Cobb-Douglas CMC'!$G$18*B68 -> 52.50 | D68: ='Cobb-Douglas CMC'!$D$15+('Cobb-Douglas CMC'!$E$15*'Oculto CMC'!C68) -> 32.50 | E68: 75 | F68: 8.75 | G68: 26.25 | H68: 25 | I68: 0.76 | J68: 57.00 | K68: 32.89 | M68: 2 | N68: 0.05 | O68: 0.56 | P68: 1.90 | Q68: =$P$92 -> 5.56 | R68: =$P$93*N68 -> 0.05 | S68: =$P$92*N68 -> 0.28 | T68: =$P$93 -> 1.00 | U68: =$U$25 -> 0.1 | V68: =O68 -> 0.56 | W68: =$Q$90-LN(V68) -> 3.30 | Y68: 2 | Z68: 0.05 | AA68: 0.95 | AB68: 1.00 | AC68: 19.00 | AD68: =AD67 -> 10.00 | AE68: 10.50 | AF68: 10.50
A69: 9 | B69: 0.40 | C69: ='Cobb-Douglas CMC'!$G$18*B69 -> 60.00 | D69: ='Cobb-Douglas CMC'!$D$15+('Cobb-Douglas CMC'!$E$15*'Oculto CMC'!C69) -> 30.00 | E69: 75 | F69: 10.00 | G69: 30.00 | H69: 25 | I69: 0.84 | J69: 63.00 | K69: 29.76 | M69: 3 | N69: 0.10 | O69: 1.11 | P69: 1.80 | Q69: 5.56 | R69: 0.10 | S69: 0.56 | T69: 1.00 | U69: =U68+$U$25 -> 0.2 | V69: =O69 -> 1.11 | W69: =$Q$90-LN(V69) -> 2.61 | Y69: 3 | Z69: 0.10 | AA69: 0.90 | AB69: 2.00 | AC69: 18.00 | AD69: 10.00 | AE69: 11.00 | AF69: 11.00
A70: 10 | B70: 0.45 | C70: ='Cobb-Douglas CMC'!$G$18*B70 -> 67.50 | D70: ='Cobb-Douglas CMC'!$D$15+('Cobb-Douglas CMC'!$E$15*'Oculto CMC'!C70) -> 27.50 | E70: 75 | F70: 11.25 | G70: 33.75 | H70: 25 | I70: 0.92 | J70: 69.00 | K70: 27.17 | M70: 4 | N70: 0.15 | O70: 1.67 | P70: 1.70 | Q70: 5.56 | R70: 0.15 | S70: 0.83 | T70: 1.00 | U70: 0.3 | V70: 1.67 | W70: 2.20 | Y70: 4 | Z70: 0.15 | AA70: 0.85 | AB70: 3.00 | AC70: 17.00 | AD70: 10.00 | AE70: 11.50 | AF70: 11.50
A71: 11 | B71: 0.50 | C71: ='Cobb-Douglas CMC'!$G$18*B71 -> 75.00 | D71: ='Cobb-Douglas CMC'!$D$15+('Cobb-Douglas CMC'!$E$15*'Oculto CMC'!C71) -> 25.00 | E71: 75 | F71: 12.50 | G71: 37.50 | H71: 25 | I71: 1 | J71: 75.00 | K71: 25.00 | M71: 5 | N71: 0.20 | O71: 2.22 | P71: 1.60 | Q71: 5.56 | R71: 0.20 | S71: 1.11 | T71: 1.00 | U71: 0.4 | V71: 2.22 | W71: 1.92 | Y71: 5 | Z71: 0.20 | AA71: 0.80 | AB71: 4.00 | AC71: 16.00 | AD71: 10.00 | AE71: 12.00 | AF71: 12.00
A72: 12 | B72: 0.55 | C72: ='Cobb-Douglas CMC'!$G$18*B72 -> 82.50 | D72: ='Cobb-Douglas CMC'!$D$15+('Cobb-Douglas CMC'!$E$15*'Oculto CMC'!C72) -> 22.50 | E72: 75 | F72: 13.75 | G72: 41.25 | H72: 25 | I72: 1.08 | J72: 81.00 | K72: 23.15 | M72: 6 | N72: 0.25 | O72: 2.78 | P72: 1.50 | Q72: 5.56 | R72: 0.25 | S72: 1.39 | T72: 1.00 | U72: 0.5 | V72: 2.78 | W72: 1.69 | Y72: 6 | Z72: 0.25 | AA72: 0.75 | AB72: 5.00 | AC72: 15.00 | AD72: 10.00 | AE72: 12.50 | AF72: 12.50
A73: 13 | B73: 0.60 | C73: ='Cobb-Douglas CMC'!$G$18*B73 -> 90.00 | D73: ='Cobb-Douglas CMC'!$D$15+('Cobb-Douglas CMC'!$E$15*'Oculto CMC'!C73) -> 20.00 | E73: 75 | F73: 15.00 | G73: 45.00 | H73: 25 | I73: 1.16 | J73: 87.00 | K73: 21.55 | M73: 7 | N73: 0.30 | O73: 3.33 | P73: 1.40 | Q73: 5.56 | R73: 0.30 | S73: 1.67 | T73: 1.00 | U73: 0.6 | V73: 3.33 | W73: 1.51 | Y73: 7 | Z73: 0.30 | AA73: 0.70 | AB73: 6.00 | AC73: 14.00 | AD73: 10.00 | AE73: 13.00 | AF73: 13.00
A74: 14 | B74: 0.65 | C74: ='Cobb-Douglas CMC'!$G$18*B74 -> 97.50 | D74: ='Cobb-Douglas CMC'!$D$15+('Cobb-Douglas CMC'!$E$15*'Oculto CMC'!C74) -> 17.50 | E74: 75 | F74: 16.25 | G74: 48.75 | H74: 25 | I74: 1.24 | J74: 93.00 | K74: 20.16 | M74: 8 | N74: 0.35 | O74: 3.89 | P74: 1.30 | Q74: 5.56 | R74: 0.35 | S74: 1.94 | T74: 1.00 | U74: 0.7 | V74: 3.89 | W74: 1.36 | Y74: 8 | Z74: 0.35 | AA74: 0.65 | AB74: 7.00 | AC74: 13.00 | AD74: 10.00 | AE74: 13.50 | AF74: 13.50
A75: 15 | B75: 0.70 | C75: ='Cobb-Douglas CMC'!$G$18*B75 -> 105.00 | D75: ='Cobb-Douglas CMC'!$D$15+('Cobb-Douglas CMC'!$E$15*'Oculto CMC'!C75) -> 15.00 | E75: 75 | F75: 17.50 | G75: 52.50 | H75: 25 | I75: 1.32 | J75: 99.00 | K75: 18.94 | M75: 9 | N75: 0.40 | O75: 4.44 | P75: 1.20 | Q75: 5.56 | R75: 0.40 | S75: 2.22 | T75: 1.00 | U75: 0.8 | V75: 4.44 | W75: 1.22 | Y75: 9 | Z75: 0.40 | AA75: 0.60 | AB75: 8.00 | AC75: 12.00 | AD75: 10.00 | AE75: 14.00 | AF75: 14.00
A76: 16 | B76: 0.75 | C76: ='Cobb-Douglas CMC'!$G$18*B76 -> 112.50 | D76: ='Cobb-Douglas CMC'!$D$15+('Cobb-Douglas CMC'!$E$15*'Oculto CMC'!C76) -> 12.50 | E76: 75 | F76: 18.75 | G76: 56.25 | H76: 25 | I76: 1.4 | J76: 105.00 | K76: 17.86 | M76: 10 | N76: 0.45 | O76: 5.00 | P76: 1.10 | Q76: 5.56 | R76: 0.45 | S76: 2.50 | T76: 1.00 | U76: 0.9 | V76: 5.00 | W76: 1.11 | Y76: 10 | Z76: 0.45 | AA76: 0.55 | AB76: 9.00 | AC76: 11.00 | AD76: 10.00 | AE76: 14.50 | AF76: 14.50
A77: 17 | B77: 0.80 | C77: ='Cobb-Douglas CMC'!$G$18*B77 -> 120.00 | D77: ='Cobb-Douglas CMC'!$D$15+('Cobb-Douglas CMC'!$E$15*'Oculto CMC'!C77) -> 10.00 | E77: 75 | F77: 20.00 | G77: 60.00 | H77: 25 | I77: 1.48 | J77: 111.00 | K77: 16.89 | M77: 11 | N77: 0.50 | O77: 5.56 | P77: 1.00 | Q77: 5.56 | R77: 0.50 | S77: 2.78 | T77: 1.00 | U77: 1 | V77: 5.56 | W77: 1.00 | Y77: 11 | Z77: 0.50 | AA77: 0.50 | AB77: 10.00 | AC77: 10.00 | AD77: 10.00 | AE77: 15.00 | AF77: 15.00
A78: 18 | B78: 0.85 | C78: ='Cobb-Douglas CMC'!$G$18*B78 -> 127.50 | D78: ='Cobb-Douglas CMC'!$D$15+('Cobb-Douglas CMC'!$E$15*'Oculto CMC'!C78) -> 7.50 | E78: 75 | F78: 21.25 | G78: 63.75 | H78: 25 | I78: 1.56 | J78: 117.00 | K78: 16.03 | M78: 12 | N78: 0.55 | O78: 6.11 | P78: 0.90 | Q78: 5.56 | R78: 0.55 | S78: 3.06 | T78: 1.00 | U78: =U77+$U$25 -> 1.1 | V78: 6.11 | W78: 0.90 | Y78: 12 | Z78: 0.55 | AA78: 0.45 | AB78: 11.00 | AC78: 9.00 | AD78: 10.00 | AE78: 15.50 | AF78: 15.50
A79: 19 | B79: 0.90 | C79: ='Cobb-Douglas CMC'!$G$18*B79 -> 135.00 | D79: ='Cobb-Douglas CMC'!$D$15+('Cobb-Douglas CMC'!$E$15*'Oculto CMC'!C79) -> 5.00 | E79: 75 | F79: 22.50 | G79: 67.50 | H79: 25 | I79: 1.64 | J79: 123.00 | K79: 15.24 | M79: 13 | N79: 0.60 | O79: 6.67 | P79: 0.80 | Q79: 5.56 | R79: 0.60 | S79: 3.33 | T79: 1.00 | U79: 1.2 | V79: 6.67 | W79: 0.82 | Y79: 13 | Z79: 0.60 | AA79: 0.40 | AB79: 12.00 | AC79: 8.00 | AD79: 10.00 | AE79: 16.00 | AF79: 16.00
A80: 20 | B80: 0.95 | C80: ='Cobb-Douglas CMC'!$G$18*B80 -> 142.50 | D80: ='Cobb-Douglas CMC'!$D$15+('Cobb-Douglas CMC'!$E$15*'Oculto CMC'!C80) -> 2.50 | E80: 75 | F80: 23.75 | G80: 71.25 | H80: 25 | I80: 1.72 | J80: 129.00 | K80: 14.53 | M80: 14 | N80: 0.65 | O80: 7.22 | P80: 0.70 | Q80: 5.56 | R80: 0.65 | S80: 3.61 | T80: 1.00 | U80: 1.3 | V80: 7.22 | W80: 0.74 | Y80: 14 | Z80: 0.65 | AA80: 0.35 | AB80: 13.00 | AC80: 7.00 | AD80: 10.00 | AE80: 16.50 | AF80: 16.50
A81: 21 | B81: 1.00 | C81: ='Cobb-Douglas CMC'!$G$18*B81 -> 150.00 | D81: ='Cobb-Douglas CMC'!$D$15+('Cobb-Douglas CMC'!$E$15*'Oculto CMC'!C81) -> 0 | E81: 75 | F81: 25.00 | G81: 75.00 | H81: 25 | I81: 1.8 | J81: 135.00 | K81: 13.89 | M81: 15 | N81: 0.70 | O81: 7.78 | P81: 0.60 | Q81: 5.56 | R81: 0.70 | S81: 3.89 | T81: 1.00 | U81: 1.4 | V81: 7.78 | W81: 0.66 | Y81: 15 | Z81: 0.70 | AA81: 0.30 | AB81: 14.00 | AC81: 6.00 | AD81: 10.00 | AE81: 17.00 | AF81: 17.00
M82: 16 | N82: 0.75 | O82: 8.33 | P82: 0.50 | Q82: 5.56 | R82: 0.75 | S82: 4.17 | T82: 1.00 | U82: 1.5 | V82: 8.33 | W82: 0.59 | Y82: 16 | Z82: 0.75 | AA82: 0.25 | AB82: 15.00 | AC82: 5.00 | AD82: 10.00 | AE82: 17.50 | AF82: 17.50
E83: x1 | F83: x2 | M83: 17 | N83: 0.80 | O83: 8.89 | P83: 0.40 | Q83: 5.56 | R83: 0.80 | S83: 4.44 | T83: 1.00 | U83: 1.6 | V83: 8.89 | W83: 0.53 | Y83: 17 | Z83: 0.80 | AA83: 0.20 | AB83: 16.00 | AC83: 4.00 | AD83: 10.00 | AE83: 18.00 | AF83: 18.00
E84: ='Cobb-Douglas CMC'!$D$26 -> 0.5 | F84: ='Cobb-Douglas CMC'!$F$26 -> 0.5 | M84: 18 | N84: 0.85 | O84: 9.44 | P84: 0.30 | Q84: 5.56 | R84: 0.85 | S84: 4.72 | T84: 1.00 | U84: 1.7 | V84: 9.44 | W84: 0.47 | Y84: 18 | Z84: 0.85 | AA84: 0.15 | AB84: 17.00 | AC84: 3.00 | AD84: 10.00 | AE84: 18.50 | AF84: 18.50
E85: ='Cobb-Douglas CMC'!$D$24*('Cobb-Douglas CMC'!$C$8/'Cobb-Douglas CMC'!$D$8) -> 75 | F85: ='Cobb-Douglas CMC'!$F$24*('Cobb-Douglas CMC'!$C$8/'Cobb-Douglas CMC'!$F$8) -> 25 | M85: 19 | N85: 0.90 | O85: 10.00 | P85: 0.20 | Q85: 5.56 | R85: 0.90 | S85: 5.00 | T85: 1.00 | U85: 1.8 | V85: 10.00 | W85: 0.41 | Y85: 19 | Z85: 0.90 | AA85: 0.10 | AB85: 18.00 | AC85: 2.00 | AD85: 10.00 | AE85: 19.00 | AF85: 19.00
F86: =(E85^(E84))*(F85^(F84)) -> 43.30127019 | M86: 20 | N86: 0.95 | O86: 10.56 | P86: 0.10 | Q86: 5.56 | R86: 0.95 | S86: 5.28 | T86: 1.00 | U86: 1.9 | V86: 10.56 | W86: 0.36 | Y86: 20 | Z86: 0.95 | AA86: 0.05 | AB86: 19.00 | AC86: 1.00 | AD86: 10.00 | AE86: 19.50 | AF86: 19.50
M87: 21 | N87: 1.00 | O87: 11.11 | P87: 0 | Q87: 5.56 | R87: 1.00 | S87: 5.56 | T87: 1.00 | U87: 2 | V87: 11.11 | W87: 0.31 | Y87: 21 | Z87: 1.00 | AA87: 0 | AB87: 20.00 | AC87: 0 | AD87: 10.00 | AE87: 20.00 | AF87: 20.00
O89: m | P89: ='Regulares CMC'!C9 -> 100.00 | Q89: k | U89: =1/10 -> 0.1 | AA89: m | AB89: ='CompPerf CMC'!$C$8 -> 100
A90: COBB-DOUGLAS 4 | C90: Recta Presupuestaria | J90: Curva de Indiferencia | O90: p1 | P90: ='Regulares CMC'!D9 -> 9 | Q90: =LN(P92)+P93 -> 2.71 | AA90: p1 | AB90: ='CompPerf CMC'!D8 -> 5
A91: Unidades | B91: ponderador | C91: x1 | D91: x2 | E91: x7lin | G91: x8lin | I91: Cota | J91: x1 | K91: x2 | O91: p2 | P91: ='Regulares CMC'!F9 -> 50 | AA91: p2 | AB91: =AB59 -> 5
A92: 1 | B92: 0 | C92: =('Cobb-Douglas CMC'!$C$8+('Cobb-Douglas CMC'!$C$7-'Cobb-Douglas CMC'!$C$6))*B92 -> 0 | D92: =(('Cobb-Douglas CMC'!$C$8+('Cobb-Douglas CMC'!$C$7-'Cobb-Douglas CMC'!$C$6))/'Cobb-Douglas CMC'!$D$6)-(('Cobb-Douglas CMC'!$D$6/'Cobb-Douglas CMC'!$F$6)*'Oculto CMC'!C92) -> 150.00 | E92: =$E$116 -> 75 | F92: =$F$116*B92 -> 0 | G92: =B92*$E$116 -> 0 | H92: =$F$116 -> 25 | O92: x1* | P92: =P91/P90 -> 5.56 | AA92: x1 | AB92: =AB89/(AB91+AB90) -> 10
A93: 2 | B93: 0.05 | C93: =('Cobb-Douglas CMC'!$C$8+('Cobb-Douglas CMC'!$C$7-'Cobb-Douglas CMC'!$C$6))*B93 -> 7.50 | D93: =(('Cobb-Douglas CMC'!$C$8+('Cobb-Douglas CMC'!$C$7-'Cobb-Douglas CMC'!$C$6))/'Cobb-Douglas CMC'!$D$6)-(('Cobb-Douglas CMC'!$D$6/'Cobb-Douglas CMC'!$F$6)*'Oculto CMC'!C93) -> 147.50 | E93: 75 | F93: 1.25 | G93: 3.75 | H93: 25 | I93: 0.28 | J93: =I93*$E$116 -> 21.00 | K93: =($F$117/(J93^($E$115)))^(1/$F$115) -> 89.29 | O93: x2* | P93: =P89/P91-1 -> 1.00 | AA93: x2 | AB93: =AB92 -> 10
A94: 3 | B94: 0.10 | C94: =('Cobb-Douglas CMC'!$C$8+('Cobb-Douglas CMC'!$C$7-'Cobb-Douglas CMC'!$C$6))*B94 -> 15.00 | D94: =(('Cobb-Douglas CMC'!$C$8+('Cobb-Douglas CMC'!$C$7-'Cobb-Douglas CMC'!$C$6))/'Cobb-Douglas CMC'!$D$6)-(('Cobb-Douglas CMC'!$D$6/'Cobb-Douglas CMC'!$F$6)*'Oculto CMC'!C94) -> 145.00 | E94: 75 | F94: 2.50 | G94: 7.50 | H94: 25 | I94: 0.36 | J94: 27.00 | K94: 69.44
A95: 4 | B95: 0.15 | C95: =('Cobb-Douglas CMC'!$C$8+('Cobb-Douglas CMC'!$C$7-'Cobb-Douglas CMC'!$C$6))*B95 -> 22.50 | D95: =(('Cobb-Douglas CMC'!$C$8+('Cobb-Douglas CMC'!$C$7-'Cobb-Douglas CMC'!$C$6))/'Cobb-Douglas CMC'!$D$6)-(('Cobb-Douglas CMC'!$D$6/'Cobb-Douglas CMC'!$F$6)*'Oculto CMC'!C95) -> 142.50 | E95: 75 | F95: 3.75 | G95: 11.25 | H95: 25 | I95: 0.44 | J95: 33.00 | K95: 56.82
A96: 5 | B96: 0.20 | C96: =('Cobb-Douglas CMC'!$C$8+('Cobb-Douglas CMC'!$C$7-'Cobb-Douglas CMC'!$C$6))*B96 -> 30.00 | D96: =(('Cobb-Douglas CMC'!$C$8+('Cobb-Douglas CMC'!$C$7-'Cobb-Douglas CMC'!$C$6))/'Cobb-Douglas CMC'!$D$6)-(('Cobb-Douglas CMC'!$D$6/'Cobb-Douglas CMC'!$F$6)*'Oculto CMC'!C96) -> 140.00 | E96: 75 | F96: 5.00 | G96: 15.00 | H96: 25 | I96: 0.52 | J96: 39.00 | K96: 48.08
A97: 6 | B97: 0.25 | C97: =('Cobb-Douglas CMC'!$C$8+('Cobb-Douglas CMC'!$C$7-'Cobb-Douglas CMC'!$C$6))*B97 -> 37.50 | D97: =(('Cobb-Douglas CMC'!$C$8+('Cobb-Douglas CMC'!$C$7-'Cobb-Douglas CMC'!$C$6))/'Cobb-Douglas CMC'!$D$6)-(('Cobb-Douglas CMC'!$D$6/'Cobb-Douglas CMC'!$F$6)*'Oculto CMC'!C97) -> 137.50 | E97: 75 | F97: 6.25 | G97: 18.75 | H97: 25 | I97: 0.6 | J97: 45.00 | K97: 41.67 | M97: REGULARES 4 | O97: Recta Presupuestaria | V97: Curva de Indiferencia | Y97: COMP. PERFECTOS 4 | AB97: Recta Presupuestaria | AD97: Curva de Indiferencia
A98: 7 | B98: 0.30 | C98: =('Cobb-Douglas CMC'!$C$8+('Cobb-Douglas CMC'!$C$7-'Cobb-Douglas CMC'!$C$6))*B98 -> 45.00 | D98: =(('Cobb-Douglas CMC'!$C$8+('Cobb-Douglas CMC'!$C$7-'Cobb-Douglas CMC'!$C$6))/'Cobb-Douglas CMC'!$D$6)-(('Cobb-Douglas CMC'!$D$6/'Cobb-Douglas CMC'!$F$6)*'Oculto CMC'!C98) -> 135.00 | E98: 75 | F98: 7.50 | G98: 22.50 | H98: 25 | I98: 0.68 | J98: 51.00 | K98: 36.76 | M98: Unidades | N98: ponderador | O98: x1 | P98: x2 | Q98: x1lin | S98: x2lin | U98: Cota | V98: x1 | W98: x2 | Y98: Unidades | Z98: ponderador | AB98: x1 | AC98: x2 | AD98: vertice | AE98: x1line | AF98: x2line
A99: 8 | B99: 0.35 | C99: =('Cobb-Douglas CMC'!$C$8+('Cobb-Douglas CMC'!$C$7-'Cobb-Douglas CMC'!$C$6))*B99 -> 52.50 | D99: =(('Cobb-Douglas CMC'!$C$8+('Cobb-Douglas CMC'!$C$7-'Cobb-Douglas CMC'!$C$6))/'Cobb-Douglas CMC'!$D$6)-(('Cobb-Douglas CMC'!$D$6/'Cobb-Douglas CMC'!$F$6)*'Oculto CMC'!C99) -> 132.50 | E99: 75 | F99: 8.75 | G99: 26.25 | H99: 25 | I99: 0.76 | J99: 57.00 | K99: 32.89 | M99: 1 | N99: 0 | O99: =$P$25/$P$26*N99 -> 0 | P99: =($P$25/$P$27)-(($P$26/$P$27)*O99) -> 2.00 | Q99: =$P$124 -> 5.56 | R99: =$P$125*N99 -> 0 | S99: =$P$124*N99 -> 0 | T99: =$P$125 -> 1.00 | Y99: 1 | Z99: 0 | AA99: 1.00 | AB99: =$AB$121/$AB$122*Z99 -> 0 | AC99: =$AB$121/$AB$123*AA99 -> 20.00 | AD99: =AB124 -> 10.00 | AE99: =AD99+(($AB$119-AD99)*Z99) -> 10.00 | AF99: =AD99+(($AC$99-AD99)*Z99) -> 10.00
A100: 9 | B100: 0.40 | C100: =('Cobb-Douglas CMC'!$C$8+('Cobb-Douglas CMC'!$C$7-'Cobb-Douglas CMC'!$C$6))*B100 -> 60.00 | D100: =(('Cobb-Douglas CMC'!$C$8+('Cobb-Douglas CMC'!$C$7-'Cobb-Douglas CMC'!$C$6))/'Cobb-Douglas CMC'!$D$6)-(('Cobb-Douglas CMC'!$D$6/'Cobb-Douglas CMC'!$F$6)*'Oculto CMC'!C100) -> 130.00 | E100: 75 | F100: 10.00 | G100: 30.00 | H100: 25 | I100: 0.84 | J100: 63.00 | K100: 29.76 | M100: 2 | N100: 0.05 | O100: 0.56 | P100: 1.90 | Q100: =$P$124 -> 5.56 | R100: =$P$125*N100 -> 0.05 | S100: =$P$124*N100 -> 0.28 | T100: =$P$125 -> 1.00 | U100: =$U$25 -> 0.1 | V100: =O100 -> 0.56 | W100: =$Q$122-LN(V100) -> 3.30 | Y100: 2 | Z100: 0.05 | AA100: 0.95 | AB100: 1.00 | AC100: 19.00 | AD100: =AD99 -> 10.00 | AE100: 10.50 | AF100: 10.50
A101: 10 | B101: 0.45 | C101: =('Cobb-Douglas CMC'!$C$8+('Cobb-Douglas CMC'!$C$7-'Cobb-Douglas CMC'!$C$6))*B101 -> 67.50 | D101: =(('Cobb-Douglas CMC'!$C$8+('Cobb-Douglas CMC'!$C$7-'Cobb-Douglas CMC'!$C$6))/'Cobb-Douglas CMC'!$D$6)-(('Cobb-Douglas CMC'!$D$6/'Cobb-Douglas CMC'!$F$6)*'Oculto CMC'!C101) -> 127.50 | E101: 75 | F101: 11.25 | G101: 33.75 | H101: 25 | I101: 0.92 | J101: 69.00 | K101: 27.17 | M101: 3 | N101: 0.10 | O101: 1.11 | P101: 1.80 | Q101: 5.56 | R101: 0.10 | S101: 0.56 | T101: 1.00 | U101: =U100+$U$25 -> 0.2 | V101: =O101 -> 1.11 | W101: =$Q$122-LN(V101) -> 2.61 | Y101: 3 | Z101: 0.10 | AA101: 0.90 | AB101: 2.00 | AC101: 18.00 | AD101: 10.00 | AE101: 11.00 | AF101: 11.00
A102: 11 | B102: 0.50 | C102: =('Cobb-Douglas CMC'!$C$8+('Cobb-Douglas CMC'!$C$7-'Cobb-Douglas CMC'!$C$6))*B102 -> 75.00 | D102: =(('Cobb-Douglas CMC'!$C$8+('Cobb-Douglas CMC'!$C$7-'Cobb-Douglas CMC'!$C$6))/'Cobb-Douglas CMC'!$D$6)-(('Cobb-Douglas CMC'!$D$6/'Cobb-Douglas CMC'!$F$6)*'Oculto CMC'!C102) -> 125.00 | E102: 75 | F102: 12.50 | G102: 37.50 | H102: 25 | I102: 1 | J102: 75.00 | K102: 25.00 | M102: 4 | N102: 0.15 | O102: 1.67 | P102: 1.70 | Q102: 5.56 | R102: 0.15 | S102: 0.83 | T102: 1.00 | U102: 0.3 | V102: 1.67 | W102: 2.20 | Y102: 4 | Z102: 0.15 | AA102: 0.85 | AB102: 3.00 | AC102: 17.00 | AD102: 10.00 | AE102: 11.50 | AF102: 11.50
A103: 12 | B103: 0.55 | C103: =('Cobb-Douglas CMC'!$C$8+('Cobb-Douglas CMC'!$C$7-'Cobb-Douglas CMC'!$C$6))*B103 -> 82.50 | D103: =(('Cobb-Douglas CMC'!$C$8+('Cobb-Douglas CMC'!$C$7-'Cobb-Douglas CMC'!$C$6))/'Cobb-Douglas CMC'!$D$6)-(('Cobb-Douglas CMC'!$D$6/'Cobb-Douglas CMC'!$F$6)*'Oculto CMC'!C103) -> 122.50 | E103: 75 | F103: 13.75 | G103: 41.25 | H103: 25 | I103: 1.08 | J103: 81.00 | K103: 23.15 | M103: 5 | N103: 0.20 | O103: 2.22 | P103: 1.60 | Q103: 5.56 | R103: 0.20 | S103: 1.11 | T103: 1.00 | U103: 0.4 | V103: 2.22 | W103: 1.92 | Y103: 5 | Z103: 0.20 | AA103: 0.80 | AB103: 4.00 | AC103: 16.00 | AD103: 10.00 | AE103: 12.00 | AF103: 12.00
A104: 13 | B104: 0.60 | C104: =('Cobb-Douglas CMC'!$C$8+('Cobb-Douglas CMC'!$C$7-'Cobb-Douglas CMC'!$C$6))*B104 -> 90.00 | D104: =(('Cobb-Douglas CMC'!$C$8+('Cobb-Douglas CMC'!$C$7-'Cobb-Douglas CMC'!$C$6))/'Cobb-Douglas CMC'!$D$6)-(('Cobb-Douglas CMC'!$D$6/'Cobb-Douglas CMC'!$F$6)*'Oculto CMC'!C104) -> 120.00 | E104: 75 | F104: 15.00 | G104: 45.00 | H104: 25 | I104: 1.16 | J104: 87.00 | K104: 21.55 | M104: 6 | N104: 0.25 | O104: 2.78 | P104: 1.50 | Q104: 5.56 | R104: 0.25 | S104: 1.39 | T104: 1.00 | U104: 0.5 | V104: 2.78 | W104: 1.69 | Y104: 6 | Z104: 0.25 | AA104: 0.75 | AB104: 5.00 | AC104: 15.00 | AD104: 10.00 | AE104: 12.50 | AF104: 12.50
A105: 14 | B105: 0.65 | C105: =('Cobb-Douglas CMC'!$C$8+('Cobb-Douglas CMC'!$C$7-'Cobb-Douglas CMC'!$C$6))*B105 -> 97.50 | D105: =(('Cobb-Douglas CMC'!$C$8+('Cobb-Douglas CMC'!$C$7-'Cobb-Douglas CMC'!$C$6))/'Cobb-Douglas CMC'!$D$6)-(('Cobb-Douglas CMC'!$D$6/'Cobb-Douglas CMC'!$F$6)*'Oculto CMC'!C105) -> 117.50 | E105: 75 | F105: 16.25 | G105: 48.75 | H105: 25 | I105: 1.24 | J105: 93.00 | K105: 20.16 | M105: 7 | N105: 0.30 | O105: 3.33 | P105: 1.40 | Q105: 5.56 | R105: 0.30 | S105: 1.67 | T105: 1.00 | U105: 0.6 | V105: 3.33 | W105: 1.51 | Y105: 7 | Z105: 0.30 | AA105: 0.70 | AB105: 6.00 | AC105: 14.00 | AD105: 10.00 | AE105: 13.00 | AF105: 13.00
A106: 15 | B106: 0.70 | C106: =('Cobb-Douglas CMC'!$C$8+('Cobb-Douglas CMC'!$C$7-'Cobb-Douglas CMC'!$C$6))*B106 -> 105.00 | D106: =(('Cobb-Douglas CMC'!$C$8+('Cobb-Douglas CMC'!$C$7-'Cobb-Douglas CMC'!$C$6))/'Cobb-Douglas CMC'!$D$6)-(('Cobb-Douglas CMC'!$D$6/'Cobb-Douglas CMC'!$F$6)*'Oculto CMC'!C106) -> 115.00 | E106: 75 | F106: 17.50 | G106: 52.50 | H106: 25 | I106: 1.32 | J106: 99.00 | K106: 18.94 | M106: 8 | N106: 0.35 | O106: 3.89 | P106: 1.30 | Q106: 5.56 | R106: 0.35 | S106: 1.94 | T106: 1.00 | U106: 0.7 | V106: 3.89 | W106: 1.36 | Y106: 8 | Z106: 0.35 | AA106: 0.65 | AB106: 7.00 | AC106: 13.00 | AD106: 10.00 | AE106: 13.50 | AF106: 13.50
A107: 16 | B107: 0.75 | C107: =('Cobb-Douglas CMC'!$C$8+('Cobb-Douglas CMC'!$C$7-'Cobb-Douglas CMC'!$C$6))*B107 -> 112.50 | D107: =(('Cobb-Douglas CMC'!$C$8+('Cobb-Douglas CMC'!$C$7-'Cobb-Douglas CMC'!$C$6))/'Cobb-Douglas CMC'!$D$6)-(('Cobb-Douglas CMC'!$D$6/'Cobb-Douglas CMC'!$F$6)*'Oculto CMC'!C107) -> 112.50 | E107: 75 | F107: 18.75 | G107: 56.25 | H107: 25 | I107: 1.4 | J107: 105.00 | K107: 17.86 | M107: 9 | N107: 0.40 | O107: 4.44 | P107: 1.20 | Q107: 5.56 | R107: 0.40 | S107: 2.22 | T107: 1.00 | U107: 0.8 | V107: 4.44 | W107: 1.22 | Y107: 9 | Z107: 0.40 | AA107: 0.60 | AB107: 8.00 | AC107: 12.00 | AD107: 10.00 | AE107: 14.00 | AF107: 14.00
A108: 17 | B108: 0.80 | C108: =('Cobb-Douglas CMC'!$C$8+('Cobb-Douglas CMC'!$C$7-'Cobb-Douglas CMC'!$C$6))*B108 -> 120.00 | D108: =(('Cobb-Douglas CMC'!$C$8+('Cobb-Douglas CMC'!$C$7-'Cobb-Douglas CMC'!$C$6))/'Cobb-Douglas CMC'!$D$6)-(('Cobb-Douglas CMC'!$D$6/'Cobb-Douglas CMC'!$F$6)*'Oculto CMC'!C108) -> 110.00 | E108: 75 | F108: 20.00 | G108: 60.00 | H108: 25 | I108: 1.48 | J108: 111.00 | K108: 16.89 | M108: 10 | N108: 0.45 | O108: 5.00 | P108: 1.10 | Q108: 5.56 | R108: 0.45 | S108: 2.50 | T108: 1.00 | U108: 0.9 | V108: 5.00 | W108: 1.11 | Y108: 10 | Z108: 0.45 | AA108: 0.55 | AB108: 9.00 | AC108: 11.00 | AD108: 10.00 | AE108: 14.50 | AF108: 14.50
A109: 18 | B109: 0.85 | C109: =('Cobb-Douglas CMC'!$C$8+('Cobb-Douglas CMC'!$C$7-'Cobb-Douglas CMC'!$C$6))*B109 -> 127.50 | D109: =(('Cobb-Douglas CMC'!$C$8+('Cobb-Douglas CMC'!$C$7-'Cobb-Douglas CMC'!$C$6))/'Cobb-Douglas CMC'!$D$6)-(('Cobb-Douglas CMC'!$D$6/'Cobb-Douglas CMC'!$F$6)*'Oculto CMC'!C109) -> 107.50 | E109: 75 | F109: 21.25 | G109: 63.75 | H109: 25 | I109: 1.56 | J109: 117.00 | K109: 16.03 | M109: 11 | N109: 0.50 | O109: 5.56 | P109: 1.00 | Q109: 5.56 | R109: 0.50 | S109: 2.78 | T109: 1.00 | U109: 1 | V109: 5.56 | W109: 1.00 | Y109: 11 | Z109: 0.50 | AA109: 0.50 | AB109: 10.00 | AC109: 10.00 | AD109: 10.00 | AE109: 15.00 | AF109: 15.00
A110: 19 | B110: 0.90 | C110: =('Cobb-Douglas CMC'!$C$8+('Cobb-Douglas CMC'!$C$7-'Cobb-Douglas CMC'!$C$6))*B110 -> 135.00 | D110: =(('Cobb-Douglas CMC'!$C$8+('Cobb-Douglas CMC'!$C$7-'Cobb-Douglas CMC'!$C$6))/'Cobb-Douglas CMC'!$D$6)-(('Cobb-Douglas CMC'!$D$6/'Cobb-Douglas CMC'!$F$6)*'Oculto CMC'!C110) -> 105.00 | E110: 75 | F110: 22.50 | G110: 67.50 | H110: 25 | I110: 1.64 | J110: 123.00 | K110: 15.24 | M110: 12 | N110: 0.55 | O110: 6.11 | P110: 0.90 | Q110: 5.56 | R110: 0.55 | S110: 3.06 | T110: 1.00 | U110: =U109+$U$25 -> 1.1 | V110: 6.11 | W110: 0.90 | Y110: 12 | Z110: 0.55 | AA110: 0.45 | AB110: 11.00 | AC110: 9.00 | AD110: 10.00 | AE110: 15.50 | AF110: 15.50
A111: 20 | B111: 0.95 | C111: =('Cobb-Douglas CMC'!$C$8+('Cobb-Douglas CMC'!$C$7-'Cobb-Douglas CMC'!$C$6))*B111 -> 142.50 | D111: =(('Cobb-Douglas CMC'!$C$8+('Cobb-Douglas CMC'!$C$7-'Cobb-Douglas CMC'!$C$6))/'Cobb-Douglas CMC'!$D$6)-(('Cobb-Douglas CMC'!$D$6/'Cobb-Douglas CMC'!$F$6)*'Oculto CMC'!C111) -> 102.50 | E111: 75 | F111: 23.75 | G111: 71.25 | H111: 25 | I111: 1.72 | J111: 129.00 | K111: 14.53 | M111: 13 | N111: 0.60 | O111: 6.67 | P111: 0.80 | Q111: 5.56 | R111: 0.60 | S111: 3.33 | T111: 1.00 | U111: 1.2 | V111: 6.67 | W111: 0.82 | Y111: 13 | Z111: 0.60 | AA111: 0.40 | AB111: 12.00 | AC111: 8.00 | AD111: 10.00 | AE111: 16.00 | AF111: 16.00
A112: 21 | B112: 1.00 | C112: =('Cobb-Douglas CMC'!$C$8+('Cobb-Douglas CMC'!$C$7-'Cobb-Douglas CMC'!$C$6))*B112 -> 150.00 | D112: =(('Cobb-Douglas CMC'!$C$8+('Cobb-Douglas CMC'!$C$7-'Cobb-Douglas CMC'!$C$6))/'Cobb-Douglas CMC'!$D$6)-(('Cobb-Douglas CMC'!$D$6/'Cobb-Douglas CMC'!$F$6)*'Oculto CMC'!C112) -> 100.00 | E112: 75 | F112: 25.00 | G112: 75.00 | H112: 25 | I112: 1.8 | J112: 135.00 | K112: 13.89 | M112: 14 | N112: 0.65 | O112: 7.22 | P112: 0.70 | Q112: 5.56 | R112: 0.65 | S112: 3.61 | T112: 1.00 | U112: 1.3 | V112: 7.22 | W112: 0.74 | Y112: 14 | Z112: 0.65 | AA112: 0.35 | AB112: 13.00 | AC112: 7.00 | AD112: 10.00 | AE112: 16.50 | AF112: 16.50
M113: 15 | N113: 0.70 | O113: 7.78 | P113: 0.60 | Q113: 5.56 | R113: 0.70 | S113: 3.89 | T113: 1.00 | U113: 1.4 | V113: 7.78 | W113: 0.66 | Y113: 15 | Z113: 0.70 | AA113: 0.30 | AB113: 14.00 | AC113: 6.00 | AD113: 10.00 | AE113: 17.00 | AF113: 17.00
E114: x1 | F114: x2 | M114: 16 | N114: 0.75 | O114: 8.33 | P114: 0.50 | Q114: 5.56 | R114: 0.75 | S114: 4.17 | T114: 1.00 | U114: 1.5 | V114: 8.33 | W114: 0.59 | Y114: 16 | Z114: 0.75 | AA114: 0.25 | AB114: 15.00 | AC114: 5.00 | AD114: 10.00 | AE114: 17.50 | AF114: 17.50
E115: ='Cobb-Douglas CMC'!$D$26 -> 0.5 | F115: ='Cobb-Douglas CMC'!$F$26 -> 0.5 | M115: 17 | N115: 0.80 | O115: 8.89 | P115: 0.40 | Q115: 5.56 | R115: 0.80 | S115: 4.44 | T115: 1.00 | U115: 1.6 | V115: 8.89 | W115: 0.53 | Y115: 17 | Z115: 0.80 | AA115: 0.20 | AB115: 16.00 | AC115: 4.00 | AD115: 10.00 | AE115: 18.00 | AF115: 18.00
E116: ='Cobb-Douglas CMC'!$D$24*('Cobb-Douglas CMC'!$C$8+('Cobb-Douglas CMC'!$C$7-'Cobb-Douglas CMC'!$C$6))/'Cobb-Douglas CMC'!$D$8 -> 75 | F116: ='Cobb-Douglas CMC'!$F$24*('Cobb-Douglas CMC'!$C$8+('Cobb-Douglas CMC'!$C$7-'Cobb-Douglas CMC'!$C$6))/'Cobb-Douglas CMC'!$F$6 -> 25 | M116: 18 | N116: 0.85 | O116: 9.44 | P116: 0.30 | Q116: 5.56 | R116: 0.85 | S116: 4.72 | T116: 1.00 | U116: 1.7 | V116: 9.44 | W116: 0.47 | Y116: 18 | Z116: 0.85 | AA116: 0.15 | AB116: 17.00 | AC116: 3.00 | AD116: 10.00 | AE116: 18.50 | AF116: 18.50
F117: =(E116^(E115))*(F116^(F115)) -> 43.30127019 | M117: 19 | N117: 0.90 | O117: 10.00 | P117: 0.20 | Q117: 5.56 | R117: 0.90 | S117: 5.00 | T117: 1.00 | U117: 1.8 | V117: 10.00 | W117: 0.41 | Y117: 19 | Z117: 0.90 | AA117: 0.10 | AB117: 18.00 | AC117: 2.00 | AD117: 10.00 | AE117: 19.00 | AF117: 19.00
M118: 20 | N118: 0.95 | O118: 10.56 | P118: 0.10 | Q118: 5.56 | R118: 0.95 | S118: 5.28 | T118: 1.00 | U118: 1.9 | V118: 10.56 | W118: 0.36 | Y118: 20 | Z118: 0.95 | AA118: 0.05 | AB118: 19.00 | AC118: 1.00 | AD118: 10.00 | AE118: 19.50 | AF118: 19.50
M119: 21 | N119: 1.00 | O119: 11.11 | P119: 0 | Q119: 5.56 | R119: 1.00 | S119: 5.56 | T119: 1.00 | U119: 2 | V119: 11.11 | W119: 0.31 | Y119: 21 | Z119: 1.00 | AA119: 0 | AB119: 20.00 | AC119: 0 | AD119: 10.00 | AE119: 20.00 | AF119: 20.00
A120: COBB-DOUGLAS 0 | C120: Recta Presupuestaria | J120: Curva de Indiferencia
A121: Unidades | B121: ponderador | C121: x1 | D121: x2 | E121: x9lin | G121: x10lin | I121: Cota | J121: x1 | K121: x2 | O121: m | P121: =P89+(P89-P57) -> 100.00 | Q121: k | U121: =1/10 -> 0.1 | AA121: m | AB121: =AB89+(AB89-AB57) -> 100
A122: 1 | B122: 0 | C122: =$D$171*B122 -> 0 | D122: =$B$169+($C$169*C122) -> 50.00 | E122: =$E$146 -> 75 | F122: =B122*$F$146 -> 0 | G122: =B122*$E$146 -> 0 | H122: =$F$146 -> 75 | O122: p1 | P122: =P90+(P90-P58) -> 9 | Q122: =LN(P124)+P125 -> 2.71 | AA122: p1 | AB122: =AB90 -> 5
A123: 2 | B123: 0.05 | C123: 10.71 | D123: 47.50 | E123: 75 | F123: 3.75 | G123: 3.75 | H123: 75 | I123: 0.28 | J123: =I123*$E$146 -> 21.00 | K123: =($F$147/(J123^($E$145)))^(1/$F$145) -> 267.86 | O123: p2 | P123: =P91 -> 50 | AA123: p2 | AB123: =AB91 -> 5
A124: 3 | B124: 0.10 | C124: 21.43 | D124: 45.00 | E124: 75 | F124: 7.50 | G124: 7.50 | H124: 75 | I124: 0.36 | J124: 27.00 | K124: 208.33 | O124: x1* | P124: =P123/P122 -> 5.56 | AA124: x1 | AB124: =AB121/(AB123+AB122) -> 10
A125: 4 | B125: 0.15 | C125: 32.14 | D125: 42.50 | E125: 75 | F125: 11.25 | G125: 11.25 | H125: 75 | I125: 0.44 | J125: 33.00 | K125: 170.45 | O125: x2* | P125: =P121/P123-1 -> 1.00 | AA125: x2 | AB125: =AB124 -> 10
A126: 5 | B126: 0.20 | C126: 42.86 | D126: 40.00 | E126: 75 | F126: 15.00 | G126: 15.00 | H126: 75 | I126: 0.52 | J126: 39.00 | K126: 144.23
A127: 6 | B127: 0.25 | C127: 53.57 | D127: 37.50 | E127: 75 | F127: 18.75 | G127: 18.75 | H127: 75 | I127: 0.6 | J127: 45.00 | K127: 125.00
A128: 7 | B128: 0.30 | C128: 64.29 | D128: 35.00 | E128: 75 | F128: 22.50 | G128: 22.50 | H128: 75 | I128: 0.68 | J128: 51.00 | K128: 110.29
A129: 8 | B129: 0.35 | C129: 75.00 | D129: 32.50 | E129: 75 | F129: 26.25 | G129: 26.25 | H129: 75 | I129: 0.76 | J129: 57.00 | K129: 98.68 | M129: REGULARES 0 | O129: Recta Presupuestaria | V129: Curva de Indiferencia | Y129: COMP. PERFECTOS 0 | AB129: Recta Presupuestaria | AD129: Curva de Indiferencia
A130: 9 | B130: 0.40 | C130: 85.71 | D130: 30.00 | E130: 75 | F130: 30.00 | G130: 30.00 | H130: 75 | I130: 0.84 | J130: 63.00 | K130: 89.29 | M130: Unidades | N130: ponderador | O130: x1 | P130: x2 | Q130: x1lin | S130: x2lin | U130: Cota | V130: x1 | W130: x2 | Y130: Unidades | Z130: ponderador | AB130: x1 | AC130: x2 | AD130: vertice | AE130: x1line | AF130: x2line
A131: 10 | B131: 0.45 | C131: 96.43 | D131: 27.50 | E131: 75 | F131: 33.75 | G131: 33.75 | H131: 75 | I131: 0.92 | J131: 69.00 | K131: 81.52 | M131: 1 | N131: 0 | O131: =$P$153/$P$26*N131 -> 0 | P131: =($P$153/$P$27)-(($P$26/$P$27)*O131) -> 2.00 | Q131: =$P$156 -> 5.56 | R131: =$P$157*N131 -> 0 | S131: =$P$156*N131 -> 0 | T131: =$P$157 -> 1.00 | Y131: 1 | Z131: 0 | AA131: 1.00 | AB131: =$AB$153/$AB$154*Z131 -> 0 | AC131: =$AB$153/$AB$155*AA131 -> 20.00 | AD131: =AB156 -> 10.00 | AE131: =AD131+(($AB$151-AD131)*Z131) -> 10.00 | AF131: =AD131+(($AC$131-AD131)*Z131) -> 10.00
A132: 11 | B132: 0.50 | C132: 107.14 | D132: 25.00 | E132: 75 | F132: 37.50 | G132: 37.50 | H132: 75 | I132: 1 | J132: 75.00 | K132: 75.00 | M132: 2 | N132: 0.05 | O132: 0.56 | P132: 1.90 | Q132: =$P$156 -> 5.56 | R132: =$P$157*N132 -> 0.05 | S132: =$P$156*N132 -> 0.28 | T132: =$P$157 -> 1.00 | U132: =$U$25 -> 0.1 | V132: =O132 -> 0.56 | W132: =$Q$154-LN(V132) -> 3.30 | Y132: 2 | Z132: 0.05 | AA132: 0.95 | AB132: 1.00 | AC132: 19.00 | AD132: =AD131 -> 10.00 | AE132: 10.50 | AF132: 10.50
A133: 12 | B133: 0.55 | C133: 117.86 | D133: 22.50 | E133: 75 | F133: 41.25 | G133: 41.25 | H133: 75 | I133: 1.08 | J133: 81.00 | K133: 69.44 | M133: 3 | N133: 0.10 | O133: 1.11 | P133: 1.80 | Q133: 5.56 | R133: 0.10 | S133: 0.56 | T133: 1.00 | U133: =U132+$U$25 -> 0.2 | V133: =O133 -> 1.11 | W133: =$Q$154-LN(V133) -> 2.61 | Y133: 3 | Z133: 0.10 | AA133: 0.90 | AB133: 2.00 | AC133: 18.00 | AD133: 10.00 | AE133: 11.00 | AF133: 11.00
A134: 13 | B134: 0.60 | C134: 128.57 | D134: 20.00 | E134: 75 | F134: 45.00 | G134: 45.00 | H134: 75 | I134: 1.16 | J134: 87.00 | K134: 64.66 | M134: 4 | N134: 0.15 | O134: 1.67 | P134: 1.70 | Q134: 5.56 | R134: 0.15 | S134: 0.83 | T134: 1.00 | U134: 0.3 | V134: 1.67 | W134: 2.20 | Y134: 4 | Z134: 0.15 | AA134: 0.85 | AB134: 3.00 | AC134: 17.00 | AD134: 10.00 | AE134: 11.50 | AF134: 11.50
A135: 14 | B135: 0.65 | C135: 139.29 | D135: 17.50 | E135: 75 | F135: 48.75 | G135: 48.75 | H135: 75 | I135: 1.24 | J135: 93.00 | K135: 60.48 | M135: 5 | N135: 0.20 | O135: 2.22 | P135: 1.60 | Q135: 5.56 | R135: 0.20 | S135: 1.11 | T135: 1.00 | U135: 0.4 | V135: 2.22 | W135: 1.92 | Y135: 5 | Z135: 0.20 | AA135: 0.80 | AB135: 4.00 | AC135: 16.00 | AD135: 10.00 | AE135: 12.00 | AF135: 12.00
A136: 15 | B136: 0.70 | C136: 150.00 | D136: 15.00 | E136: 75 | F136: 52.50 | G136: 52.50 | H136: 75 | I136: 1.32 | J136: 99.00 | K136: 56.82 | M136: 6 | N136: 0.25 | O136: 2.78 | P136: 1.50 | Q136: 5.56 | R136: 0.25 | S136: 1.39 | T136: 1.00 | U136: 0.5 | V136: 2.78 | W136: 1.69 | Y136: 6 | Z136: 0.25 | AA136: 0.75 | AB136: 5.00 | AC136: 15.00 | AD136: 10.00 | AE136: 12.50 | AF136: 12.50
A137: 16 | B137: 0.75 | C137: 160.71 | D137: 12.50 | E137: 75 | F137: 56.25 | G137: 56.25 | H137: 75 | I137: 1.4 | J137: 105.00 | K137: 53.57 | M137: 7 | N137: 0.30 | O137: 3.33 | P137: 1.40 | Q137: 5.56 | R137: 0.30 | S137: 1.67 | T137: 1.00 | U137: 0.6 | V137: 3.33 | W137: 1.51 | Y137: 7 | Z137: 0.30 | AA137: 0.70 | AB137: 6.00 | AC137: 14.00 | AD137: 10.00 | AE137: 13.00 | AF137: 13.00
A138: 17 | B138: 0.80 | C138: 171.43 | D138: 10.00 | E138: 75 | F138: 60.00 | G138: 60.00 | H138: 75 | I138: 1.48 | J138: 111.00 | K138: 50.68 | M138: 8 | N138: 0.35 | O138: 3.89 | P138: 1.30 | Q138: 5.56 | R138: 0.35 | S138: 1.94 | T138: 1.00 | U138: 0.7 | V138: 3.89 | W138: 1.36 | Y138: 8 | Z138: 0.35 | AA138: 0.65 | AB138: 7.00 | AC138: 13.00 | AD138: 10.00 | AE138: 13.50 | AF138: 13.50
A139: 18 | B139: 0.85 | C139: 182.14 | D139: 7.50 | E139: 75 | F139: 63.75 | G139: 63.75 | H139: 75 | I139: 1.56 | J139: 117.00 | K139: 48.08 | M139: 9 | N139: 0.40 | O139: 4.44 | P139: 1.20 | Q139: 5.56 | R139: 0.40 | S139: 2.22 | T139: 1.00 | U139: 0.8 | V139: 4.44 | W139: 1.22 | Y139: 9 | Z139: 0.40 | AA139: 0.60 | AB139: 8.00 | AC139: 12.00 | AD139: 10.00 | AE139: 14.00 | AF139: 14.00
A140: 19 | B140: 0.90 | C140: 192.86 | D140: 5.00 | E140: 75 | F140: 67.50 | G140: 67.50 | H140: 75 | I140: 1.64 | J140: 123.00 | K140: 45.73 | M140: 10 | N140: 0.45 | O140: 5.00 | P140: 1.10 | Q140: 5.56 | R140: 0.45 | S140: 2.50 | T140: 1.00 | U140: 0.9 | V140: 5.00 | W140: 1.11 | Y140: 10 | Z140: 0.45 | AA140: 0.55 | AB140: 9.00 | AC140: 11.00 | AD140: 10.00 | AE140: 14.50 | AF140: 14.50
A141: 20 | B141: 0.95 | C141: 203.57 | D141: 2.50 | E141: 75 | F141: 71.25 | G141: 71.25 | H141: 75 | I141: 1.72 | J141: 129.00 | K141: 43.60 | M141: 11 | N141: 0.50 | O141: 5.56 | P141: 1.00 | Q141: 5.56 | R141: 0.50 | S141: 2.78 | T141: 1.00 | U141: 1 | V141: 5.56 | W141: 1.00 | Y141: 11 | Z141: 0.50 | AA141: 0.50 | AB141: 10.00 | AC141: 10.00 | AD141: 10.00 | AE141: 15.00 | AF141: 15.00
A142: 21 | B142: 1.00 | C142: 214.29 | D142: 0 | E142: 75 | F142: 75.00 | G142: 75.00 | H142: 75 | I142: 1.8 | J142: 135.00 | K142: 41.67 | M142: 12 | N142: 0.55 | O142: 6.11 | P142: 0.90 | Q142: 5.56 | R142: 0.55 | S142: 3.06 | T142: 1.00 | U142: =U141+$U$25 -> 1.1 | V142: 6.11 | W142: 0.90 | Y142: 12 | Z142: 0.55 | AA142: 0.45 | AB142: 11.00 | AC142: 9.00 | AD142: 10.00 | AE142: 15.50 | AF142: 15.50
M143: 13 | N143: 0.60 | O143: 6.67 | P143: 0.80 | Q143: 5.56 | R143: 0.60 | S143: 3.33 | T143: 1.00 | U143: 1.2 | V143: 6.67 | W143: 0.82 | Y143: 13 | Z143: 0.60 | AA143: 0.40 | AB143: 12.00 | AC143: 8.00 | AD143: 10.00 | AE143: 16.00 | AF143: 16.00
E144: x1 | F144: x2 | M144: 14 | N144: 0.65 | O144: 7.22 | P144: 0.70 | Q144: 5.56 | R144: 0.65 | S144: 3.61 | T144: 1.00 | U144: 1.3 | V144: 7.22 | W144: 0.74 | Y144: 14 | Z144: 0.65 | AA144: 0.35 | AB144: 13.00 | AC144: 7.00 | AD144: 10.00 | AE144: 16.50 | AF144: 16.50
E145: =B177 -> 0.5 | F145: =D176 -> 0.5 | M145: 15 | N145: 0.70 | O145: 7.78 | P145: 0.60 | Q145: 5.56 | R145: 0.70 | S145: 3.89 | T145: 1.00 | U145: 1.4 | V145: 7.78 | W145: 0.66 | Y145: 15 | Z145: 0.70 | AA145: 0.30 | AB145: 14.00 | AC145: 6.00 | AD145: 10.00 | AE145: 17.00 | AF145: 17.00
E146: ='Cobb-Douglas CMC'!$D$24*('Cobb-Douglas CMC'!$C$6-('Cobb-Douglas CMC'!$C$7-'Cobb-Douglas CMC'!$C$6))/'Cobb-Douglas CMC'!$D$8 -> 75 | F146: ='Cobb-Douglas CMC'!$F$24*(('Cobb-Douglas CMC'!$C$6-('Cobb-Douglas CMC'!$C$7-'Cobb-Douglas CMC'!$C$6)/'Cobb-Douglas CMC'!$F$6)) -> 75 | M146: 16 | N146: 0.75 | O146: 8.33 | P146: 0.50 | Q146: 5.56 | R146: 0.75 | S146: 4.17 | T146: 1.00 | U146: 1.5 | V146: 8.33 | W146: 0.59 | Y146: 16 | Z146: 0.75 | AA146: 0.25 | AB146: 15.00 | AC146: 5.00 | AD146: 10.00 | AE146: 17.50 | AF146: 17.50
F147: =(E146^(E145))*(F146^(F145)) -> 75 | M147: 17 | N147: 0.80 | O147: 8.89 | P147: 0.40 | Q147: 5.56 | R147: 0.80 | S147: 4.44 | T147: 1.00 | U147: 1.6 | V147: 8.89 | W147: 0.53 | Y147: 17 | Z147: 0.80 | AA147: 0.20 | AB147: 16.00 | AC147: 4.00 | AD147: 10.00 | AE147: 18.00 | AF147: 18.00
M148: 18 | N148: 0.85 | O148: 9.44 | P148: 0.30 | Q148: 5.56 | R148: 0.85 | S148: 4.72 | T148: 1.00 | U148: 1.7 | V148: 9.44 | W148: 0.47 | Y148: 18 | Z148: 0.85 | AA148: 0.15 | AB148: 17.00 | AC148: 3.00 | AD148: 10.00 | AE148: 18.50 | AF148: 18.50
M149: 19 | N149: 0.90 | O149: 10.00 | P149: 0.20 | Q149: 5.56 | R149: 0.90 | S149: 5.00 | T149: 1.00 | U149: 1.8 | V149: 10.00 | W149: 0.41 | Y149: 19 | Z149: 0.90 | AA149: 0.10 | AB149: 18.00 | AC149: 2.00 | AD149: 10.00 | AE149: 19.00 | AF149: 19.00
A150: CURVA INGRESO-CONSUMO | M150: 20 | N150: 0.95 | O150: 10.56 | P150: 0.10 | Q150: 5.56 | R150: 0.95 | S150: 5.28 | T150: 1.00 | U150: 1.9 | V150: 10.56 | W150: 0.36 | Y150: 20 | Z150: 0.95 | AA150: 0.05 | AB150: 19.00 | AC150: 1.00 | AD150: 10.00 | AE150: 19.50 | AF150: 19.50
A151: CURVA CERO | C151: =IF(G152=H152,C152,0) -> 75 | D151: =IF(G152=H152,D152,0) -> 25 | M151: 21 | N151: 1.00 | O151: 11.11 | P151: 0 | Q151: 5.56 | R151: 1.00 | S151: 5.56 | T151: 1.00 | U151: 2 | V151: 11.11 | W151: 0.31 | Y151: 21 | Z151: 1.00 | AA151: 0 | AB151: 20.00 | AC151: 0 | AD151: 10.00 | AE151: 20.00 | AF151: 20.00
A152: CURVA UNO | C152: =E27 -> 75 | D152: =F27 -> 25 | E152: =0 -> 0 | F152: =MAX(D152:D156) -> 25 | G152: =C152+C153+C154 -> 225 | H152: =C152*3 -> 225
A153: CURVA DOS | C153: =E56 -> 75 | D153: =F56 -> 25 | E153: =MAX(C152:C156) -> 75 | F153: =MAX(D152:D156) -> 25 | O153: m | P153: =P25 -> 100.00 | Q153: k | U153: =1/10 -> 0.1 | AA153: m | AB153: =AB25-(AB57-AB25) -> 100
A154: CURVA TRES | C154: =E85 -> 75 | D154: =F85 -> 25 | O154: p1 | P154: =P26 -> 9 | Q154: =LN(P156)+P157 -> 2.71 | AA154: p1 | AB154: =AB122 -> 5
A155: CURVA CUATRO | C155: =IF(G152=H152,C152,E116) -> 75 | D155: =F116 -> 25 | O155: p2 | P155: =P123 -> 50 | AA155: p2 | AB155: =AB27 -> 5
O156: x1* | P156: =P155/P154 -> 5.56 | AA156: x1 | AB156: =AB153/(AB155+AB154) -> 10
O157: x2* | P157: =P153/P155-1 -> 1.00 | AA157: x2 | AB157: =AB156 -> 10
A161: RECTA PRESUPUESTARIA
A162: m | B162: p1 | C162: x1 | D162: p2 | E162: x2 | N162: 0 | O162: 1 | P162: 2 | Q162: 3 | R162: 4 | T162: =P25+P57+P89 -> 300.00 | U162: =P25*3 -> 300.00 | Z162: 0 | AA162: 1 | AB162: 2 | AC162: 3 | AD162: 4 | AF162: =AB25+AB57+AB89 -> 300.00 | AG162: =AB25*3 -> 300.00
A163: ='Cobb-Douglas CMC'!$C$6 -> 150.0 | B163: =LARGE('Cobb-Douglas CMC'!D6:D8,1)*1.4 -> 1.4 | C163: =D168 -> 75.0 | D163: ='Cobb-Douglas CMC'!$F$6 -> 3.0 | E163: =A168 -> 15.0 | M163: x1* | N163: =IF(T162=U162,IF(T162=U162,O163,0),O163) -> 5.56 | O163: =P28 -> 5.56 | P163: =P60 -> 5.56 | Q163: =P92 -> 5.56 | R163: =P124 -> 5.56 | Y163: x1* | Z163: =IF(AF162=AG162,AA163,AB156) -> 10.00 | AA163: =AB28 -> 10.00 | AB163: =AB60 -> 10.00 | AC163: =AB92 -> 10.00 | AD163: =IF(AF162=AG162,Z163,AB124) -> 10.00
A164: ='Cobb-Douglas CMC'!$C$6 -> 150.0 | B164: =SMALL('Cobb-Douglas CMC'!D6:D8,1)*0.7 -> 0.7 | C164: =D169 -> 75.0 | D164: ='Cobb-Douglas CMC'!$F$6 -> 3.0 | E164: =A169 -> 32.5 | M164: x2* | N164: =IF(T162=U162,P157,0) -> 1.00 | O164: =P29 -> 1.00 | P164: =P61 -> 1.00 | Q164: =P93 -> 1.00 | R164: =P125 -> 1.00 | Y164: x2* | Z164: =IF(AF162=AG162,AA164,AB157) -> 10.00 | AA164: =AB29 -> 10.00 | AB164: =AB61 -> 10.00 | AC164: =AB93 -> 10.00 | AD164: =IF(AF162=AG162,AA164,AB125) -> 10.00
A166: PARÁMETROS DE LA RECTA PRESUPUESTARIA
A167: x2 | B167: b0 | C167: b1 | D167: x1
A168: =B168+(C168*D168) -> 15.0 | B168: =A163/D163 -> 50.0 | C168: =B163/D163*-1 -> (0.5) | D168: =E116 -> 75.0
A169: =B169+(C169*D169) -> 32.5 | B169: =A164/D164 -> 50.0 | C169: =B164/D164*-1 -> (0.2) | D169: =E146 -> 75.0
A171: Máxima cantidad de x1 | C171: =A163/B163 -> 107.1 | D171: =A164/B164 -> 214.3
A172: Máxima cantidad de x2 | C172: =$A$163/$D$164 -> 50.0 | D172: =$A$164/$D$164 -> 50.0
A173: Precio Relativo (<0) | C173: =(B163/D163)*(-1) -> (0.5) | D173: =(B164/D164)*(-1) -> (0.2)
A175: k | B175: a | C175: x1* | D175: 1-a | E175: x2*
A176: =F117 -> 43.3 | B176: ='Cobb-Douglas CMC'!$D$24 -> 0.50 | C176: =E116 -> 75.0 | D176: =1-B176 -> 0.50 | E176: =F116 -> 25.0
A177: =F147 -> 75.0 | B177: ='Cobb-Douglas CMC'!$D$24 -> 0.50 | C177: =E146 -> 75.0 | D177: =1-B177 -> 0.50 | E177: =F146 -> 75.0

Sheet Oculto CPC (hidden)
A1: COBB-DOUGLAS 1 | C1: Recta Presupuestaria | J1: Curva de Indiferencia | M1: CUASILINEALES | O1: Recta Presupuestaria | V1: Curva de Indiferencia | Y1: COMP. PERFECTOS 1 | AB1: Recta Presupuestaria | AD1: Curva de Indiferencia
A2: Unidades | B2: ponderador | C2: x1 | D2: x2 | E2: x1lin | G2: x2lin | I2: Cota | J2: x1 | K2: x2 | M2: Unidades | N2: ponderador | O2: x1 | P2: x2 | Q2: x1lin | S2: x2lin | U2: Cota | V2: x1 | W2: x2 | Y2: Unidades | Z2: ponderador | AB2: x1 | AC2: x2 | AD2: vertice | AE2: x1line | AF2: x2line
A3: 1 | B3: 0 | C3: =('Cobb-Douglas CPC'!$E$18)*B3 -> 0 | D3: ='Cobb-Douglas CPC'!$D$13+('Cobb-Douglas CPC'!$E$13*'Oculto CPC'!C3) -> 16.67 | E3: =$E$27 -> 4 | F3: =$F$27*B3 -> 0 | G3: =$E$27*'Oculto CPC'!B3 -> 0 | H3: =$F$27 -> 10 | M3: 1 | N3: 0 | O3: =$P$25/$P$26*N3 -> 0 | P3: =($P$25/$P$27)-(($P$26/$P$27)*O3) -> 1.50 | Q3: =$P$28 -> 200.00 | R3: =$P$29*N3 -> 0 | S3: =Q3*N3 -> 0 | T3: =$P$29 -> 0.50 | V3: =O3 -> 0 | Y3: 1 | Z3: 0 | AA3: 1.00 | AB3: =$AB$25/$AB$26*Z3 -> 0 | AC3: =$AB$25/$AB$27*AA3 -> 40.00 | AD3: =AB28 -> 13.33 | AE3: =AD3+(($AB$23-AD3)*Z3) -> 13.33 | AF3: =AD3+(($AC$3-AD3)*Z3) -> 13.33
A4: 2 | B4: 0.05 | C4: =('Cobb-Douglas CPC'!$E$18)*B4 -> 0.50 | D4: ='Cobb-Douglas CPC'!$D$13+('Cobb-Douglas CPC'!$E$13*'Oculto CPC'!C4) -> 15.83 | E4: =$E$27 -> 4 | F4: 0.50 | G4: =$E$27*'Oculto CPC'!B4 -> 0.20 | H4: =$F$27 -> 10 | I4: 0.28 | J4: =$E$27*I4 -> 1.12 | K4: =($F$28/(J4^($E$26)))^(1/$F$26) -> 23.36 | M4: 2 | N4: 0.05 | O4: =$P$25/$P$26*N4 -> 15.00 | P4: =($P$25/$P$27)-(($P$26/$P$27)*O4) -> 1.43 | Q4: =$P$28 -> 200.00 | R4: =$P$29*N4 -> 0.03 | S4: =Q4*N4 -> 10.00 | T4: =$P$29 -> 0.50 | U4: =$U$25 -> 0.1 | V4: =O4 -> 15.00 | W4: =$Q$26-LN(V4) -> 3.09 | Y4: 2 | Z4: 0.05 | AA4: 0.95 | AB4: =$AB$25/$AB$26*Z4 -> 1.00 | AC4: =$AB$25/$AB$27*AA4 -> 38.00 | AD4: =AD3 -> 13.33 | AE4: =AD4+(($AB$23-AD4)*Z4) -> 13.67 | AF4: =AD4+(($AC$3-AD4)*Z4) -> 14.67
A5: 3 | B5: 0.10 | C5: =('Cobb-Douglas CPC'!$E$18)*B5 -> 1.00 | D5: ='Cobb-Douglas CPC'!$D$13+('Cobb-Douglas CPC'!$E$13*'Oculto CPC'!C5) -> 15.00 | E5: 4 | F5: 1.00 | G5: =$E$27*'Oculto CPC'!B5 -> 0.40 | H5: 10 | I5: 0.36 | J5: =$E$27*I5 -> 1.44 | K5: =($F$28/(J5^($E$26)))^(1/$F$26) -> 19.76 | M5: 3 | N5: 0.10 | O5: =$P$25/$P$26*N5 -> 30.00 | P5: 1.35 | Q5: 200.00 | R5: 0.05 | S5: 20.00 | T5: 0.50 | U5: =U4+$U$25 -> 0.2 | V5: =O5 -> 30.00 | W5: =$Q$26-LN(V5) -> 2.40 | Y5: 3 | Z5: 0.10 | AA5: 0.90 | AB5: 2.00 | AC5: 36.00 | AD5: =AD4 -> 13.33 | AE5: 14.00 | AF5: 16.00
A6: 4 | B6: 0.15 | C6: =('Cobb-Douglas CPC'!$E$18)*B6 -> 1.50 | D6: ='Cobb-Douglas CPC'!$D$13+('Cobb-Douglas CPC'!$E$13*'Oculto CPC'!C6) -> 14.17 | E6: 4 | F6: 1.50 | G6: =$E$27*'Oculto CPC'!B6 -> 0.60 | H6: 10 | I6: 0.44 | J6: 1.76 | K6: 17.29 | M6: 4 | N6: 0.15 | O6: 45.00 | P6: 1.28 | Q6: 200.00 | R6: 0.08 | S6: 30.00 | T6: 0.50 | U6: =U5+$U$25 -> 0.3 | V6: 45.00 | W6: 1.99 | Y6: 4 | Z6: 0.15 | AA6: 0.85 | AB6: 3.00 | AC6: 34.00 | AD6: 13.33 | AE6: 14.33 | AF6: 17.33
A7: 5 | B7: 0.20 | C7: =('Cobb-Douglas CPC'!$E$18)*B7 -> 2.00 | D7: ='Cobb-Douglas CPC'!$D$13+('Cobb-Douglas CPC'!$E$13*'Oculto CPC'!C7) -> 13.33 | E7: 4 | F7: 2.00 | G7: =$E$27*'Oculto CPC'!B7 -> 0.80 | H7: 10 | I7: 0.52 | J7: 2.08 | K7: 15.46 | M7: 5 | N7: 0.20 | O7: 60.00 | P7: 1.20 | Q7: 200.00 | R7: 0.10 | S7: 40.00 | T7: 0.50 | U7: 0.4 | V7: 60.00 | W7: 1.70 | Y7: 5 | Z7: 0.20 | AA7: 0.80 | AB7: 4.00 | AC7: 32.00 | AD7: 13.33 | AE7: 14.67 | AF7: 18.67
A8: 6 | B8: 0.25 | C8: =('Cobb-Douglas CPC'!$E$18)*B8 -> 2.50 | D8: ='Cobb-Douglas CPC'!$D$13+('Cobb-Douglas CPC'!$E$13*'Oculto CPC'!C8) -> 12.50 | E8: 4 | F8: 2.50 | G8: =$E$27*'Oculto CPC'!B8 -> 1.00 | H8: 10 | I8: 0.6 | J8: 2.40 | K8: 14.06 | M8: 6 | N8: 0.25 | O8: 75.00 | P8: 1.13 | Q8: 200.00 | R8: 0.13 | S8: 50.00 | T8: 0.50 | U8: 0.5 | V8: =O8 -> 75.00 | W8: 1.48 | Y8: 6 | Z8: 0.25 | AA8: 0.75 | AB8: 5.00 | AC8: 30.00 | AD8: 13.33 | AE8: 15.00 | AF8: 20.00
A9: 7 | B9: 0.30 | C9: =('Cobb-Douglas CPC'!$E$18)*B9 -> 3.00 | D9: ='Cobb-Douglas CPC'!$D$13+('Cobb-Douglas CPC'!$E$13*'Oculto CPC'!C9) -> 11.67 | E9: 4 | F9: 3.00 | G9: =$E$27*'Oculto CPC'!B9 -> 1.20 | H9: 10 | I9: 0.68 | J9: 2.72 | K9: 12.93 | M9: 7 | N9: 0.30 | O9: 90.00 | P9: 1.05 | Q9: 200.00 | R9: 0.15 | S9: 60.00 | T9: 0.50 | U9: 0.6 | V9: 90.00 | W9: 1.30 | Y9: 7 | Z9: 0.30 | AA9: 0.70 | AB9: 6.00 | AC9: 28.00 | AD9: 13.33 | AE9: 15.33 | AF9: 21.33
A10: 8 | B10: 0.35 | C10: =('Cobb-Douglas CPC'!$E$18)*B10 -> 3.50 | D10: ='Cobb-Douglas CPC'!$D$13+('Cobb-Douglas CPC'!$E$13*'Oculto CPC'!C10) -> 10.83 | E10: 4 | F10: 3.50 | G10: =$E$27*'Oculto CPC'!B10 -> 1.40 | H10: 10 | I10: 0.76 | J10: 3.04 | K10: 12.01 | M10: 8 | N10: 0.35 | O10: 105.00 | P10: 0.98 | Q10: 200.00 | R10: 0.18 | S10: 70.00 | T10: 0.50 | U10: 0.7 | V10: 105.00 | W10: 1.14 | Y10: 8 | Z10: 0.35 | AA10: 0.65 | AB10: 7.00 | AC10: 26.00 | AD10: 13.33 | AE10: 15.67 | AF10: 22.67
A11: 9 | B11: 0.40 | C11: =('Cobb-Douglas CPC'!$E$18)*B11 -> 4.00 | D11: ='Cobb-Douglas CPC'!$D$13+('Cobb-Douglas CPC'!$E$13*'Oculto CPC'!C11) -> 10.00 | E11: 4 | F11: 4.00 | G11: =$E$27*'Oculto CPC'!B11 -> 1.60 | H11: 10 | I11: 0.84 | J11: 3.36 | K11: 11.23 | M11: 9 | N11: 0.40 | O11: 120.00 | P11: 0.90 | Q11: 200.00 | R11: 0.20 | S11: 80.00 | T11: 0.50 | U11: 0.8 | V11: 120.00 | W11: 1.01 | Y11: 9 | Z11: 0.40 | AA11: 0.60 | AB11: 8.00 | AC11: 24.00 | AD11: 13.33 | AE11: 16.00 | AF11: 24.00
A12: 10 | B12: 0.45 | C12: =('Cobb-Douglas CPC'!$E$18)*B12 -> 4.50 | D12: ='Cobb-Douglas CPC'!$D$13+('Cobb-Douglas CPC'!$E$13*'Oculto CPC'!C12) -> 9.17 | E12: 4 | F12: 4.50 | G12: =$E$27*'Oculto CPC'!B12 -> 1.80 | H12: 10 | I12: 0.92 | J12: 3.68 | K12: 10.57 | M12: 10 | N12: 0.45 | O12: 135.00 | P12: 0.83 | Q12: 200.00 | R12: 0.23 | S12: 90.00 | T12: 0.50 | U12: 0.9 | V12: 135.00 | W12: 0.89 | Y12: 10 | Z12: 0.45 | AA12: 0.55 | AB12: 9.00 | AC12: 22.00 | AD12: 13.33 | AE12: 16.33 | AF12: 25.33
A13: 11 | B13: 0.50 | C13: =('Cobb-Douglas CPC'!$E$18)*B13 -> 5.00 | D13: ='Cobb-Douglas CPC'!$D$13+('Cobb-Douglas CPC'!$E$13*'Oculto CPC'!C13) -> 8.33 | E13: 4 | F13: 5.00 | G13: =$E$27*'Oculto CPC'!B13 -> 2.00 | H13: 10 | I13: 1 | J13: =$E$27*I13 -> 4.00 | K13: =($F$28/(J13^($E$26)))^(1/$F$26) -> 10.00 | M13: 11 | N13: 0.50 | O13: =$P$25/$P$26*N13 -> 150.00 | P13: 0.75 | Q13: 200.00 | R13: 0.25 | S13: 100.00 | T13: 0.50 | U13: 1 | V13: 150.00 | W13: 0.79 | Y13: 11 | Z13: 0.50 | AA13: 0.50 | AB13: 10.00 | AC13: 20.00 | AD13: 13.33 | AE13: 16.67 | AF13: 26.67
A14: 12 | B14: 0.55 | C14: =('Cobb-Douglas CPC'!$E$18)*B14 -> 5.50 | D14: ='Cobb-Douglas CPC'!$D$13+('Cobb-Douglas CPC'!$E$13*'Oculto CPC'!C14) -> 7.50 | E14: 4 | F14: 5.50 | G14: =$E$27*'Oculto CPC'!B14 -> 2.20 | H14: 10 | I14: 1.08 | J14: =$E$27*I14 -> 4.32 | K14: 9.50 | M14: 12 | N14: 0.55 | O14: 165.00 | P14: 0.68 | Q14: 200.00 | R14: 0.28 | S14: 110.00 | T14: 0.50 | U14: =U13+$U$25 -> 1.1 | V14: 165.00 | W14: 0.69 | Y14: 12 | Z14: 0.55 | AA14: 0.45 | AB14: 11.00 | AC14: 18.00 | AD14: 13.33 | AE14: 17.00 | AF14: 28.00
A15: 13 | B15: 0.60 | C15: =('Cobb-Douglas CPC'!$E$18)*B15 -> 6.00 | D15: ='Cobb-Douglas CPC'!$D$13+('Cobb-Douglas CPC'!$E$13*'Oculto CPC'!C15) -> 6.67 | E15: 4 | F15: 6.00 | G15: =$E$27*'Oculto CPC'!B15 -> 2.40 | H15: 10 | I15: 1.16 | J15: 4.64 | K15: 9.06 | M15: 13 | N15: 0.60 | O15: 180.00 | P15: 0.60 | Q15: 200.00 | R15: 0.30 | S15: 120.00 | T15: 0.50 | U15: =U14+$U$25 -> 1.2 | V15: 180.00 | W15: 0.61 | Y15: 13 | Z15: 0.60 | AA15: 0.40 | AB15: 12.00 | AC15: 16.00 | AD15: 13.33 | AE15: 17.33 | AF15: 29.33
A16: 14 | B16: 0.65 | C16: =('Cobb-Douglas CPC'!$E$18)*B16 -> 6.50 | D16: ='Cobb-Douglas CPC'!$D$13+('Cobb-Douglas CPC'!$E$13*'Oculto CPC'!C16) -> 5.83 | E16: 4 | F16: 6.50 | G16: =$E$27*'Oculto CPC'!B16 -> 2.60 | H16: 10 | I16: 1.24 | J16: 4.96 | K16: 8.66 | M16: 14 | N16: 0.65 | O16: 195.00 | P16: 0.53 | Q16: 200.00 | R16: 0.33 | S16: 130.00 | T16: 0.50 | U16: 1.3 | V16: 195.00 | W16: 0.53 | Y16: 14 | Z16: 0.65 | AA16: 0.35 | AB16: 13.00 | AC16: 14.00 | AD16: 13.33 | AE16: 17.67 | AF16: 30.67
A17: 15 | B17: 0.70 | C17: =('Cobb-Douglas CPC'!$E$18)*B17 -> 7.00 | D17: ='Cobb-Douglas CPC'!$D$13+('Cobb-Douglas CPC'!$E$13*'Oculto CPC'!C17) -> 5.00 | E17: 4 | F17: 7.00 | G17: =$E$27*'Oculto CPC'!B17 -> 2.80 | H17: 10 | I17: 1.32 | J17: 5.28 | K17: 8.31 | M17: 15 | N17: 0.70 | O17: 210.00 | P17: 0.45 | Q17: 200.00 | R17: 0.35 | S17: 140.00 | T17: 0.50 | U17: 1.4 | V17: 210.00 | W17: 0.45 | Y17: 15 | Z17: 0.70 | AA17: 0.30 | AB17: 14.00 | AC17: 12.00 | AD17: 13.33 | AE17: 18.00 | AF17: 32.00
A18: 16 | B18: 0.75 | C18: =('Cobb-Douglas CPC'!$E$18)*B18 -> 7.50 | D18: ='Cobb-Douglas CPC'!$D$13+('Cobb-Douglas CPC'!$E$13*'Oculto CPC'!C18) -> 4.17 | E18: 4 | F18: 7.50 | G18: =$E$27*'Oculto CPC'!B18 -> 3.00 | H18: 10 | I18: 1.4 | J18: 5.60 | K18: 7.99 | M18: 16 | N18: 0.75 | O18: 225.00 | P18: 0.38 | Q18: 200.00 | R18: 0.38 | S18: 150.00 | T18: 0.50 | U18: 1.5 | V18: 225.00 | W18: 0.38 | Y18: 16 | Z18: 0.75 | AA18: 0.25 | AB18: 15.00 | AC18: 10.00 | AD18: 13.33 | AE18: 18.33 | AF18: 33.33
A19: 17 | B19: 0.80 | C19: =('Cobb-Douglas CPC'!$E$18)*B19 -> 8.00 | D19: ='Cobb-Douglas CPC'!$D$13+('Cobb-Douglas CPC'!$E$13*'Oculto CPC'!C19) -> 3.33 | E19: 4 | F19: 8.00 | G19: =$E$27*'Oculto CPC'!B19 -> 3.20 | H19: 10 | I19: 1.48 | J19: 5.92 | K19: 7.70 | M19: 17 | N19: 0.80 | O19: 240.00 | P19: 0.30 | Q19: 200.00 | R19: 0.40 | S19: 160.00 | T19: 0.50 | U19: 1.6 | V19: 240.00 | W19: 0.32 | Y19: 17 | Z19: 0.80 | AA19: 0.20 | AB19: 16.00 | AC19: 8.00 | AD19: 13.33 | AE19: 18.67 | AF19: 34.67
A20: 18 | B20: 0.85 | C20: =('Cobb-Douglas CPC'!$E$18)*B20 -> 8.50 | D20: ='Cobb-Douglas CPC'!$D$13+('Cobb-Douglas CPC'!$E$13*'Oculto CPC'!C20) -> 2.50 | E20: 4 | F20: 8.50 | G20: =$E$27*'Oculto CPC'!B20 -> 3.40 | H20: 10 | I20: 1.56 | J20: 6.24 | K20: 7.43 | M20: 18 | N20: 0.85 | O20: 255.00 | P20: 0.23 | Q20: 200.00 | R20: 0.43 | S20: 170.00 | T20: 0.50 | U20: 1.7 | V20: 255.00 | W20: 0.26 | Y20: 18 | Z20: 0.85 | AA20: 0.15 | AB20: 17.00 | AC20: 6.00 | AD20: 13.33 | AE20: 19.00 | AF20: 36.00
A21: 19 | B21: 0.90 | C21: =('Cobb-Douglas CPC'!$E$18)*B21 -> 9.00 | D21: ='Cobb-Douglas CPC'!$D$13+('Cobb-Douglas CPC'!$E$13*'Oculto CPC'!C21) -> 1.67 | E21: 4 | F21: 9.00 | G21: =$E$27*'Oculto CPC'!B21 -> 3.60 | H21: 10 | I21: 1.64 | J21: 6.56 | K21: 7.19 | M21: 19 | N21: 0.90 | O21: 270.00 | P21: 0.15 | Q21: 200.00 | R21: 0.45 | S21: 180.00 | T21: 0.50 | U21: 1.8 | V21: 270.00 | W21: 0.20 | Y21: 19 | Z21: 0.90 | AA21: 0.10 | AB21: 18.00 | AC21: 4.00 | AD21: 13.33 | AE21: 19.33 | AF21: 37.33
A22: 20 | B22: 0.95 | C22: =('Cobb-Douglas CPC'!$E$18)*B22 -> 9.50 | D22: ='Cobb-Douglas CPC'!$D$13+('Cobb-Douglas CPC'!$E$13*'Oculto CPC'!C22) -> 0.83 | E22: 4 | F22: 9.50 | G22: =$E$27*'Oculto CPC'!B22 -> 3.80 | H22: 10 | I22: 1.72 | J22: 6.88 | K22: 6.97 | M22: 20 | N22: 0.95 | O22: 285.00 | P22: 0.08 | Q22: 200.00 | R22: 0.48 | S22: 190.00 | T22: 0.50 | U22: 1.9 | V22: 285.00 | W22: 0.15 | Y22: 20 | Z22: 0.95 | AA22: 0.05 | AB22: 19.00 | AC22: 2.00 | AD22: 13.33 | AE22: 19.67 | AF22: 38.67
A23: 21 | B23: 1.00 | C23: =('Cobb-Douglas CPC'!$E$18)*B23 -> 10.00 | D23: ='Cobb-Douglas CPC'!$D$13+('Cobb-Douglas CPC'!$E$13*'Oculto CPC'!C23) -> 0 | E23: 4 | F23: =$F$27*B23 -> 10.00 | G23: =$E$27*'Oculto CPC'!B23 -> 4.00 | H23: 10 | I23: 1.8 | J23: 7.20 | K23: 6.76 | M23: 21 | N23: 1.00 | O23: 300.00 | P23: 0 | Q23: 200.00 | R23: 0.50 | S23: 200.00 | T23: 0.50 | U23: 2 | V23: 300.00 | W23: 0.09 | Y23: 21 | Z23: 1.00 | AA23: 0 | AB23: 20.00 | AC23: 0 | AD23: 13.33 | AE23: 20.00 | AF23: 40.00
E25: x1 | F25: x2 | O25: m | P25: ='Regulares CPC'!$C$6 -> 300.00 | Q25: k | U25: =1/10 -> 0.1 | AA25: m | AB25: ='CompPerf CPC'!C6 -> 200
E26: ='Cobb-Douglas CPC'!$D$24 -> 0.4 | F26: ='Cobb-Douglas CPC'!$F$24 -> 0.6 | O26: p1 | P26: ='Regulares CPC'!D6 -> 1 | Q26: =LN(P28)+P29 -> 5.80 | AA26: p1 | AB26: ='CompPerf CPC'!D6 -> 10
E27: ='Cobb-Douglas CPC'!$D$24*('Cobb-Douglas CPC'!$C$6/'Cobb-Douglas CPC'!$D$6) -> 4 | F27: ='Cobb-Douglas CPC'!$F$24*('Cobb-Douglas CPC'!$C$6/'Cobb-Douglas CPC'!$F$6) -> 10 | O27: p2 | P27: ='Regulares CPC'!F6 -> 200 | AA27: p2 | AB27: ='CompPerf CPC'!F6 -> 5
F28: =(E27^(E26))*(F27^(F26)) -> 6.931448432 | O28: x1* | P28: =P27/P26 -> 200.00 | AA28: x1 | AB28: =AB25/(AB27+AB26) -> 13.33333333
O29: x2* | P29: =P25/P27-1 -> 0.50 | AA29: x2 | AB29: =AB28 -> 13.33333333
A30: COBB-DOUGLAS 2 | C30: Recta Presupuestaria | J30: Curva de Indiferencia
A31: Unidades | B31: ponderador | C31: x1 | D31: x2 | E31: x3lin | G31: x4lin | I31: Cota | J31: x1 | K31: x2
A32: 1 | B32: 0 | C32: ='Cobb-Douglas CPC'!$F$18*B32 -> 0 | D32: ='Cobb-Douglas CPC'!$D$14+('Cobb-Douglas CPC'!$E$14*'Oculto CPC'!C32) -> 16.67 | E32: =$E$56 -> 4 | F32: =$F$56*B32 -> 0 | G32: =$E$56*'Oculto CPC'!B32 -> 0 | H32: =$F$56 -> 10
A33: 2 | B33: 0.05 | C33: ='Cobb-Douglas CPC'!$F$18*B33 -> 0.50 | D33: ='Cobb-Douglas CPC'!$D$14+('Cobb-Douglas CPC'!$E$14*'Oculto CPC'!C33) -> 15.83 | E33: =$E$56 -> 4 | F33: =$F$56*B33 -> 0.50 | G33: =$E$56*'Oculto CPC'!B33 -> 0.20 | H33: =$F$56 -> 10 | I33: 0.28 | J33: =$E$56*I33 -> 1.12 | K33: =($F$57/(J33^($E$55)))^(1/$F$55) -> 23.36 | M33: REGULARES 2 | O33: Recta Presupuestaria | V33: Curva de Indiferencia | Y33: COMP. PERFECTOS 2 | AB33: Recta Presupuestaria | AD33: Curva de Indiferencia
A34: 3 | B34: 0.10 | C34: ='Cobb-Douglas CPC'!$F$18*B34 -> 1.00 | D34: ='Cobb-Douglas CPC'!$D$14+('Cobb-Douglas CPC'!$E$14*'Oculto CPC'!C34) -> 15.00 | E34: 4 | F34: 1.00 | G34: =$E$56*'Oculto CPC'!B34 -> 0.40 | H34: 10 | I34: 0.36 | J34: =$E$56*I34 -> 1.44 | K34: =($F$57/(J34^($E$55)))^(1/$F$55) -> 19.76 | M34: Unidades | N34: ponderador | O34: x1 | P34: x2 | Q34: x1lin | S34: x2lin | U34: Cota | V34: x1 | W34: x2 | Y34: Unidades | Z34: ponderador | AB34: x1 | AC34: x2 | AD34: vertice | AE34: x1line | AF34: x2line
A35: 4 | B35: 0.15 | C35: ='Cobb-Douglas CPC'!$F$18*B35 -> 1.50 | D35: ='Cobb-Douglas CPC'!$D$14+('Cobb-Douglas CPC'!$E$14*'Oculto CPC'!C35) -> 14.17 | E35: 4 | F35: 1.50 | G35: =$E$56*'Oculto CPC'!B35 -> 0.60 | H35: 10 | I35: 0.44 | J35: 1.76 | K35: 17.29 | M35: 1 | N35: 0 | O35: =$P$57/$P$58*N35 -> 0 | P35: =($P$57/$P$59)-(($P$58/$P$59)*O35) -> 1.50 | Q35: =$P$60 -> 200.00 | R35: =$P$61*N35 -> 0 | S35: =$P$60*N35 -> 0 | T35: =$P$61 -> 0.50 | Y35: 1 | Z35: 0 | AA35: 1.00 | AB35: =$AB$57/$AB$58*Z35 -> 0 | AC35: =$AB$25/$AB$27*AA35 -> 40.00 | AD35: =AB60 -> 13.33 | AE35: =AD35+(($AB$23-AD35)*Z35) -> 13.33 | AF35: =AD35+(($AC$3-AD35)*Z35) -> 13.33
A36: 5 | B36: 0.20 | C36: ='Cobb-Douglas CPC'!$F$18*B36 -> 2.00 | D36: ='Cobb-Douglas CPC'!$D$14+('Cobb-Douglas CPC'!$E$14*'Oculto CPC'!C36) -> 13.33 | E36: 4 | F36: 2.00 | G36: =$E$56*'Oculto CPC'!B36 -> 0.80 | H36: 10 | I36: 0.52 | J36: 2.08 | K36: 15.46 | M36: 2 | N36: 0.05 | O36: =$P$57/$P$58*N36 -> 15.00 | P36: =($P$57/$P$59)-(($P$58/$P$59)*O36) -> 1.43 | Q36: =$P$60 -> 200.00 | R36: =$P$61*N36 -> 0.03 | S36: =$P$60*N36 -> 10.00 | T36: =$P$61 -> 0.50 | U36: =$U$25 -> 0.1 | V36: =O36 -> 15.00 | W36: =$Q$58-LN(V36) -> 3.09 | Y36: 2 | Z36: 0.05 | AA36: 0.95 | AB36: =$AB$57/$AB$58*Z36 -> 1.00 | AC36: =$AB$25/$AB$27*AA36 -> 38.00 | AD36: =AD35 -> 13.33 | AE36: =AD36+(($AB$23-AD36)*Z36) -> 13.67 | AF36: =AD36+(($AC$3-AD36)*Z36) -> 14.67
A37: 6 | B37: 0.25 | C37: ='Cobb-Douglas CPC'!$F$18*B37 -> 2.50 | D37: ='Cobb-Douglas CPC'!$D$14+('Cobb-Douglas CPC'!$E$14*'Oculto CPC'!C37) -> 12.50 | E37: 4 | F37: 2.50 | G37: =$E$56*'Oculto CPC'!B37 -> 1.00 | H37: 10 | I37: 0.6 | J37: 2.40 | K37: 14.06 | M37: 3 | N37: 0.10 | O37: 30.00 | P37: 1.35 | Q37: 200.00 | R37: 0.05 | S37: 20.00 | T37: 0.50 | U37: =U36+$U$25 -> 0.2 | V37: =O37 -> 30.00 | W37: =$Q$58-LN(V37) -> 2.40 | Y37: 3 | Z37: 0.10 | AA37: 0.90 | AB37: 2.00 | AC37: 36.00 | AD37: =AD36 -> 13.33 | AE37: 14.00 | AF37: 16.00
A38: 7 | B38: 0.30 | C38: ='Cobb-Douglas CPC'!$F$18*B38 -> 3.00 | D38: ='Cobb-Douglas CPC'!$D$14+('Cobb-Douglas CPC'!$E$14*'Oculto CPC'!C38) -> 11.67 | E38: 4 | F38: 3.00 | G38: =$E$56*'Oculto CPC'!B38 -> 1.20 | H38: 10 | I38: 0.68 | J38: 2.72 | K38: 12.93 | M38: 4 | N38: 0.15 | O38: 45.00 | P38: 1.28 | Q38: 200.00 | R38: 0.08 | S38: 30.00 | T38: 0.50 | U38: =U37+$U$25 -> 0.3 | V38: 45.00 | W38: 1.99 | Y38: 4 | Z38: 0.15 | AA38: 0.85 | AB38: 3.00 | AC38: 34.00 | AD38: 13.33 | AE38: 14.33 | AF38: 17.33
A39: 8 | B39: 0.35 | C39: ='Cobb-Douglas CPC'!$F$18*B39 -> 3.50 | D39: ='Cobb-Douglas CPC'!$D$14+('Cobb-Douglas CPC'!$E$14*'Oculto CPC'!C39) -> 10.83 | E39: 4 | F39: 3.50 | G39: =$E$56*'Oculto CPC'!B39 -> 1.40 | H39: 10 | I39: 0.76 | J39: 3.04 | K39: 12.01 | M39: 5 | N39: 0.20 | O39: 60.00 | P39: 1.20 | Q39: 200.00 | R39: 0.10 | S39: 40.00 | T39: 0.50 | U39: 0.4 | V39: 60.00 | W39: 1.70 | Y39: 5 | Z39: 0.20 | AA39: 0.80 | AB39: 4.00 | AC39: 32.00 | AD39: 13.33 | AE39: 14.67 | AF39: 18.67
A40: 9 | B40: 0.40 | C40: ='Cobb-Douglas CPC'!$F$18*B40 -> 4.00 | D40: ='Cobb-Douglas CPC'!$D$14+('Cobb-Douglas CPC'!$E$14*'Oculto CPC'!C40) -> 10.00 | E40: 4 | F40: 4.00 | G40: =$E$56*'Oculto CPC'!B40 -> 1.60 | H40: 10 | I40: 0.84 | J40: 3.36 | K40: 11.23 | M40: 6 | N40: 0.25 | O40: 75.00 | P40: 1.13 | Q40: 200.00 | R40: 0.13 | S40: 50.00 | T40: 0.50 | U40: 0.5 | V40: 75.00 | W40: 1.48 | Y40: 6 | Z40: 0.25 | AA40: 0.75 | AB40: 5.00 | AC40: 30.00 | AD40: 13.33 | AE40: 15.00 | AF40: 20.00
A41: 10 | B41: 0.45 | C41: ='Cobb-Douglas CPC'!$F$18*B41 -> 4.50 | D41: ='Cobb-Douglas CPC'!$D$14+('Cobb-Douglas CPC'!$E$14*'Oculto CPC'!C41) -> 9.17 | E41: 4 | F41: 4.50 | G41: =$E$56*'Oculto CPC'!B41 -> 1.80 | H41: 10 | I41: 0.92 | J41: 3.68 | K41: 10.57 | M41: 7 | N41: 0.30 | O41: 90.00 | P41: 1.05 | Q41: 200.00 | R41: 0.15 | S41: 60.00 | T41: 0.50 | U41: 0.6 | V41: 90.00 | W41: 1.30 | Y41: 7 | Z41: 0.30 | AA41: 0.70 | AB41: 6.00 | AC41: 28.00 | AD41: 13.33 | AE41: 15.33 | AF41: 21.33
A42: 11 | B42: 0.50 | C42: ='Cobb-Douglas CPC'!$F$18*B42 -> 5.00 | D42: ='Cobb-Douglas CPC'!$D$14+('Cobb-Douglas CPC'!$E$14*'Oculto CPC'!C42) -> 8.33 | E42: 4 | F42: 5.00 | G42: =$E$56*'Oculto CPC'!B42 -> 2.00 | H42: 10 | I42: 1 | J42: 4.00 | K42: 10.00 | M42: 8 | N42: 0.35 | O42: 105.00 | P42: 0.98 | Q42: 200.00 | R42: 0.18 | S42: 70.00 | T42: 0.50 | U42: 0.7 | V42: 105.00 | W42: 1.14 | Y42: 8 | Z42: 0.35 | AA42: 0.65 | AB42: 7.00 | AC42: 26.00 | AD42: 13.33 | AE42: 15.67 | AF42: 22.67
A43: 12 | B43: 0.55 | C43: ='Cobb-Douglas CPC'!$F$18*B43 -> 5.50 | D43: ='Cobb-Douglas CPC'!$D$14+('Cobb-Douglas CPC'!$E$14*'Oculto CPC'!C43) -> 7.50 | E43: 4 | F43: 5.50 | G43: =$E$56*'Oculto CPC'!B43 -> 2.20 | H43: 10 | I43: 1.08 | J43: 4.32 | K43: 9.50 | M43: 9 | N43: 0.40 | O43: 120.00 | P43: 0.90 | Q43: 200.00 | R43: 0.20 | S43: 80.00 | T43: 0.50 | U43: 0.8 | V43: 120.00 | W43: 1.01 | Y43: 9 | Z43: 0.40 | AA43: 0.60 | AB43: 8.00 | AC43: 24.00 | AD43: 13.33 | AE43: 16.00 | AF43: 24.00
A44: 13 | B44: 0.60 | C44: ='Cobb-Douglas CPC'!$F$18*B44 -> 6.00 | D44: ='Cobb-Douglas CPC'!$D$14+('Cobb-Douglas CPC'!$E$14*'Oculto CPC'!C44) -> 6.67 | E44: 4 | F44: 6.00 | G44: =$E$56*'Oculto CPC'!B44 -> 2.40 | H44: 10 | I44: 1.16 | J44: 4.64 | K44: 9.06 | M44: 10 | N44: 0.45 | O44: 135.00 | P44: 0.83 | Q44: 200.00 | R44: 0.23 | S44: 90.00 | T44: 0.50 | U44: 0.9 | V44: 135.00 | W44: 0.89 | Y44: 10 | Z44: 0.45 | AA44: 0.55 | AB44: 9.00 | AC44: 22.00 | AD44: 13.33 | AE44: 16.33 | AF44: 25.33
A45: 14 | B45: 0.65 | C45: ='Cobb-Douglas CPC'!$F$18*B45 -> 6.50 | D45: ='Cobb-Douglas CPC'!$D$14+('Cobb-Douglas CPC'!$E$14*'Oculto CPC'!C45) -> 5.83 | E45: 4 | F45: 6.50 | G45: =$E$56*'Oculto CPC'!B45 -> 2.60 | H45: 10 | I45: 1.24 | J45: 4.96 | K45: 8.66 | M45: 11 | N45: 0.50 | O45: 150.00 | P45: 0.75 | Q45: 200.00 | R45: 0.25 | S45: 100.00 | T45: 0.50 | U45: 1 | V45: 150.00 | W45: 0.79 | Y45: 11 | Z45: 0.50 | AA45: 0.50 | AB45: 10.00 | AC45: 20.00 | AD45: 13.33 | AE45: 16.67 | AF45: 26.67
A46: 15 | B46: 0.70 | C46: ='Cobb-Douglas CPC'!$F$18*B46 -> 7.00 | D46: ='Cobb-Douglas CPC'!$D$14+('Cobb-Douglas CPC'!$E$14*'Oculto CPC'!C46) -> 5.00 | E46: 4 | F46: 7.00 | G46: =$E$56*'Oculto CPC'!B46 -> 2.80 | H46: 10 | I46: 1.32 | J46: 5.28 | K46: 8.31 | M46: 12 | N46: 0.55 | O46: 165.00 | P46: 0.68 | Q46: 200.00 | R46: 0.28 | S46: 110.00 | T46: 0.50 | U46: =U45+$U$25 -> 1.1 | V46: 165.00 | W46: 0.69 | Y46: 12 | Z46: 0.55 | AA46: 0.45 | AB46: 11.00 | AC46: 18.00 | AD46: 13.33 | AE46: 17.00 | AF46: 28.00
A47: 16 | B47: 0.75 | C47: ='Cobb-Douglas CPC'!$F$18*B47 -> 7.50 | D47: ='Cobb-Douglas CPC'!$D$14+('Cobb-Douglas CPC'!$E$14*'Oculto CPC'!C47) -> 4.17 | E47: 4 | F47: 7.50 | G47: =$E$56*'Oculto CPC'!B47 -> 3.00 | H47: 10 | I47: 1.4 | J47: 5.60 | K47: 7.99 | M47: 13 | N47: 0.60 | O47: 180.00 | P47: 0.60 | Q47: 200.00 | R47: 0.30 | S47: 120.00 | T47: 0.50 | U47: =U46+$U$25 -> 1.2 | V47: 180.00 | W47: 0.61 | Y47: 13 | Z47: 0.60 | AA47: 0.40 | AB47: 12.00 | AC47: 16.00 | AD47: 13.33 | AE47: 17.33 | AF47: 29.33
A48: 17 | B48: 0.80 | C48: ='Cobb-Douglas CPC'!$F$18*B48 -> 8.00 | D48: ='Cobb-Douglas CPC'!$D$14+('Cobb-Douglas CPC'!$E$14*'Oculto CPC'!C48) -> 3.33 | E48: 4 | F48: 8.00 | G48: =$E$56*'Oculto CPC'!B48 -> 3.20 | H48: 10 | I48: 1.48 | J48: 5.92 | K48: 7.70 | M48: 14 | N48: 0.65 | O48: 195.00 | P48: 0.53 | Q48: 200.00 | R48: 0.33 | S48: 130.00 | T48: 0.50 | U48: 1.3 | V48: 195.00 | W48: 0.53 | Y48: 14 | Z48: 0.65 | AA48: 0.35 | AB48: 13.00 | AC48: 14.00 | AD48: 13.33 | AE48: 17.67 | AF48: 30.67
A49: 18 | B49: 0.85 | C49: ='Cobb-Douglas CPC'!$F$18*B49 -> 8.50 | D49: ='Cobb-Douglas CPC'!$D$14+('Cobb-Douglas CPC'!$E$14*'Oculto CPC'!C49) -> 2.50 | E49: 4 | F49: 8.50 | G49: =$E$56*'Oculto CPC'!B49 -> 3.40 | H49: 10 | I49: 1.56 | J49: 6.24 | K49: 7.43 | M49: 15 | N49: 0.70 | O49: 210.00 | P49: 0.45 | Q49: 200.00 | R49: 0.35 | S49: 140.00 | T49: 0.50 | U49: 1.4 | V49: 210.00 | W49: 0.45 | Y49: 15 | Z49: 0.70 | AA49: 0.30 | AB49: 14.00 | AC49: 12.00 | AD49: 13.33 | AE49: 18.00 | AF49: 32.00
A50: 19 | B50: 0.90 | C50: ='Cobb-Douglas CPC'!$F$18*B50 -> 9.00 | D50: ='Cobb-Douglas CPC'!$D$14+('Cobb-Douglas CPC'!$E$14*'Oculto CPC'!C50) -> 1.67 | E50: 4 | F50: 9.00 | G50: =$E$56*'Oculto CPC'!B50 -> 3.60 | H50: 10 | I50: 1.64 | J50: 6.56 | K50: 7.19 | M50: 16 | N50: 0.75 | O50: 225.00 | P50: 0.38 | Q50: 200.00 | R50: 0.38 | S50: 150.00 | T50: 0.50 | U50: 1.5 | V50: 225.00 | W50: 0.38 | Y50: 16 | Z50: 0.75 | AA50: 0.25 | AB50: 15.00 | AC50: 10.00 | AD50: 13.33 | AE50: 18.33 | AF50: 33.33
A51: 20 | B51: 0.95 | C51: ='Cobb-Douglas CPC'!$F$18*B51 -> 9.50 | D51: ='Cobb-Douglas CPC'!$D$14+('Cobb-Douglas CPC'!$E$14*'Oculto CPC'!C51) -> 0.83 | E51: 4 | F51: 9.50 | G51: =$E$56*'Oculto CPC'!B51 -> 3.80 | H51: 10 | I51: 1.72 | J51: 6.88 | K51: 6.97 | M51: 17 | N51: 0.80 | O51: 240.00 | P51: 0.30 | Q51: 200.00 | R51: 0.40 | S51: 160.00 | T51: 0.50 | U51: 1.6 | V51: 240.00 | W51: 0.32 | Y51: 17 | Z51: 0.80 | AA51: 0.20 | AB51: 16.00 | AC51: 8.00 | AD51: 13.33 | AE51: 18.67 | AF51: 34.67
A52: 21 | B52: 1.00 | C52: ='Cobb-Douglas CPC'!$F$18*B52 -> 10.00 | D52: ='Cobb-Douglas CPC'!$D$14+('Cobb-Douglas CPC'!$E$14*'Oculto CPC'!C52) -> 0 | E52: 4 | F52: 10.00 | G52: =$E$56*'Oculto CPC'!B52 -> 4.00 | H52: 10 | I52: 1.8 | J52: 7.20 | K52: 6.76 | M52: 18 | N52: 0.85 | O52: 255.00 | P52: 0.23 | Q52: 200.00 | R52: 0.43 | S52: 170.00 | T52: 0.50 | U52: 1.7 | V52: 255.00 | W52: 0.26 | Y52: 18 | Z52: 0.85 | AA52: 0.15 | AB52: 17.00 | AC52: 6.00 | AD52: 13.33 | AE52: 19.00 | AF52: 36.00
M53: 19 | N53: 0.90 | O53: 270.00 | P53: 0.15 | Q53: 200.00 | R53: 0.45 | S53: 180.00 | T53: 0.50 | U53: 1.8 | V53: 270.00 | W53: 0.20 | Y53: 19 | Z53: 0.90 | AA53: 0.10 | AB53: 18.00 | AC53: 4.00 | AD53: 13.33 | AE53: 19.33 | AF53: 37.33
E54: x1 | F54: x2 | M54: 20 | N54: 0.95 | O54: 285.00 | P54: 0.08 | Q54: 200.00 | R54: 0.48 | S54: 190.00 | T54: 0.50 | U54: 1.9 | V54: 285.00 | W54: 0.15 | Y54: 20 | Z54: 0.95 | AA54: 0.05 | AB54: 19.00 | AC54: 2.00 | AD54: 13.33 | AE54: 19.67 | AF54: 38.67
E55: ='Cobb-Douglas CPC'!$D$25 -> 0.4 | F55: ='Cobb-Douglas CPC'!$F$25 -> 0.6 | M55: 21 | N55: 1.00 | O55: 300.00 | P55: 0 | Q55: 200.00 | R55: 0.50 | S55: 200.00 | T55: 0.50 | U55: 2 | V55: 300.00 | W55: 0.09 | Y55: 21 | Z55: 1.00 | AA55: 0 | AB55: 20.00 | AC55: 0 | AD55: 13.33 | AE55: 20.00 | AF55: 40.00
E56: ='Cobb-Douglas CPC'!$D$25*('Cobb-Douglas CPC'!F18) -> 4 | F56: ='Cobb-Douglas CPC'!$F$25*('Cobb-Douglas CPC'!F19) -> 10
F57: =(E56^(E55))*(F56^(F55)) -> 6.931448432 | O57: m | P57: ='Regulares CPC'!C7 -> 300.00 | Q57: k | U57: =1/10 -> 0.1 | AA57: m | AB57: =AB25 -> 200
O58: p1 | P58: ='Regulares CPC'!D7 -> 1 | Q58: =LN(P60)+P61 -> 5.80 | AA58: p1 | AB58: ='CompPerf CPC'!D7 -> 10
A59: COBB-DOUGLAS 3 | C59: Recta Presupuestaria | J59: Curva de Indiferencia | O59: p2 | P59: ='Regulares CPC'!F7 -> 200 | AA59: p2 | AB59: =AB27 -> 5
A60: Unidades | B60: ponderador | C60: x1 | D60: x2 | E60: x5lin | G60: x6lin | I60: Cota | J60: x1 | K60: x2 | O60: x1* | P60: =P59/P58 -> 200.00 | AA60: x1 | AB60: =AB57/(AB59+AB58) -> 13.33333333
A61: 1 | B61: 0 | C61: ='Cobb-Douglas CPC'!$G$18*B61 -> 0 | D61: ='Cobb-Douglas CPC'!$D$15+('Cobb-Douglas CPC'!$E$15*'Oculto CPC'!C61) -> 16.67 | E61: =$E$85 -> 4 | F61: =$F$85*B61 -> 0 | G61: =$E$85*B61 -> 0 | H61: =$F$85 -> 10 | O61: x2* | P61: =P57/P59-1 -> 0.50 | AA61: x2 | AB61: =AB60 -> 13.33333333
A62: 2 | B62: 0.05 | C62: ='Cobb-Douglas CPC'!$G$18*B62 -> 0.50 | D62: ='Cobb-Douglas CPC'!$D$15+('Cobb-Douglas CPC'!$E$15*'Oculto CPC'!C62) -> 15.83 | E62: =$E$85 -> 4 | F62: =$F$85*B62 -> 0.50 | G62: =$E$85*B62 -> 0.20 | H62: =$F$85 -> 10 | I62: 0.28 | J62: =I62*$E$85 -> 1.12 | K62: =($F$86/(J62^($E$84)))^(1/$F$84) -> 23.36
A63: 3 | B63: 0.10 | C63: ='Cobb-Douglas CPC'!$G$18*B63 -> 1.00 | D63: ='Cobb-Douglas CPC'!$D$15+('Cobb-Douglas CPC'!$E$15*'Oculto CPC'!C63) -> 15.00 | E63: 4 | F63: 1.00 | G63: 0.40 | H63: 10 | I63: 0.36 | J63: =I63*$E$85 -> 1.44 | K63: =($F$86/(J63^($E$84)))^(1/$F$84) -> 19.76
A64: 4 | B64: 0.15 | C64: ='Cobb-Douglas CPC'!$G$18*B64 -> 1.50 | D64: ='Cobb-Douglas CPC'!$D$15+('Cobb-Douglas CPC'!$E$15*'Oculto CPC'!C64) -> 14.17 | E64: 4 | F64: 1.50 | G64: 0.60 | H64: 10 | I64: 0.44 | J64: 1.76 | K64: 17.29
A65: 5 | B65: 0.20 | C65: ='Cobb-Douglas CPC'!$G$18*B65 -> 2.00 | D65: ='Cobb-Douglas CPC'!$D$15+('Cobb-Douglas CPC'!$E$15*'Oculto CPC'!C65) -> 13.33 | E65: 4 | F65: 2.00 | G65: 0.80 | H65: 10 | I65: 0.52 | J65: 2.08 | K65: 15.46 | M65: REGULARES 3 | O65: Recta Presupuestaria | V65: Curva de Indiferencia | Y65: COMP. PERFECTOS 3 | AB65: Recta Presupuestaria | AD65: Curva de Indiferencia
A66: 6 | B66: 0.25 | C66: ='Cobb-Douglas CPC'!$G$18*B66 -> 2.50 | D66: ='Cobb-Douglas CPC'!$D$15+('Cobb-Douglas CPC'!$E$15*'Oculto CPC'!C66) -> 12.50 | E66: 4 | F66: 2.50 | G66: 1.00 | H66: 10 | I66: 0.6 | J66: 2.40 | K66: 14.06 | M66: Unidades | N66: ponderador | O66: x1 | P66: x2 | Q66: x1lin | S66: x2lin | U66: Cota | V66: x1 | W66: x2 | Y66: Unidades | Z66: ponderador | AB66: x1 | AC66: x2 | AD66: vertice | AE66: x1line | AF66: x2line
A67: 7 | B67: 0.30 | C67: ='Cobb-Douglas CPC'!$G$18*B67 -> 3.00 | D67: ='Cobb-Douglas CPC'!$D$15+('Cobb-Douglas CPC'!$E$15*'Oculto CPC'!C67) -> 11.67 | E67: 4 | F67: 3.00 | G67: 1.20 | H67: 10 | I67: 0.68 | J67: 2.72 | K67: 12.93 | M67: 1 | N67: 0 | O67: =$P$89/$P$90*N67 -> 0 | P67: =($P$25/$P$27)-(($P$90/$P$27)*O67) -> 1.50 | Q67: =$P$92 -> 200.00 | R67: =$P$93*N67 -> 0 | S67: =$P$92*N67 -> 0 | T67: =$P$93 -> 0.50 | Y67: 1 | Z67: 0 | AA67: 1.00 | AB67: =$AB$89/$AB$90*Z67 -> 0 | AC67: =$AB$25/$AB$27*AA67 -> 40.00 | AD67: =AB92 -> 13.33 | AE67: =AD67+(($AB$23-AD67)*Z67) -> 13.33 | AF67: =AD67+(($AC$3-AD67)*Z67) -> 13.33
A68: 8 | B68: 0.35 | C68: ='Cobb-Douglas CPC'!$G$18*B68 -> 3.50 | D68: ='Cobb-Douglas CPC'!$D$15+('Cobb-Douglas CPC'!$E$15*'Oculto CPC'!C68) -> 10.83 | E68: 4 | F68: 3.50 | G68: 1.40 | H68: 10 | I68: 0.76 | J68: 3.04 | K68: 12.01 | M68: 2 | N68: 0.05 | O68: =$P$89/$P$90*N68 -> 15.00 | P68: =($P$25/$P$27)-(($P$90/$P$27)*O68) -> 1.43 | Q68: =$P$92 -> 200.00 | R68: =$P$93*N68 -> 0.03 | S68: =$P$92*N68 -> 10.00 | T68: =$P$93 -> 0.50 | U68: =$U$25 -> 0.1 | V68: =O68 -> 15.00 | W68: =$Q$90-LN(V68) -> 3.09 | Y68: 2 | Z68: 0.05 | AA68: 0.95 | AB68: =$AB$89/$AB$90*Z68 -> 1.00 | AC68: =$AB$25/$AB$27*AA68 -> 38.00 | AD68: =AD67 -> 13.33 | AE68: =AD68+(($AB$23-AD68)*Z68) -> 13.67 | AF68: =AD68+(($AC$3-AD68)*Z68) -> 14.67
A69: 9 | B69: 0.40 | C69: ='Cobb-Douglas CPC'!$G$18*B69 -> 4.00 | D69: ='Cobb-Douglas CPC'!$D$15+('Cobb-Douglas CPC'!$E$15*'Oculto CPC'!C69) -> 10.00 | E69: 4 | F69: 4.00 | G69: 1.60 | H69: 10 | I69: 0.84 | J69: 3.36 | K69: 11.23 | M69: 3 | N69: 0.10 | O69: 30.00 | P69: 1.35 | Q69: 200.00 | R69: 0.05 | S69: 20.00 | T69: 0.50 | U69: =U68+$U$25 -> 0.2 | V69: =O69 -> 30.00 | W69: =$Q$90-LN(V69) -> 2.40 | Y69: 3 | Z69: 0.10 | AA69: 0.90 | AB69: 2.00 | AC69: 36.00 | AD69: =AD68 -> 13.33 | AE69: 14.00 | AF69: 16.00
A70: 10 | B70: 0.45 | C70: ='Cobb-Douglas CPC'!$G$18*B70 -> 4.50 | D70: ='Cobb-Douglas CPC'!$D$15+('Cobb-Douglas CPC'!$E$15*'Oculto CPC'!C70) -> 9.17 | E70: 4 | F70: 4.50 | G70: 1.80 | H70: 10 | I70: 0.92 | J70: 3.68 | K70: 10.57 | M70: 4 | N70: 0.15 | O70: 45.00 | P70: 1.28 | Q70: 200.00 | R70: 0.08 | S70: 30.00 | T70: 0.50 | U70: =U69+$U$25 -> 0.3 | V70: 45.00 | W70: 1.99 | Y70: 4 | Z70: 0.15 | AA70: 0.85 | AB70: 3.00 | AC70: 34.00 | AD70: 13.33 | AE70: 14.33 | AF70: 17.33
A71: 11 | B71: 0.50 | C71: ='Cobb-Douglas CPC'!$G$18*B71 -> 5.00 | D71: ='Cobb-Douglas CPC'!$D$15+('Cobb-Douglas CPC'!$E$15*'Oculto CPC'!C71) -> 8.33 | E71: 4 | F71: 5.00 | G71: 2.00 | H71: 10 | I71: 1 | J71: 4.00 | K71: 10.00 | M71: 5 | N71: 0.20 | O71: 60.00 | P71: 1.20 | Q71: 200.00 | R71: 0.10 | S71: 40.00 | T71: 0.50 | U71: 0.4 | V71: 60.00 | W71: 1.70 | Y71: 5 | Z71: 0.20 | AA71: 0.80 | AB71: 4.00 | AC71: 32.00 | AD71: 13.33 | AE71: 14.67 | AF71: 18.67
A72: 12 | B72: 0.55 | C72: ='Cobb-Douglas CPC'!$G$18*B72 -> 5.50 | D72: ='Cobb-Douglas CPC'!$D$15+('Cobb-Douglas CPC'!$E$15*'Oculto CPC'!C72) -> 7.50 | E72: 4 | F72: 5.50 | G72: 2.20 | H72: 10 | I72: 1.08 | J72: 4.32 | K72: 9.50 | M72: 6 | N72: 0.25 | O72: 75.00 | P72: 1.13 | Q72: 200.00 | R72: 0.13 | S72: 50.00 | T72: 0.50 | U72: 0.5 | V72: 75.00 | W72: 1.48 | Y72: 6 | Z72: 0.25 | AA72: 0.75 | AB72: 5.00 | AC72: 30.00 | AD72: 13.33 | AE72: 15.00 | AF72: 20.00
A73: 13 | B73: 0.60 | C73: ='Cobb-Douglas CPC'!$G$18*B73 -> 6.00 | D73: ='Cobb-Douglas CPC'!$D$15+('Cobb-Douglas CPC'!$E$15*'Oculto CPC'!C73) -> 6.67 | E73: 4 | F73: 6.00 | G73: 2.40 | H73: 10 | I73: 1.16 | J73: 4.64 | K73: 9.06 | M73: 7 | N73: 0.30 | O73: 90.00 | P73: 1.05 | Q73: 200.00 | R73: 0.15 | S73: 60.00 | T73: 0.50 | U73: 0.6 | V73: 90.00 | W73: 1.30 | Y73: 7 | Z73: 0.30 | AA73: 0.70 | AB73: 6.00 | AC73: 28.00 | AD73: 13.33 | AE73: 15.33 | AF73: 21.33
A74: 14 | B74: 0.65 | C74: ='Cobb-Douglas CPC'!$G$18*B74 -> 6.50 | D74: ='Cobb-Douglas CPC'!$D$15+('Cobb-Douglas CPC'!$E$15*'Oculto CPC'!C74) -> 5.83 | E74: 4 | F74: 6.50 | G74: 2.60 | H74: 10 | I74: 1.24 | J74: 4.96 | K74: 8.66 | M74: 8 | N74: 0.35 | O74: 105.00 | P74: 0.98 | Q74: 200.00 | R74: 0.18 | S74: 70.00 | T74: 0.50 | U74: 0.7 | V74: 105.00 | W74: 1.14 | Y74: 8 | Z74: 0.35 | AA74: 0.65 | AB74: 7.00 | AC74: 26.00 | AD74: 13.33 | AE74: 15.67 | AF74: 22.67
A75: 15 | B75: 0.70 | C75: ='Cobb-Douglas CPC'!$G$18*B75 -> 7.00 | D75: ='Cobb-Douglas CPC'!$D$15+('Cobb-Douglas CPC'!$E$15*'Oculto CPC'!C75) -> 5.00 | E75: 4 | F75: 7.00 | G75: 2.80 | H75: 10 | I75: 1.32 | J75: 5.28 | K75: 8.31 | M75: 9 | N75: 0.40 | O75: 120.00 | P75: 0.90 | Q75: 200.00 | R75: 0.20 | S75: 80.00 | T75: 0.50 | U75: 0.8 | V75: 120.00 | W75: 1.01 | Y75: 9 | Z75: 0.40 | AA75: 0.60 | AB75: 8.00 | AC75: 24.00 | AD75: 13.33 | AE75: 16.00 | AF75: 24.00
A76: 16 | B76: 0.75 | C76: ='Cobb-Douglas CPC'!$G$18*B76 -> 7.50 | D76: ='Cobb-Douglas CPC'!$D$15+('Cobb-Douglas CPC'!$E$15*'Oculto CPC'!C76) -> 4.17 | E76: 4 | F76: 7.50 | G76: 3.00 | H76: 10 | I76: 1.4 | J76: 5.60 | K76: 7.99 | M76: 10 | N76: 0.45 | O76: 135.00 | P76: 0.83 | Q76: 200.00 | R76: 0.23 | S76: 90.00 | T76: 0.50 | U76: 0.9 | V76: 135.00 | W76: 0.89 | Y76: 10 | Z76: 0.45 | AA76: 0.55 | AB76: 9.00 | AC76: 22.00 | AD76: 13.33 | AE76: 16.33 | AF76: 25.33
A77: 17 | B77: 0.80 | C77: ='Cobb-Douglas CPC'!$G$18*B77 -> 8.00 | D77: ='Cobb-Douglas CPC'!$D$15+('Cobb-Douglas CPC'!$E$15*'Oculto CPC'!C77) -> 3.33 | E77: 4 | F77: 8.00 | G77: 3.20 | H77: 10 | I77: 1.48 | J77: 5.92 | K77: 7.70 | M77: 11 | N77: 0.50 | O77: 150.00 | P77: 0.75 | Q77: 200.00 | R77: 0.25 | S77: 100.00 | T77: 0.50 | U77: 1 | V77: 150.00 | W77: 0.79 | Y77: 11 | Z77: 0.50 | AA77: 0.50 | AB77: 10.00 | AC77: 20.00 | AD77: 13.33 | AE77: 16.67 | AF77: 26.67
A78: 18 | B78: 0.85 | C78: ='Cobb-Douglas CPC'!$G$18*B78 -> 8.50 | D78: ='Cobb-Douglas CPC'!$D$15+('Cobb-Douglas CPC'!$E$15*'Oculto CPC'!C78) -> 2.50 | E78: 4 | F78: 8.50 | G78: 3.40 | H78: 10 | I78: 1.56 | J78: 6.24 | K78: 7.43 | M78: 12 | N78: 0.55 | O78: 165.00 | P78: 0.68 | Q78: 200.00 | R78: 0.28 | S78: 110.00 | T78: 0.50 | U78: =U77+$U$25 -> 1.1 | V78: 165.00 | W78: 0.69 | Y78: 12 | Z78: 0.55 | AA78: 0.45 | AB78: 11.00 | AC78: 18.00 | AD78: 13.33 | AE78: 17.00 | AF78: 28.00
A79: 19 | B79: 0.90 | C79: ='Cobb-Douglas CPC'!$G$18*B79 -> 9.00 | D79: ='Cobb-Douglas CPC'!$D$15+('Cobb-Douglas CPC'!$E$15*'Oculto CPC'!C79) -> 1.67 | E79: 4 | F79: 9.00 | G79: 3.60 | H79: 10 | I79: 1.64 | J79: 6.56 | K79: 7.19 | M79: 13 | N79: 0.60 | O79: 180.00 | P79: 0.60 | Q79: 200.00 | R79: 0.30 | S79: 120.00 | T79: 0.50 | U79: =U78+$U$25 -> 1.2 | V79: 180.00 | W79: 0.61 | Y79: 13 | Z79: 0.60 | AA79: 0.40 | AB79: 12.00 | AC79: 16.00 | AD79: 13.33 | AE79: 17.33 | AF79: 29.33
A80: 20 | B80: 0.95 | C80: ='Cobb-Douglas CPC'!$G$18*B80 -> 9.50 | D80: ='Cobb-Douglas CPC'!$D$15+('Cobb-Douglas CPC'!$E$15*'Oculto CPC'!C80) -> 0.83 | E80: 4 | F80: 9.50 | G80: 3.80 | H80: 10 | I80: 1.72 | J80: 6.88 | K80: 6.97 | M80: 14 | N80: 0.65 | O80: 195.00 | P80: 0.53 | Q80: 200.00 | R80: 0.33 | S80: 130.00 | T80: 0.50 | U80: 1.3 | V80: 195.00 | W80: 0.53 | Y80: 14 | Z80: 0.65 | AA80: 0.35 | AB80: 13.00 | AC80: 14.00 | AD80: 13.33 | AE80: 17.67 | AF80: 30.67
A81: 21 | B81: 1.00 | C81: ='Cobb-Douglas CPC'!$G$18*B81 -> 10.00 | D81: ='Cobb-Douglas CPC'!$D$15+('Cobb-Douglas CPC'!$E$15*'Oculto CPC'!C81) -> 0 | E81: 4 | F81: 10.00 | G81: 4.00 | H81: 10 | I81: 1.8 | J81: 7.20 | K81: 6.76 | M81: 15 | N81: 0.70 | O81: 210.00 | P81: 0.45 | Q81: 200.00 | R81: 0.35 | S81: 140.00 | T81: 0.50 | U81: 1.4 | V81: 210.00 | W81: 0.45 | Y81: 15 | Z81: 0.70 | AA81: 0.30 | AB81: 14.00 | AC81: 12.00 | AD81: 13.33 | AE81: 18.00 | AF81: 32.00
M82: 16 | N82: 0.75 | O82: 225.00 | P82: 0.38 | Q82: 200.00 | R82: 0.38 | S82: 150.00 | T82: 0.50 | U82: 1.5 | V82: 225.00 | W82: 0.38 | Y82: 16 | Z82: 0.75 | AA82: 0.25 | AB82: 15.00 | AC82: 10.00 | AD82: 13.33 | AE82: 18.33 | AF82: 33.33
E83: x1 | F83: x2 | M83: 17 | N83: 0.80 | O83: 240.00 | P83: 0.30 | Q83: 200.00 | R83: 0.40 | S83: 160.00 | T83: 0.50 | U83: 1.6 | V83: 240.00 | W83: 0.32 | Y83: 17 | Z83: 0.80 | AA83: 0.20 | AB83: 16.00 | AC83: 8.00 | AD83: 13.33 | AE83: 18.67 | AF83: 34.67
E84: ='Cobb-Douglas CPC'!$D$26 -> 0.4 | F84: ='Cobb-Douglas CPC'!$F$26 -> 0.6 | M84: 18 | N84: 0.85 | O84: 255.00 | P84: 0.23 | Q84: 200.00 | R84: 0.43 | S84: 170.00 | T84: 0.50 | U84: 1.7 | V84: 255.00 | W84: 0.26 | Y84: 18 | Z84: 0.85 | AA84: 0.15 | AB84: 17.00 | AC84: 6.00 | AD84: 13.33 | AE84: 19.00 | AF84: 36.00
E85: ='Cobb-Douglas CPC'!$D$26*('Cobb-Douglas CPC'!G18) -> 4 | F85: ='Cobb-Douglas CPC'!$F$26*('Cobb-Douglas CPC'!G19) -> 10 | M85: 19 | N85: 0.90 | O85: 270.00 | P85: 0.15 | Q85: 200.00 | R85: 0.45 | S85: 180.00 | T85: 0.50 | U85: 1.8 | V85: 270.00 | W85: 0.20 | Y85: 19 | Z85: 0.90 | AA85: 0.10 | AB85: 18.00 | AC85: 4.00 | AD85: 13.33 | AE85: 19.33 | AF85: 37.33
F86: =(E85^(E84))*(F85^(F84)) -> 6.931448432 | M86: 20 | N86: 0.95 | O86: 285.00 | P86: 0.08 | Q86: 200.00 | R86: 0.48 | S86: 190.00 | T86: 0.50 | U86: 1.9 | V86: 285.00 | W86: 0.15 | Y86: 20 | Z86: 0.95 | AA86: 0.05 | AB86: 19.00 | AC86: 2.00 | AD86: 13.33 | AE86: 19.67 | AF86: 38.67
M87: 21 | N87: 1.00 | O87: 300.00 | P87: 0 | Q87: 200.00 | R87: 0.50 | S87: 200.00 | T87: 0.50 | U87: 2 | V87: 300.00 | W87: 0.09 | Y87: 21 | Z87: 1.00 | AA87: 0 | AB87: 20.00 | AC87: 0 | AD87: 13.33 | AE87: 20.00 | AF87: 40.00
O89: m | P89: ='Regulares CPC'!C8 -> 300.00 | Q89: k | U89: =1/10 -> 0.1 | AA89: m | AB89: =AB57 -> 200
A90: COBB-DOUGLAS 4 | C90: Recta Presupuestaria | J90: Curva de Indiferencia | O90: p1 | P90: ='Regulares CPC'!D8 -> 1 | Q90: =LN(P92)+P93 -> 5.80 | AA90: p1 | AB90: ='CompPerf CPC'!D8 -> 10
A91: Unidades | B91: ponderador | C91: x1 | D91: x2 | E91: x7lin | G91: x8lin | I91: Cota | J91: x1 | K91: x2 | O91: p2 | P91: ='Regulares CPC'!F8 -> 200 | AA91: p2 | AB91: =AB59 -> 5
A92: 1 | B92: 0 | C92: =$E$118/$E$117*B92 -> 0 | D92: =($E$118/$F$117)-(($E$117/$F$117)*C92) -> 16.67 | E92: =$E$116 -> 5.333333333 | F92: =$F$116*B92 -> 0 | G92: =B92*$E$116 -> 0 | H92: =$F$116 -> 10 | O92: x1* | P92: =P91/P90 -> 200.00 | AA92: x1 | AB92: =AB89/(AB91+AB90) -> 13.33333333
A93: 2 | B93: 0.05 | C93: =$E$118/$E$117*B93 -> 0.67 | D93: =($E$118/$F$117)-(($E$117/$F$117)*C93) -> 15.83 | E93: =$E$116 -> 5.333333333 | F93: =$F$116*B93 -> 0.50 | G93: =B93*$E$116 -> 0.27 | H93: =$F$116 -> 10 | I93: 0.28 | J93: =I93*$E$116 -> 1.49 | K93: =($G$118/(J93^($E$115)))^(1/$F$115) -> 23.36 | O93: x2* | P93: =P89/P91-1 -> 0.50 | AA93: x2 | AB93: =AB92 -> 13.33333333
A94: 3 | B94: 0.10 | C94: 1.33 | D94: 15.00 | E94: 5.333333333 | F94: 1.00 | G94: 0.53 | H94: 10 | I94: 0.36 | J94: =I94*$E$116 -> 1.92 | K94: 19.76
A95: 4 | B95: 0.15 | C95: 2.00 | D95: 14.17 | E95: 5.333333333 | F95: 1.50 | G95: 0.80 | H95: 10 | I95: 0.44 | J95: 2.35 | K95: 17.29
A96: 5 | B96: 0.20 | C96: 2.67 | D96: 13.33 | E96: 5.333333333 | F96: 2.00 | G96: 1.07 | H96: 10 | I96: 0.52 | J96: 2.77 | K96: 15.46
A97: 6 | B97: 0.25 | C97: 3.33 | D97: 12.50 | E97: 5.333333333 | F97: 2.50 | G97: 1.33 | H97: 10 | I97: 0.6 | J97: 3.20 | K97: 14.06 | M97: REGULARES 4 | O97: Recta Presupuestaria | V97: Curva de Indiferencia | Y97: COMP. PERFECTOS 4 | AB97: Recta Presupuestaria | AD97: Curva de Indiferencia
A98: 7 | B98: 0.30 | C98: 4.00 | D98: 11.67 | E98: 5.333333333 | F98: 3.00 | G98: 1.60 | H98: 10 | I98: 0.68 | J98: 3.63 | K98: 12.93 | M98: Unidades | N98: ponderador | O98: x1 | P98: x2 | Q98: x1lin | S98: x2lin | U98: Cota | V98: x1 | W98: x2 | Y98: Unidades | Z98: ponderador | AB98: x1 | AC98: x2 | AD98: vertice | AE98: x1line | AF98: x2line
A99: 8 | B99: 0.35 | C99: 4.67 | D99: 10.83 | E99: 5.333333333 | F99: 3.50 | G99: 1.87 | H99: 10 | I99: 0.76 | J99: 4.05 | K99: 12.01 | M99: 1 | N99: 0 | O99: =$P$25/$P$26*N99 -> 0 | P99: =($P$25/$P$27)-(($P$26/$P$27)*O99) -> 1.50 | Q99: =$P$124 -> 266.67 | R99: =$P$125*N99 -> 0 | S99: =$P$124*N99 -> 0 | T99: =$P$125 -> 0.50 | Y99: 1 | Z99: 0 | AA99: 1.00 | AB99: =$AB$121/$AB$122*Z99 -> 0 | AC99: =$AB$25/$AB$27*AA99 -> 40.00 | AD99: =AB124 -> 16.00 | AE99: =AD99+(($AB$23-AD99)*Z99) -> 16.00 | AF99: =AD99+(($AC$3-AD99)*Z99) -> 16.00
A100: 9 | B100: 0.40 | C100: 5.33 | D100: 10.00 | E100: 5.333333333 | F100: 4.00 | G100: 2.13 | H100: 10 | I100: 0.84 | J100: 4.48 | K100: 11.23 | M100: 2 | N100: 0.05 | O100: =$P$25/$P$26*N100 -> 15.00 | P100: =($P$25/$P$27)-(($P$26/$P$27)*O100) -> 1.43 | Q100: =$P$124 -> 266.67 | R100: =$P$125*N100 -> 0.03 | S100: =$P$124*N100 -> 13.33 | T100: =$P$125 -> 0.50 | U100: =$U$25 -> 0.1 | V100: =O100 -> 15.00 | W100: =$Q$122-LN(V100) -> 3.38 | Y100: 2 | Z100: 0.05 | AA100: 0.95 | AB100: =$AB$121/$AB$122*Z100 -> 1.33 | AC100: =$AB$25/$AB$27*AA100 -> 38.00 | AD100: =AD99 -> 16.00 | AE100: =AD100+(($AB$23-AD100)*Z100) -> 16.20 | AF100: =AD100+(($AC$3-AD100)*Z100) -> 17.20
A101: 10 | B101: 0.45 | C101: 6.00 | D101: 9.17 | E101: 5.333333333 | F101: 4.50 | G101: 2.40 | H101: 10 | I101: 0.92 | J101: 4.91 | K101: 10.57 | M101: 3 | N101: 0.10 | O101: 30.00 | P101: 1.35 | Q101: 266.67 | R101: 0.05 | S101: 26.67 | T101: 0.50 | U101: =U100+$U$25 -> 0.2 | V101: =O101 -> 30.00 | W101: =$Q$122-LN(V101) -> 2.68 | Y101: 3 | Z101: 0.10 | AA101: 0.90 | AB101: 2.67 | AC101: 36.00 | AD101: =AD100 -> 16.00 | AE101: 16.40 | AF101: 18.40
A102: 11 | B102: 0.50 | C102: 6.67 | D102: 8.33 | E102: 5.333333333 | F102: 5.00 | G102: 2.67 | H102: 10 | I102: 1 | J102: 5.33 | K102: 10.00 | M102: 4 | N102: 0.15 | O102: 45.00 | P102: 1.28 | Q102: 266.67 | R102: 0.08 | S102: 40.00 | T102: 0.50 | U102: =U101+$U$25 -> 0.3 | V102: 45.00 | W102: 2.28 | Y102: 4 | Z102: 0.15 | AA102: 0.85 | AB102: 4.00 | AC102: 34.00 | AD102: 16.00 | AE102: 16.60 | AF102: 19.60
A103: 12 | B103: 0.55 | C103: 7.33 | D103: 7.50 | E103: 5.333333333 | F103: 5.50 | G103: 2.93 | H103: 10 | I103: 1.08 | J103: 5.76 | K103: 9.50 | M103: 5 | N103: 0.20 | O103: 60.00 | P103: 1.20 | Q103: 266.67 | R103: 0.10 | S103: 53.33 | T103: 0.50 | U103: 0.4 | V103: 60.00 | W103: 1.99 | Y103: 5 | Z103: 0.20 | AA103: 0.80 | AB103: 5.33 | AC103: 32.00 | AD103: 16.00 | AE103: 16.80 | AF103: 20.80
A104: 13 | B104: 0.60 | C104: 8.00 | D104: 6.67 | E104: 5.333333333 | F104: 6.00 | G104: 3.20 | H104: 10 | I104: 1.16 | J104: 6.19 | K104: 9.06 | M104: 6 | N104: 0.25 | O104: 75.00 | P104: 1.13 | Q104: 266.67 | R104: 0.13 | S104: 66.67 | T104: 0.50 | U104: 0.5 | V104: 75.00 | W104: 1.77 | Y104: 6 | Z104: 0.25 | AA104: 0.75 | AB104: 6.67 | AC104: 30.00 | AD104: 16.00 | AE104: 17.00 | AF104: 22.00
A105: 14 | B105: 0.65 | C105: 8.67 | D105: 5.83 | E105: 5.333333333 | F105: 6.50 | G105: 3.47 | H105: 10 | I105: 1.24 | J105: 6.61 | K105: 8.66 | M105: 7 | N105: 0.30 | O105: 90.00 | P105: 1.05 | Q105: 266.67 | R105: 0.15 | S105: 80.00 | T105: 0.50 | U105: 0.6 | V105: 90.00 | W105: 1.59 | Y105: 7 | Z105: 0.30 | AA105: 0.70 | AB105: 8.00 | AC105: 28.00 | AD105: 16.00 | AE105: 17.20 | AF105: 23.20
A106: 15 | B106: 0.70 | C106: 9.33 | D106: 5.00 | E106: 5.333333333 | F106: 7.00 | G106: 3.73 | H106: 10 | I106: 1.32 | J106: 7.04 | K106: 8.31 | M106: 8 | N106: 0.35 | O106: 105.00 | P106: 0.98 | Q106: 266.67 | R106: 0.18 | S106: 93.33 | T106: 0.50 | U106: 0.7 | V106: 105.00 | W106: 1.43 | Y106: 8 | Z106: 0.35 | AA106: 0.65 | AB106: 9.33 | AC106: 26.00 | AD106: 16.00 | AE106: 17.40 | AF106: 24.40
A107: 16 | B107: 0.75 | C107: 10.00 | D107: 4.17 | E107: 5.333333333 | F107: 7.50 | G107: 4.00 | H107: 10 | I107: 1.4 | J107: 7.47 | K107: 7.99 | M107: 9 | N107: 0.40 | O107: 120.00 | P107: 0.90 | Q107: 266.67 | R107: 0.20 | S107: 106.67 | T107: 0.50 | U107: 0.8 | V107: 120.00 | W107: 1.30 | Y107: 9 | Z107: 0.40 | AA107: 0.60 | AB107: 10.67 | AC107: 24.00 | AD107: 16.00 | AE107: 17.60 | AF107: 25.60
A108: 17 | B108: 0.80 | C108: 10.67 | D108: 3.33 | E108: 5.333333333 | F108: 8.00 | G108: 4.27 | H108: 10 | I108: 1.48 | J108: 7.89 | K108: 7.70 | M108: 10 | N108: 0.45 | O108: 135.00 | P108: 0.83 | Q108: 266.67 | R108: 0.23 | S108: 120.00 | T108: 0.50 | U108: 0.9 | V108: 135.00 | W108: 1.18 | Y108: 10 | Z108: 0.45 | AA108: 0.55 | AB108: 12.00 | AC108: 22.00 | AD108: 16.00 | AE108: 17.80 | AF108: 26.80
A109: 18 | B109: 0.85 | C109: 11.33 | D109: 2.50 | E109: 5.333333333 | F109: 8.50 | G109: 4.53 | H109: 10 | I109: 1.56 | J109: 8.32 | K109: 7.43 | M109: 11 | N109: 0.50 | O109: 150.00 | P109: 0.75 | Q109: 266.67 | R109: 0.25 | S109: 133.33 | T109: 0.50 | U109: 1 | V109: 150.00 | W109: 1.08 | Y109: 11 | Z109: 0.50 | AA109: 0.50 | AB109: 13.33 | AC109: 20.00 | AD109: 16.00 | AE109: 18.00 | AF109: 28.00
A110: 19 | B110: 0.90 | C110: 12.00 | D110: 1.67 | E110: 5.333333333 | F110: 9.00 | G110: 4.80 | H110: 10 | I110: 1.64 | J110: 8.75 | K110: 7.19 | M110: 12 | N110: 0.55 | O110: 165.00 | P110: 0.68 | Q110: 266.67 | R110: 0.28 | S110: 146.67 | T110: 0.50 | U110: =U109+$U$25 -> 1.1 | V110: 165.00 | W110: 0.98 | Y110: 12 | Z110: 0.55 | AA110: 0.45 | AB110: 14.67 | AC110: 18.00 | AD110: 16.00 | AE110: 18.20 | AF110: 29.20
A111: 20 | B111: 0.95 | C111: 12.67 | D111: 0.83 | E111: 5.333333333 | F111: 9.50 | G111: 5.07 | H111: 10 | I111: 1.72 | J111: 9.17 | K111: 6.97 | M111: 13 | N111: 0.60 | O111: 180.00 | P111: 0.60 | Q111: 266.67 | R111: 0.30 | S111: 160.00 | T111: 0.50 | U111: =U110+$U$25 -> 1.2 | V111: 180.00 | W111: 0.89 | Y111: 13 | Z111: 0.60 | AA111: 0.40 | AB111: 16.00 | AC111: 16.00 | AD111: 16.00 | AE111: 18.40 | AF111: 30.40
A112: 21 | B112: 1.00 | C112: 13.33 | D112: 0 | E112: 5.333333333 | F112: 10.00 | G112: 5.33 | H112: 10 | I112: 1.8 | J112: 9.60 | K112: 6.76 | M112: 14 | N112: 0.65 | O112: 195.00 | P112: 0.53 | Q112: 266.67 | R112: 0.33 | S112: 173.33 | T112: 0.50 | U112: 1.3 | V112: 195.00 | W112: 0.81 | Y112: 14 | Z112: 0.65 | AA112: 0.35 | AB112: 17.33 | AC112: 14.00 | AD112: 16.00 | AE112: 18.60 | AF112: 31.60
M113: 15 | N113: 0.70 | O113: 210.00 | P113: 0.45 | Q113: 266.67 | R113: 0.35 | S113: 186.67 | T113: 0.50 | U113: 1.4 | V113: 210.00 | W113: 0.74 | Y113: 15 | Z113: 0.70 | AA113: 0.30 | AB113: 18.67 | AC113: 12.00 | AD113: 16.00 | AE113: 18.80 | AF113: 32.80
E114: 1 | F114: 2 | M114: 16 | N114: 0.75 | O114: 225.00 | P114: 0.38 | Q114: 266.67 | R114: 0.38 | S114: 200.00 | T114: 0.50 | U114: 1.5 | V114: 225.00 | W114: 0.67 | Y114: 16 | Z114: 0.75 | AA114: 0.25 | AB114: 20.00 | AC114: 10.00 | AD114: 16.00 | AE114: 19.00 | AF114: 34.00
D115: ALFA | E115: ='Cobb-Douglas CPC'!$D$26 -> 0.4 | F115: ='Cobb-Douglas CPC'!$F$26 -> 0.6 | M115: 17 | N115: 0.80 | O115: 240.00 | P115: 0.30 | Q115: 266.67 | R115: 0.40 | S115: 213.33 | T115: 0.50 | U115: 1.6 | V115: 240.00 | W115: 0.61 | Y115: 17 | Z115: 0.80 | AA115: 0.20 | AB115: 21.33 | AC115: 8.00 | AD115: 16.00 | AE115: 19.20 | AF115: 35.20
D116: X | E116: =E115*E118/E117 -> 5.3 | F116: =F115*E118/F117 -> 10.0 | M116: 18 | N116: 0.85 | O116: 255.00 | P116: 0.23 | Q116: 266.67 | R116: 0.43 | S116: 226.67 | T116: 0.50 | U116: 1.7 | V116: 255.00 | W116: 0.54 | Y116: 18 | Z116: 0.85 | AA116: 0.15 | AB116: 22.67 | AC116: 6.00 | AD116: 16.00 | AE116: 19.40 | AF116: 36.40
D117: P | E117: =MIN('Cobb-Douglas CPC'!D6:D8)*0.75 -> 7.5 | F117: ='Cobb-Douglas CPC'!F6 -> 6.0 | M117: 19 | N117: 0.90 | O117: 270.00 | P117: 0.15 | Q117: 266.67 | R117: 0.45 | S117: 240.00 | T117: 0.50 | U117: 1.8 | V117: 270.00 | W117: 0.49 | Y117: 19 | Z117: 0.90 | AA117: 0.10 | AB117: 24.00 | AC117: 4.00 | AD117: 16.00 | AE117: 19.60 | AF117: 37.60
D118: M | E118: ='Cobb-Douglas CPC'!C6 -> 100.0 | G118: =(E116^(E115))*(F116^(F115)) -> 7.776774233 | M118: 20 | N118: 0.95 | O118: 285.00 | P118: 0.08 | Q118: 266.67 | R118: 0.48 | S118: 253.33 | T118: 0.50 | U118: 1.9 | V118: 285.00 | W118: 0.43 | Y118: 20 | Z118: 0.95 | AA118: 0.05 | AB118: 25.33 | AC118: 2.00 | AD118: 16.00 | AE118: 19.80 | AF118: 38.80
M119: 21 | N119: 1.00 | O119: 300.00 | P119: 0 | Q119: 266.67 | R119: 0.50 | S119: 266.67 | T119: 0.50 | U119: 2 | V119: 300.00 | W119: 0.38 | Y119: 21 | Z119: 1.00 | AA119: 0 | AB119: 26.67 | AC119: 0 | AD119: 16.00 | AE119: 20.00 | AF119: 40.00
A120: COBB-DOUGLAS 0 | C120: Recta Presupuestaria | J120: Curva de Indiferencia
A121: Unidades | B121: ponderador | C121: x1 | D121: x2 | E121: x9lin | G121: x10lin | I121: Cota | J121: x1 | K121: x2 | O121: m | P121: =P89 -> 300.00 | Q121: k | U121: =1/10 -> 0.1 | AA121: m | AB121: =AB89 -> 200
A122: 1 | B122: 0 | C122: =$E$148/$E$147*B122 -> 0 | D122: =($E$148/$F$147)-($E$147/$F$147)*C122 -> 16.67 | E122: =$E$146 -> 5.333333333 | F122: =B122*$F$146 -> 0 | G122: =B122*$E$146 -> 0 | H122: =$F$146 -> 10 | O122: p1 | P122: =MIN(P90,P58,P26)*0.75 -> 0.75 | Q122: =LN(P124)+P125 -> 6.09 | AA122: p1 | AB122: =AB26*0.75 -> 7.5
A123: 2 | B123: 0.05 | C123: =$E$148/$E$147*B123 -> 0.67 | D123: =($E$148/$F$147)-($E$147/$F$147)*C123 -> 15.83 | E123: =$E$146 -> 5.333333333 | F123: =B123*$F$146 -> 0.50 | G123: =B123*$E$146 -> 0.27 | H123: =$F$146 -> 10 | I123: 0.28 | J123: =I123*$E$146 -> 1.49 | K123: =($G$148/(J123^($E$145)))^(1/$F$145) -> 23.36 | O123: p2 | P123: =P91 -> 200 | AA123: p2 | AB123: =AB91 -> 5
A124: 3 | B124: 0.10 | C124: 1.33 | D124: 15.00 | E124: 5.333333333 | F124: 1.00 | G124: 0.53 | H124: 10 | I124: 0.36 | J124: =I124*$E$146 -> 1.92 | K124: 19.76 | O124: x1* | P124: =P123/P122 -> 266.67 | AA124: x1 | AB124: =AB121/(AB123+AB122) -> 16
A125: 4 | B125: 0.15 | C125: 2.00 | D125: 14.17 | E125: 5.333333333 | F125: 1.50 | G125: 0.80 | H125: 10 | I125: 0.44 | J125: 2.35 | K125: 17.29 | O125: x2* | P125: =P121/P123-1 -> 0.50 | AA125: x2 | AB125: =AB124 -> 16
A126: 5 | B126: 0.20 | C126: 2.67 | D126: 13.33 | E126: 5.333333333 | F126: 2.00 | G126: 1.07 | H126: 10 | I126: 0.52 | J126: 2.77 | K126: 15.46
A127: 6 | B127: 0.25 | C127: 3.33 | D127: 12.50 | E127: 5.333333333 | F127: 2.50 | G127: 1.33 | H127: 10 | I127: 0.6 | J127: 3.20 | K127: 14.06
A128: 7 | B128: 0.30 | C128: 4.00 | D128: 11.67 | E128: 5.333333333 | F128: 3.00 | G128: 1.60 | H128: 10 | I128: 0.68 | J128: 3.63 | K128: 12.93
A129: 8 | B129: 0.35 | C129: 4.67 | D129: 10.83 | E129: 5.333333333 | F129: 3.50 | G129: 1.87 | H129: 10 | I129: 0.76 | J129: 4.05 | K129: 12.01 | M129: REGULARES 0 | O129: Recta Presupuestaria | V129: Curva de Indiferencia | Y129: COMP. PERFECTOS 0 | AB129: Recta Presupuestaria | AD129: Curva de Indiferencia
A130: 9 | B130: 0.40 | C130: 5.33 | D130: 10.00 | E130: 5.333333333 | F130: 4.00 | G130: 2.13 | H130: 10 | I130: 0.84 | J130: 4.48 | K130: 11.23 | M130: Unidades | N130: ponderador | O130: x1 | P130: x2 | Q130: x1lin | S130: x2lin | U130: Cota | V130: x1 | W130: x2 | Y130: Unidades | Z130: ponderador | AB130: x1 | AC130: x2 | AD130: vertice | AE130: x1line | AF130: x2line
A131: 10 | B131: 0.45 | C131: 6.00 | D131: 9.17 | E131: 5.333333333 | F131: 4.50 | G131: 2.40 | H131: 10 | I131: 0.92 | J131: 4.91 | K131: 10.57 | M131: 1 | N131: 0 | O131: =$P$25/$P$26*N131 -> 0 | P131: =($P$25/$P$27)-(($P$26/$P$27)*O131) -> 1.50 | Q131: =$P$156 -> 200.00 | R131: =$P$157*N131 -> 0 | S131: =$P$156*N131 -> 0 | T131: =$P$157 -> 0.50 | Y131: 1 | Z131: 0 | AA131: 1.00 | AB131: =$AB$153/$AB$154*Z131 -> 0 | AC131: =$AB$25/$AB$27*AA131 -> 40.00 | AD131: =AB156 -> 20.00 | AE131: =AD131+(($AB$23-AD131)*Z131) -> 20.00 | AF131: =AD131+(($AC$3-AD131)*Z131) -> 20.00
A132: 11 | B132: 0.50 | C132: 6.67 | D132: 8.33 | E132: 5.333333333 | F132: 5.00 | G132: 2.67 | H132: 10 | I132: 1 | J132: 5.33 | K132: 10.00 | M132: 2 | N132: 0.05 | O132: =$P$25/$P$26*N132 -> 15.00 | P132: =($P$25/$P$27)-(($P$26/$P$27)*O132) -> 1.43 | Q132: =$P$156 -> 200.00 | R132: =$P$157*N132 -> 0.03 | S132: =$P$156*N132 -> 10.00 | T132: =$P$157 -> 0.50 | U132: =$U$25 -> 0.1 | V132: =O132 -> 15.00 | W132: =$Q$154-LN(V132) -> 3.09 | Y132: 2 | Z132: 0.05 | AA132: 0.95 | AB132: =$AB$153/$AB$154*Z132 -> 2.00 | AC132: =$AB$25/$AB$27*AA132 -> 38.00 | AD132: =AD131 -> 20.00 | AE132: =AD132+(($AB$23-AD132)*Z132) -> 20.00 | AF132: =AD132+(($AC$3-AD132)*Z132) -> 21.00
A133: 12 | B133: 0.55 | C133: 7.33 | D133: 7.50 | E133: 5.333333333 | F133: 5.50 | G133: 2.93 | H133: 10 | I133: 1.08 | J133: 5.76 | K133: 9.50 | M133: 3 | N133: 0.10 | O133: 30.00 | P133: 1.35 | Q133: 200.00 | R133: 0.05 | S133: 20.00 | T133: 0.50 | U133: =U132+$U$25 -> 0.2 | V133: =O133 -> 30.00 | W133: =$Q$154-LN(V133) -> 2.40 | Y133: 3 | Z133: 0.10 | AA133: 0.90 | AB133: 4.00 | AC133: 36.00 | AD133: =AD132 -> 20.00 | AE133: 20.00 | AF133: 22.00
A134: 13 | B134: 0.60 | C134: 8.00 | D134: 6.67 | E134: 5.333333333 | F134: 6.00 | G134: 3.20 | H134: 10 | I134: 1.16 | J134: 6.19 | K134: 9.06 | M134: 4 | N134: 0.15 | O134: 45.00 | P134: 1.28 | Q134: 200.00 | R134: 0.08 | S134: 30.00 | T134: 0.50 | U134: =U133+$U$25 -> 0.3 | V134: 45.00 | W134: 1.99 | Y134: 4 | Z134: 0.15 | AA134: 0.85 | AB134: 6.00 | AC134: 34.00 | AD134: 20.00 | AE134: 20.00 | AF134: 23.00
A135: 14 | B135: 0.65 | C135: 8.67 | D135: 5.83 | E135: 5.333333333 | F135: 6.50 | G135: 3.47 | H135: 10 | I135: 1.24 | J135: 6.61 | K135: 8.66 | M135: 5 | N135: 0.20 | O135: 60.00 | P135: 1.20 | Q135: 200.00 | R135: 0.10 | S135: 40.00 | T135: 0.50 | U135: 0.4 | V135: 60.00 | W135: 1.70 | Y135: 5 | Z135: 0.20 | AA135: 0.80 | AB135: 8.00 | AC135: 32.00 | AD135: 20.00 | AE135: 20.00 | AF135: 24.00
A136: 15 | B136: 0.70 | C136: 9.33 | D136: 5.00 | E136: 5.333333333 | F136: 7.00 | G136: 3.73 | H136: 10 | I136: 1.32 | J136: 7.04 | K136: 8.31 | M136: 6 | N136: 0.25 | O136: 75.00 | P136: 1.13 | Q136: 200.00 | R136: 0.13 | S136: 50.00 | T136: 0.50 | U136: 0.5 | V136: 75.00 | W136: 1.48 | Y136: 6 | Z136: 0.25 | AA136: 0.75 | AB136: 10.00 | AC136: 30.00 | AD136: 20.00 | AE136: 20.00 | AF136: 25.00
A137: 16 | B137: 0.75 | C137: 10.00 | D137: 4.17 | E137: 5.333333333 | F137: 7.50 | G137: 4.00 | H137: 10 | I137: 1.4 | J137: 7.47 | K137: 7.99 | M137: 7 | N137: 0.30 | O137: 90.00 | P137: 1.05 | Q137: 200.00 | R137: 0.15 | S137: 60.00 | T137: 0.50 | U137: 0.6 | V137: 90.00 | W137: 1.30 | Y137: 7 | Z137: 0.30 | AA137: 0.70 | AB137: 12.00 | AC137: 28.00 | AD137: 20.00 | AE137: 20.00 | AF137: 26.00
A138: 17 | B138: 0.80 | C138: 10.67 | D138: 3.33 | E138: 5.333333333 | F138: 8.00 | G138: 4.27 | H138: 10 | I138: 1.48 | J138: 7.89 | K138: 7.70 | M138: 8 | N138: 0.35 | O138: 105.00 | P138: 0.98 | Q138: 200.00 | R138: 0.18 | S138: 70.00 | T138: 0.50 | U138: 0.7 | V138: 105.00 | W138: 1.14 | Y138: 8 | Z138: 0.35 | AA138: 0.65 | AB138: 14.00 | AC138: 26.00 | AD138: 20.00 | AE138: 20.00 | AF138: 27.00
A139: 18 | B139: 0.85 | C139: 11.33 | D139: 2.50 | E139: 5.333333333 | F139: 8.50 | G139: 4.53 | H139: 10 | I139: 1.56 | J139: 8.32 | K139: 7.43 | M139: 9 | N139: 0.40 | O139: 120.00 | P139: 0.90 | Q139: 200.00 | R139: 0.20 | S139: 80.00 | T139: 0.50 | U139: 0.8 | V139: 120.00 | W139: 1.01 | Y139: 9 | Z139: 0.40 | AA139: 0.60 | AB139: 16.00 | AC139: 24.00 | AD139: 20.00 | AE139: 20.00 | AF139: 28.00
A140: 19 | B140: 0.90 | C140: 12.00 | D140: 1.67 | E140: 5.333333333 | F140: 9.00 | G140: 4.80 | H140: 10 | I140: 1.64 | J140: 8.75 | K140: 7.19 | M140: 10 | N140: 0.45 | O140: 135.00 | P140: 0.83 | Q140: 200.00 | R140: 0.23 | S140: 90.00 | T140: 0.50 | U140: 0.9 | V140: 135.00 | W140: 0.89 | Y140: 10 | Z140: 0.45 | AA140: 0.55 | AB140: 18.00 | AC140: 22.00 | AD140: 20.00 | AE140: 20.00 | AF140: 29.00
A141: 20 | B141: 0.95 | C141: 12.67 | D141: 0.83 | E141: 5.333333333 | F141: 9.50 | G141: 5.07 | H141: 10 | I141: 1.72 | J141: 9.17 | K141: 6.97 | M141: 11 | N141: 0.50 | O141: 150.00 | P141: 0.75 | Q141: 200.00 | R141: 0.25 | S141: 100.00 | T141: 0.50 | U141: 1 | V141: 150.00 | W141: 0.79 | Y141: 11 | Z141: 0.50 | AA141: 0.50 | AB141: 20.00 | AC141: 20.00 | AD141: 20.00 | AE141: 20.00 | AF141: 30.00
A142: 21 | B142: 1.00 | C142: 13.33 | D142: 0 | E142: 5.333333333 | F142: 10.00 | G142: 5.33 | H142: 10 | I142: 1.8 | J142: 9.60 | K142: 6.76 | M142: 12 | N142: 0.55 | O142: 165.00 | P142: 0.68 | Q142: 200.00 | R142: 0.28 | S142: 110.00 | T142: 0.50 | U142: =U141+$U$25 -> 1.1 | V142: 165.00 | W142: 0.69 | Y142: 12 | Z142: 0.55 | AA142: 0.45 | AB142: 22.00 | AC142: 18.00 | AD142: 20.00 | AE142: 20.00 | AF142: 31.00
M143: 13 | N143: 0.60 | O143: 180.00 | P143: 0.60 | Q143: 200.00 | R143: 0.30 | S143: 120.00 | T143: 0.50 | U143: =U142+$U$25 -> 1.2 | V143: 180.00 | W143: 0.61 | Y143: 13 | Z143: 0.60 | AA143: 0.40 | AB143: 24.00 | AC143: 16.00 | AD143: 20.00 | AE143: 20.00 | AF143: 32.00
E144: 1 | F144: 2 | M144: 14 | N144: 0.65 | O144: 195.00 | P144: 0.53 | Q144: 200.00 | R144: 0.33 | S144: 130.00 | T144: 0.50 | U144: 1.3 | V144: 195.00 | W144: 0.53 | Y144: 14 | Z144: 0.65 | AA144: 0.35 | AB144: 26.00 | AC144: 14.00 | AD144: 20.00 | AE144: 20.00 | AF144: 33.00
D145: ALFA | E145: =E115 -> 0.4 | F145: =F115 -> 0.6 | M145: 15 | N145: 0.70 | O145: 210.00 | P145: 0.45 | Q145: 200.00 | R145: 0.35 | S145: 140.00 | T145: 0.50 | U145: 1.4 | V145: 210.00 | W145: 0.45 | Y145: 15 | Z145: 0.70 | AA145: 0.30 | AB145: 28.00 | AC145: 12.00 | AD145: 20.00 | AE145: 20.00 | AF145: 34.00
D146: X | E146: =E145*E148/E147 -> 5.3 | F146: =F145*E148/F147 -> 10 | M146: 16 | N146: 0.75 | O146: 225.00 | P146: 0.38 | Q146: 200.00 | R146: 0.38 | S146: 150.00 | T146: 0.50 | U146: 1.5 | V146: 225.00 | W146: 0.38 | Y146: 16 | Z146: 0.75 | AA146: 0.25 | AB146: 30.00 | AC146: 10.00 | AD146: 20.00 | AE146: 20.00 | AF146: 35.00
D147: P | E147: =IF(C151=C152,E117,(IF(C152=C153,E117,E117*0.75))) -> 7.5 | F147: ='Cobb-Douglas CPC'!F6 -> 6.0 | M147: 17 | N147: 0.80 | O147: 240.00 | P147: 0.30 | Q147: 200.00 | R147: 0.40 | S147: 160.00 | T147: 0.50 | U147: 1.6 | V147: 240.00 | W147: 0.32 | Y147: 17 | Z147: 0.80 | AA147: 0.20 | AB147: 32.00 | AC147: 8.00 | AD147: 20.00 | AE147: 20.00 | AF147: 36.00
D148: M | E148: ='Cobb-Douglas CPC'!C6 -> 100.0 | G148: =(E146^(E145))*(F146^(F145)) -> 7.776774233 | M148: 18 | N148: 0.85 | O148: 255.00 | P148: 0.23 | Q148: 200.00 | R148: 0.43 | S148: 170.00 | T148: 0.50 | U148: 1.7 | V148: 255.00 | W148: 0.26 | Y148: 18 | Z148: 0.85 | AA148: 0.15 | AB148: 34.00 | AC148: 6.00 | AD148: 20.00 | AE148: 20.00 | AF148: 37.00
M149: 19 | N149: 0.90 | O149: 270.00 | P149: 0.15 | Q149: 200.00 | R149: 0.45 | S149: 180.00 | T149: 0.50 | U149: 1.8 | V149: 270.00 | W149: 0.20 | Y149: 19 | Z149: 0.90 | AA149: 0.10 | AB149: 36.00 | AC149: 4.00 | AD149: 20.00 | AE149: 20.00 | AF149: 38.00
A150: CURVA PRECIO-CONSUMO | M150: 20 | N150: 0.95 | O150: 285.00 | P150: 0.08 | Q150: 200.00 | R150: 0.48 | S150: 190.00 | T150: 0.50 | U150: 1.9 | V150: 285.00 | W150: 0.15 | Y150: 20 | Z150: 0.95 | AA150: 0.05 | AB150: 38.00 | AC150: 2.00 | AD150: 20.00 | AE150: 20.00 | AF150: 39.00
A151: CURVA UNO | C151: =E27 -> 4 | D151: =F27 -> 10 | E151: =IF(G153=H153,C151,C155) -> 4 | F151: =MAX(D151:D155) -> 10 | M151: 21 | N151: 1.00 | O151: 300.00 | P151: 0 | Q151: 200.00 | R151: 0.50 | S151: 200.00 | T151: 0.50 | U151: 2 | V151: 300.00 | W151: 0.09 | Y151: 21 | Z151: 1.00 | AA151: 0 | AB151: 40.00 | AC151: 0 | AD151: 20.00 | AE151: 20.00 | AF151: 40.00
A152: CURVA DOS | C152: =E56 -> 4 | D152: =F56 -> 10 | E152: =IF(G153=H153,E151,MAX(C151:C155)) -> 4 | F152: =MAX(D151:D155) -> 10 | J152: =F151+F152+F153 -> 20 | K152: =F151*3 -> 30
A153: CURVA TRES | C153: =E85 -> 4 | D153: =F85 -> 10 | G153: =C151+C152+C153 -> 12 | H153: =C151*3 -> 12 | O153: m | P153: =P121 -> 300.00 | Q153: k | U153: =1/10 -> 0.1 | AA153: m | AB153: =AB121 -> 200
A154: CURVA CUATRO | C154: =IF(G153=H153,C151,E116) -> 4 | D154: =F116 -> 10.0 | O154: p1 | P154: =P26 -> 1 | Q154: =LN(P156)+P157 -> 5.80 | AA154: p1 | AB154: =AB26*0.5 -> 5
A155: CURVA CINCO | C155: 0 | D155: =F146 -> 10 | O155: p2 | P155: =P123 -> 200 | AA155: p2 | AB155: =AB123 -> 5
O156: x1* | P156: =P155/P154 -> 200.00 | AA156: x1 | AB156: =AB153/(AB155+AB154) -> 20
O157: x2* | P157: =P153/P155-1 -> 0.50 | AA157: x2 | AB157: =AB156 -> 20
M161: CURVA PRECIO-CONSUMO | Y161: CURVA PRECIO-CONSUMO
N162: 0 | O162: 1 | P162: 2 | Q162: 3 | R162: 4 | T162: =P28+P60+P92 -> 600.00 | U162: =P28*3 -> 600.00 | Z162: 0 | AA162: 1 | AB162: 2 | AC162: 3 | AD162: 4 | AF162: =AB28+AB60+AB92 -> 40.00 | AG162: =AB28*3 -> 40.00
M163: x1* | N163: =IF(T162=U162,O163,0) -> 200.00 | O163: =P28 -> 200.00 | P163: =P60 -> 200.00 | Q163: =P92 -> 200.00 | R163: =IF(T162=U162,P156,P124) -> 200.00 | Y163: x1* | Z163: =IF(AF162=AG162,AA163,AB156) -> 13.33 | AA163: =AB28 -> 13.33 | AB163: =AB60 -> 13.33 | AC163: =AB92 -> 13.33 | AD163: =IF(AF162=AG162,AA163,0) -> 13.33
M164: x2* | N164: =P157 -> 0.50 | O164: =P29 -> 0.50 | P164: =P61 -> 0.50 | Q164: =P93 -> 0.50 | R164: =P125 -> 0.50 | Y164: x2* | Z164: =IF(AF162=AG162,AA164,AB157) -> 13.33 | AA164: =AB29 -> 13.33 | AB164: =AB61 -> 13.33 | AC164: =AB93 -> 13.33 | AD164: =IF(AF162=AG162,AA164,0) -> 13.33
